Ref No,Fund Type,Dept,Cost Centre Description    ,Description    ,Creditor Name    ,GL Code Net Amount,Payment date        
2,Revenue,CAHD,Central - Commissioned Services,Permanent Residential,1 St Georges House,13333.52, 12-Jan-2021
3,Revenue,CAHD,CSC - LAC Housing Support Grants,Grants to Voluntary Bodies,1625 Independent People,3343.00, 06-Jan-2021
4,Revenue,CAHD,CSC - LAC Housing Support Grants,Grants to Voluntary Bodies,1625 Independent People,3343.00, 21-Jan-2021
5,Revenue,CAHD,CSC - Care Leavers Independent Living,Independent Living,16Pluscare Support Solutions,35996.58, 19-Jan-2021
6,Revenue,CAHD,South - Commissioned Services,Permanent Residential,2Nd Floor Building,5630.76, 12-Jan-2021
7,Revenue,CAHD,South - Commissioned Services,Permanent Residential,2Nd Floor Building,2806.12, 12-Jan-2021
8,Revenue,CAHD,Central - Commissioned Services,Other Small Contracts,3 Trees Community Support Ltd,4964.82, 08-Jan-2021
9,Revenue,CAHD,Central - Commissioned Services,Supported Living,3 Trees Community Support Ltd,5165.77, 08-Jan-2021
10,Revenue,CAHD,Central - Commissioned Services,Other Small Contracts,3 Trees Community Support Ltd,5263.82, 15-Jan-2021
11,Revenue,CAHD,Central - Commissioned Services,Supported Living,3 Trees Community Support Ltd,5162.60, 15-Jan-2021
12,Revenue,CAHD,South - Commissioned Services,Permanent Nursing,3Rd Floor  The Aspect,3593.88, 12-Jan-2021
13,Revenue,CAHD,North - Community based support,Permanent Nursing,3Rd Floor  The Aspect,3234.72, 12-Jan-2021
14,Revenue,CAHD,South - Commissioned Services,Permanent Nursing,3Rd Floor  The Aspect,2287.36, 12-Jan-2021
15,Revenue,CAHD,Central - Commissioned Services,Permanent Residential,5Th Floor Harlech Court,15254.92, 12-Jan-2021
16,Revenue,CAHD,18-25 Year Olds,Permanent Residential,5Th Floor Harlech Court,18219.32, 12-Jan-2021
17,Revenue,CAHD,South - Commissioned Services,Permanent Residential,5Th Floor Harlech Court,17000.48, 12-Jan-2021
18,Revenue,CAHD,South - Commissioned Services,Permanent Residential,5Th Floor Harlech Court,10627.92, 12-Jan-2021
19,Revenue,CAHD,S28A cases,Permanent Residential,5Th Floor Harlech Court,11122.76, 12-Jan-2021
20,Revenue,CAHD,South - Commissioned Services,Permanent Residential,5Th Floor Harlech Court,11665.12, 12-Jan-2021
21,Revenue,CAHD,North - Community based support,Permanent Residential,5Th Floor Harlech Court,12498.56, 12-Jan-2021
22,Revenue,CAHD,North - Community based support,Permanent Residential,5Th Floor Harlech Court,10537.24, 12-Jan-2021
23,Revenue,CAHD,North - Community based support,Permanent Residential,5Th Floor Harlech Court,9071.12, 12-Jan-2021
24,Revenue,CAHD,CSC - Vinney Green Secure Unit,R & M by Departments,A E Horder (Contracting) Limited,1638.56, 14-Jan-2021
25,Revenue,CAHD,South - Commissioned Services,Permanent Nursing,Acacia House,2996.00, 12-Jan-2021
26,Revenue,CAHD,Jointly Funded H&SC Packages,Permanent Residential,Acorn Care Providers,2310.92, 12-Jan-2021
27,Revenue,CAHD,Section 117 Placements MH Younger,Permanent Residential,Acorn Care Providers,5481.28, 12-Jan-2021
28,Revenue,CAHD,North - S117,Permanent Residential,Acorn Care Providers,3978.00, 12-Jan-2021
29,Revenue,CAHD,Jointly Funded H&SC Packages,Permanent Residential,Acorn Care Providers,2142.00, 12-Jan-2021
30,Revenue,CAHD,MH Purchasing - Younger,Permanent Residential,Acorn Care Providers,6382.04, 12-Jan-2021
31,Revenue,CAHD,Jointly Funded H&SC Packages,Permanent Residential,Acorn Care Providers,3436.48, 12-Jan-2021
32,Revenue,CAHD,MH Purchasing - Younger,Permanent Residential,Acorn Care Providers,6266.88, 12-Jan-2021
33,Revenue,CAHD,CSC - Agency Fostering,Foster Parent Allowances,Action for Children,3897.01, 15-Jan-2021
34,Revenue,CAHD,CSC - Agency Fostering,Foster Parent Allowances,Action for Children,2007.19, 15-Jan-2021
35,Revenue,CAHD,CSC - Agency Fostering,Foster Parent Allowances,Action for Children,2007.19, 15-Jan-2021
36,Revenue,CAHD,South - Commissioned Services,Permanent Nursing,Administration And Revenue Centre,8012.35, 12-Jan-2021
37,Revenue,CAHD,South - Commissioned Services,Fees & Charges Income - General,Administration And Revenue Centre,2819.76, 12-Jan-2021
38,Revenue,CAHD,South - Commissioned Services,Permanent Nursing,Administration And Revenue Centre,2789.80, 12-Jan-2021
39,Revenue,CAHD,South Glos Users in South Glos Homes,Permanent Nursing,Administration And Revenue Centre,735.68, 12-Jan-2021
40,Revenue,CAHD,South - Commissioned Services,Permanent Nursing,Administration And Revenue Centre,2445.96, 12-Jan-2021
41,Revenue,CAHD,South - Commissioned Services,Permanent Nursing,Administration And Revenue Centre,2445.96, 12-Jan-2021
42,Revenue,CAHD,South Glos Users in South Glos Homes,Permanent Nursing,Administration And Revenue Centre,735.68, 12-Jan-2021
43,Revenue,CAHD,South - Commissioned Services,Permanent Residential,Administration And Revenue Centre,2511.80, 12-Jan-2021
44,Revenue,CAHD,South Glos Users in South Glos Homes,Permanent Nursing,Administration And Revenue Centre,735.68, 12-Jan-2021
45,Revenue,CAHD,South - Commissioned Services,Permanent Nursing,Administration And Revenue Centre,2949.60, 12-Jan-2021
46,Revenue,CAHD,South Glos Users in South Glos Homes,Permanent Nursing,Administration And Revenue Centre,735.68, 12-Jan-2021
47,Revenue,CAHD,South Glos Users in South Glos Homes,Permanent Nursing,Administration And Revenue Centre,735.68, 12-Jan-2021
48,Revenue,CAHD,South Glos Users in South Glos Homes,Permanent Nursing,Administration And Revenue Centre,735.68, 12-Jan-2021
49,Revenue,CAHD,South Glos Users in South Glos Homes,Permanent Nursing,Administration And Revenue Centre,735.68, 12-Jan-2021
50,Revenue,CAHD,South - Commissioned Services,Permanent Nursing,Administration And Revenue Centre,2949.60, 12-Jan-2021
51,Revenue,CAHD,South Glos Users in South Glos Homes,Permanent Nursing,Administration And Revenue Centre,735.68, 12-Jan-2021
52,Revenue,CAHD,South - Commissioned Services,Permanent Residential,Administration And Revenue Centre,3203.04, 12-Jan-2021
53,Revenue,CAHD,South - Commissioned Services,Fees & Charges Income - General,Administration And Revenue Centre,653.95, 12-Jan-2021
54,Revenue,CAHD,South Glos Users in South Glos Homes,Permanent Nursing,Administration And Revenue Centre,735.68, 12-Jan-2021
55,Revenue,CAHD,South Glos Users in South Glos Homes,Permanent Nursing,Administration And Revenue Centre,735.68, 12-Jan-2021
56,Revenue,CAHD,South - Commissioned Services,Permanent Residential,Administration And Revenue Centre,3366.00, 12-Jan-2021
57,Revenue,CAHD,South - Commissioned Services,Permanent Nursing,Administration And Revenue Centre,2924.56, 12-Jan-2021
58,Revenue,CAHD,South - Commissioned Services,Permanent Residential,Administration And Revenue Centre,3200.00, 12-Jan-2021
59,Revenue,CAHD,North - Community based support,Respite Planned - Residential,Administration And Revenue Centre,2550.00, 12-Jan-2021
60,Revenue,CAHD,South - Commissioned Services,Permanent Nursing,Administration And Revenue Centre,2511.80, 12-Jan-2021
61,Revenue,CAHD,South Glos Users in South Glos Homes,Permanent Nursing,Administration And Revenue Centre,735.68, 12-Jan-2021
62,Revenue,CAHD,South - Commissioned Services,Permanent Nursing,Administration And Revenue Centre,2445.96, 12-Jan-2021
63,Revenue,CAHD,South Glos Users in South Glos Homes,Permanent Nursing,Administration And Revenue Centre,735.68, 12-Jan-2021
64,Revenue,CAHD,South - Commissioned Services,Permanent Nursing,Administration And Revenue Centre,2445.96, 12-Jan-2021
65,Revenue,CAHD,South Glos Users in South Glos Homes,Permanent Nursing,Administration And Revenue Centre,735.68, 12-Jan-2021
66,Revenue,CAHD,South - Commissioned Services,Permanent Residential,Administration And Revenue Centre,3190.56, 12-Jan-2021
67,Revenue,CAHD,South - Commissioned Services,Permanent Nursing,Administration And Revenue Centre,2445.96, 12-Jan-2021
68,Revenue,CAHD,South Glos Users in South Glos Homes,Permanent Nursing,Administration And Revenue Centre,735.68, 12-Jan-2021
69,Revenue,CAHD,North - Community based support,Respite Planned - Nursing,Administration And Revenue Centre,3147.43, 12-Jan-2021
70,Revenue,CAHD,South - Commissioned Services,Permanent Residential,Administration And Revenue Centre,2949.60, 12-Jan-2021
71,Revenue,CAHD,South Glos Users in South Glos Homes,Permanent Nursing,Administration And Revenue Centre,735.68, 12-Jan-2021
72,Revenue,CAHD,Covid - ASC - Infection Control,Grants to Voluntary Bodies,Administration And Revenue Centre,45992.70, 13-Jan-2021
73,Revenue,CAHD,South - Commissioned Services,Other Small Contracts,Advantedge Commercial Finance Limited,1224.72, 15-Jan-2021
74,Revenue,CAHD,South - Commissioned Services,Other Small Contracts,Advantedge Commercial Finance Limited,544.32, 15-Jan-2021
75,Revenue,CAHD,South - Commissioned Services,Other Small Contracts,Advantedge Commercial Finance Limited,850.50, 15-Jan-2021
76,Revenue,CAHD,South - Commissioned Services,Other Small Contracts,Advantedge Commercial Finance Limited,563.76, 15-Jan-2021
77,Revenue,CAHD,South - Commissioned Services,Other Small Contracts,Advantedge Commercial Finance Limited,816.48, 15-Jan-2021
78,Revenue,CAHD,Covid - ASC - Infection Control,Grants to Voluntary Bodies,Advantedge Commercial Finance Limited,5511.27, 29-Jan-2021
79,Revenue,CAHD,South - Commissioned Services,Day Care / Social Activities,Age Concern,634.08, 12-Jan-2021
80,Revenue,CAHD,Central - Commissioned Services,Day Care / Social Activities,Age Concern,546.72, 12-Jan-2021
81,Revenue,CAHD,Central - Commissioned Services,Day Care / Social Activities,Age Concern,546.72, 12-Jan-2021
82,Revenue,CAHD,South - Commissioned Services,Other Small Contracts,Agincare UK Limited,1294.44, 08-Jan-2021
83,Revenue,CAHD,Younger MH non-res purchasing,Other Small Contracts,Agincare UK Limited,115.92, 08-Jan-2021
84,Revenue,CAHD,South - Commissioned Services,Other Small Contracts,Agincare UK Limited,1028.79, 11-Jan-2021
85,Revenue,CAHD,Younger MH non-res purchasing,Other Small Contracts,Agincare UK Limited,115.92, 11-Jan-2021
86,Revenue,CAHD,South - Commissioned Services,Other Small Contracts,Agincare UK Limited,1241.31, 15-Jan-2021
87,Revenue,CAHD,Younger MH non-res purchasing,Other Small Contracts,Agincare UK Limited,154.56, 15-Jan-2021
88,Revenue,CAHD,South - Commissioned Services,Other Small Contracts,Agincare UK Limited,1226.82, 20-Jan-2021
89,Revenue,CAHD,Younger MH non-res purchasing,Other Small Contracts,Agincare UK Limited,154.56, 20-Jan-2021
90,Revenue,CAHD,South - Commissioned Services,Other Small Contracts,Agincare UK Limited,1226.82, 29-Jan-2021
91,Revenue,CAHD,Younger MH non-res purchasing,Other Small Contracts,Agincare UK Limited,154.56, 29-Jan-2021
92,Revenue,CAHD,Covid - ASC - Infection Control,Grants to Voluntary Bodies,Agincare UK Limited,14213.27, 13-Jan-2021
93,Revenue,CAHD,Prison Assessments & Costs,Other Supplies & Services,Agincare UK Limited,2580.00, 08-Jan-2021
94,Revenue,CAHD,Prison Assessments & Costs,Other Supplies & Services,Agincare UK Limited,2762.75, 18-Jan-2021
95,Revenue,CAHD,Statemented Support Payments to OLAs,Other L.A.s - General,Air Balloon Hill Primary After school Holiday Club,1603.84, 25-Jan-2021
96,Revenue,CAHD,Covid 19 -Adult Social Care,Other Small Contracts,AliMo Care Ltd,9.56, 08-Jan-2021
97,Revenue,CAHD,South - Commissioned Services,Other Small Contracts,AliMo Care Ltd,965.56, 08-Jan-2021
98,Revenue,CAHD,North - Community based support,Other Small Contracts,AliMo Care Ltd,119.50, 08-Jan-2021
99,Revenue,CAHD,Covid 19 -Adult Social Care,Other Small Contracts,AliMo Care Ltd,9.56, 13-Jan-2021
100,Revenue,CAHD,South - Commissioned Services,Other Small Contracts,AliMo Care Ltd,774.36, 13-Jan-2021
101,Revenue,CAHD,North - Community based support,Other Small Contracts,AliMo Care Ltd,109.94, 13-Jan-2021
102,Revenue,CAHD,Covid 19 -Adult Social Care,Other Small Contracts,AliMo Care Ltd,9.56, 15-Jan-2021
103,Revenue,CAHD,South - Commissioned Services,Other Small Contracts,AliMo Care Ltd,941.66, 15-Jan-2021
104,Revenue,CAHD,North - Community based support,Other Small Contracts,AliMo Care Ltd,124.28, 15-Jan-2021
105,Revenue,CAHD,Covid 19 -Adult Social Care,Other Small Contracts,AliMo Care Ltd,9.56, 25-Jan-2021
106,Revenue,CAHD,South - Commissioned Services,Other Small Contracts,AliMo Care Ltd,965.56, 25-Jan-2021
107,Revenue,CAHD,North - Community based support,Other Small Contracts,AliMo Care Ltd,114.72, 25-Jan-2021
108,Revenue,CAHD,Covid 19 -Adult Social Care,Other Small Contracts,AliMo Care Ltd,4.78, 25-Jan-2021
109,Revenue,CAHD,South - Commissioned Services,Other Small Contracts,AliMo Care Ltd,951.22, 25-Jan-2021
110,Revenue,CAHD,North - Community based support,Other Small Contracts,AliMo Care Ltd,133.84, 25-Jan-2021
111,Revenue,CAHD,Covid - ASC - Infection Control,Grants to Voluntary Bodies,AliMo Care Ltd,8266.90, 13-Jan-2021
112,Revenue,CAHD,Covid 19 -Adult Social Care,Building Improvements,All Power Limited,11349.00, 20-Jan-2021
113,Revenue,CAHD,North - Community based support,Permanent Nursing,Allambie Court,2320.44, 12-Jan-2021
114,Revenue,CAHD,Emergency Assistance Grant for Food and Essential,Other Transfer Payments,Allpay Limited - Trust Fund,10924.38, 13-Jan-2021
115,Revenue,CAHD,Covid Winter Grant Funding,Other Supplies & Services,Allpay Limited - Trust Fund,30000.00, 25-Jan-2021
116,Revenue,CAHD,Central - Commissioned Services,Permanent Residential,Alvony House Residential Care Home,3000.00, 12-Jan-2021
117,Revenue,CAHD,Tenancy Start Up Scheme,Other Supplies & Services,Andrews Letting & Management,1183.00, 26-Jan-2021
118,Revenue,CAHD,Independent Special Placements - Pre 16,Other Private Contractors,Appleford School,7120.00, 20-Jan-2021
119,Revenue,CAHD,Independent Special Placements - Pre 16,Other Private Contractors,Appleford School,3205.50, 28-Jan-2021
120,Revenue,CAHD,Younger MH non-res purchasing,Supported Living,Archcare Rehab Limited,1957.40, 12-Jan-2021
121,Revenue,CAHD,North - Community based support,Permanent Nursing,Argentum Lodge,4000.00, 12-Jan-2021
122,Revenue,CAHD,South - Commissioned Services,Permanent Residential,Ash View House,5529.44, 12-Jan-2021
123,Revenue,CAHD,Jointly Funded H&SC Packages,Permanent Residential,Ash View House,1133.64, 12-Jan-2021
124,Revenue,CAHD,S117 Placements PCT,Permanent Residential,Ash View House,7707.44, 12-Jan-2021
125,Revenue,CAHD,North - Community based support,Permanent Residential,Ash View House,7099.52, 12-Jan-2021
126,Revenue,CAHD,North - Community based support,Permanent Residential,Ash View House,7120.00, 12-Jan-2021
127,Revenue,CAHD,Section 117 Placements MH Younger,Permanent Residential,Ash View House,5022.60, 12-Jan-2021
128,Revenue,CAHD,Jointly Funded H&SC Packages,Permanent Residential,Ash View House,2152.60, 12-Jan-2021
129,Revenue,CAHD,South - S117,Permanent Residential,Ash View House,6826.64, 12-Jan-2021
130,Revenue,CAHD,South - Commissioned Services,Permanent Residential,Ash View House,6747.84, 12-Jan-2021
131,Revenue,CAHD,Drug and Alcohol Programme,Electricity,Ashville Asset Management Limited,427.07, 14-Jan-2021
132,Revenue,CAHD,CSC - Care Leavers Independent Living,Adults - Family Support,Aspirations Support Bristol Limited,15419.68, 07-Jan-2021
133,Revenue,CAHD,South - Commissioned Services,Adults - Family Support,Ategi Limited,17773.52, 06-Jan-2021
134,Revenue,CAHD,CSC - Vinney Green Secure Unit,R & M by Departments,Atus Systems Limited,744.03, 21-Jan-2021
135,Revenue,CAHD,Independent Special Placements - Pre 16,Other Private Contractors,Aurora Hedgeway School,15457.42, 08-Jan-2021
136,Revenue,CAHD,Independent Special Placements - Post 16,Other Private Contractors,Aurora Hedgeway School,15457.42, 08-Jan-2021
137,Revenue,CAHD,Independent Special Placements - Pre 16,Other Private Contractors,Aurora Hedgeway School,15457.42, 08-Jan-2021
138,Revenue,CAHD,Independent Special Placements - Pre 16,Other Private Contractors,Aurora Hedgeway School,15457.42, 08-Jan-2021
139,Revenue,CAHD,Independent Special Placements - Pre 16,Other Private Contractors,Aurora Hedgeway School,22705.54, 08-Jan-2021
140,Revenue,CAHD,Independent Special Placements - Pre 16,Other Private Contractors,Aurora Hedgeway School,15457.42, 20-Jan-2021
141,Revenue,CAHD,Independent Special Placements - Pre 16,Other Private Contractors,Aurora Hedgeway School,18589.84, 20-Jan-2021
142,Revenue,CAHD,Independent Special Placements - Pre 16,Other Private Contractors,Aurora Hedgeway School,18287.20, 20-Jan-2021
143,Revenue,CAHD,Schools Specific Grant Income,Other Public Bodies,Aurora Hedgeway School,1200.00, 08-Jan-2021
144,Revenue,CAHD,South - Commissioned Services,Permanent Residential,Autism Specialised Care Homes,6506.88, 12-Jan-2021
145,Revenue,CAHD,Younger Adult Mental Health,Health Services (Third Party Payments),Avon & Wiltshire Mental Health,1693.33, 07-Jan-2021
146,Revenue,CAHD,CSC - LAC - Counselling & Therapy,Other Supplies & Services,Avon & Wiltshire Mental Health,15000.00, 26-Jan-2021
147,Revenue,CAHD,Sexual Health,Licences,Avon Local Pharmaceutical Committee,3672.00, 19-Jan-2021
148,Revenue,CAHD,South - Commissioned Services,Permanent Nursing,Avon Lodge Care Centre,4341.36, 12-Jan-2021
149,Revenue,CAHD,South Glos Users in South Glos Homes,Permanent Nursing,Avon Lodge Care Centre,735.68, 12-Jan-2021
150,Revenue,CAHD,South Glos Users in South Glos Homes,Permanent Nursing,Avon Lodge Care Centre,735.68, 12-Jan-2021
151,Revenue,CAHD,South - Commissioned Services,Permanent Nursing,Avon Lodge Care Centre,4311.16, 12-Jan-2021
152,Revenue,CAHD,South Glos Users in South Glos Homes,Permanent Nursing,Avon Lodge Care Centre,735.68, 12-Jan-2021
153,Revenue,CAHD,South Glos Users in South Glos Homes,Permanent Nursing,Avon Lodge Care Centre,735.68, 12-Jan-2021
154,Revenue,CAHD,South - Commissioned Services,Permanent Nursing,Avon Lodge Care Centre,4537.76, 12-Jan-2021
155,Revenue,CAHD,South Glos Users in South Glos Homes,Permanent Nursing,Avon Lodge Care Centre,735.68, 12-Jan-2021
156,Revenue,CAHD,Covid 19- Spend on behalf of NHS,Respite Planned - Nursing,Avon Lodge Care Centre,3375.00, 12-Jan-2021
157,Revenue,CAHD,South Glos Users in South Glos Homes,Permanent Nursing,Avon Lodge Care Centre,735.68, 12-Jan-2021
158,Revenue,CAHD,South Glos Users in South Glos Homes,Permanent Nursing,Avon Lodge Care Centre,735.68, 12-Jan-2021
159,Revenue,CAHD,Covid 19- Spend on behalf of NHS,Respite Planned - Residential,Avon Lodge Care Centre,3875.00, 12-Jan-2021
160,Revenue,CAHD,Covid 19- Spend on behalf of NHS,Respite Planned - Residential,Avon Lodge Care Centre,3500.00, 12-Jan-2021
161,Revenue,CAHD,South - Commissioned Services,Permanent Nursing,Avon Lodge Care Centre,3448.20, 12-Jan-2021
162,Revenue,CAHD,South Glos Users in South Glos Homes,Permanent Nursing,Avon Lodge Care Centre,735.68, 12-Jan-2021
163,Revenue,CAHD,South - Commissioned Services,Permanent Nursing,Avon Lodge Care Centre,4311.16, 12-Jan-2021
164,Revenue,CAHD,South Glos Users in South Glos Homes,Permanent Nursing,Avon Lodge Care Centre,735.68, 12-Jan-2021
165,Revenue,CAHD,Central - Commissioned Services,Respite Planned - Nursing,Avon Lodge Care Centre,5066.43, 12-Jan-2021
166,Revenue,CAHD,South - Commissioned Services,Permanent Nursing,Avon Lodge Care Centre,4347.88, 12-Jan-2021
167,Revenue,CAHD,South Glos Users in South Glos Homes,Permanent Nursing,Avon Lodge Care Centre,735.68, 12-Jan-2021
168,Revenue,CAHD,South Glos Users in South Glos Homes,Permanent Nursing,Avon Lodge Care Centre,735.68, 12-Jan-2021
169,Revenue,CAHD,South Glos Users in South Glos Homes,Permanent Nursing,Avon Lodge Care Centre,735.68, 12-Jan-2021
170,Revenue,CAHD,South - Commissioned Services,Permanent Nursing,Avon Lodge Care Centre,4403.84, 12-Jan-2021
171,Revenue,CAHD,South Glos Users in South Glos Homes,Permanent Nursing,Avon Lodge Care Centre,735.68, 12-Jan-2021
172,Revenue,CAHD,South - Commissioned Services,Permanent Nursing,Avon Lodge Care Centre,4311.16, 12-Jan-2021
173,Revenue,CAHD,South Glos Users in South Glos Homes,Permanent Nursing,Avon Lodge Care Centre,735.68, 12-Jan-2021
174,Revenue,CAHD,Covid 19- Spend on behalf of NHS,Respite Planned - Nursing,Avon Lodge Care Centre,3500.00, 12-Jan-2021
175,Revenue,CAHD,Covid 19- Spend on behalf of NHS,Respite Planned - Nursing,Avon Lodge Care Centre,2125.00, 12-Jan-2021
176,Revenue,CAHD,South Glos Users in South Glos Homes,Permanent Nursing,Avon Lodge Care Centre,735.68, 12-Jan-2021
177,Revenue,CAHD,Central - Commissioned Services,Permanent Nursing,Avon Lodge Care Centre,3884.80, 12-Jan-2021
178,Revenue,CAHD,South Glos Users in South Glos Homes,Permanent Nursing,Avon Lodge Care Centre,735.68, 12-Jan-2021
179,Revenue,CAHD,Central - Commissioned Services,Permanent Residential,Avon Lodge Care Centre,14207.14, 12-Jan-2021
180,Revenue,CAHD,Central - Commissioned Services,Permanent Residential,Avon Lodge Care Centre,2550.00, 12-Jan-2021
181,Revenue,CAHD,Central - Commissioned Services,Permanent Residential,Avon Lodge Care Centre,850.00, 12-Jan-2021
182,Revenue,CAHD,Central - Commissioned Services,Permanent Nursing,Avon Lodge Care Centre,14207.14, 12-Jan-2021
183,Revenue,CAHD,Central - Commissioned Services,Permanent Nursing,Avon Lodge Care Centre,3400.00, 12-Jan-2021
184,Revenue,CAHD,North - Community based support,Permanent Nursing,Avon Lodge Care Centre,3060.00, 12-Jan-2021
185,Revenue,CAHD,North - Community based support,Permanent Residential,Avon Lodge Care Centre,3460.00, 12-Jan-2021
186,Revenue,CAHD,South - Commissioned Services,Permanent Nursing,Avon Lodge Care Centre,4530.04, 12-Jan-2021
187,Revenue,CAHD,South Glos Users in South Glos Homes,Permanent Nursing,Avon Lodge Care Centre,735.68, 12-Jan-2021
188,Revenue,CAHD,South - S117,Permanent Nursing,Avon Lodge Care Centre,3885.48, 12-Jan-2021
189,Revenue,CAHD,South Glos Users in South Glos Homes,Permanent Nursing,Avon Lodge Care Centre,735.68, 12-Jan-2021
190,Revenue,CAHD,Covid 19- Spend on behalf of NHS,Respite Planned - Nursing,Avon Lodge Care Centre,875.00, 12-Jan-2021
191,Revenue,CAHD,South - Commissioned Services,Permanent Residential,Avon Lodge Care Centre,3060.00, 12-Jan-2021
192,Revenue,CAHD,South Glos Users in South Glos Homes,Permanent Nursing,Avon Lodge Care Centre,735.68, 12-Jan-2021
193,Revenue,CAHD,South Glos Users in South Glos Homes,Permanent Nursing,Avon Lodge Care Centre,735.68, 12-Jan-2021
194,Revenue,CAHD,South - Commissioned Services,Permanent Residential,Avon Valley Care Home,4000.00, 12-Jan-2021
195,Revenue,CAHD,South - Commissioned Services,Permanent Residential,Avon Valley Care Home,3771.43, 12-Jan-2021
196,Revenue,CAHD,South - Commissioned Services,Permanent Residential,Avon Valley Care Home,1028.57, 12-Jan-2021
197,Revenue,CAHD,South - Commissioned Services,Permanent Residential,Avon Valley Care Home,3960.00, 12-Jan-2021
198,Revenue,CAHD,South - Commissioned Services,Permanent Residential,Avon Valley Care Home,4000.00, 12-Jan-2021
199,Revenue,CAHD,South - Commissioned Services,Permanent Residential,Avon Valley Care Home,4800.00, 12-Jan-2021
200,Revenue,CAHD,South - Commissioned Services,Permanent Residential,Avon Valley Care Home,3960.00, 12-Jan-2021
201,Revenue,CAHD,South - Commissioned Services,Permanent Residential,Avon Valley Care Home,4000.00, 12-Jan-2021
202,Revenue,CAHD,North - Community based support,Permanent Residential,Avon Valley Care Home,3600.00, 12-Jan-2021
203,Revenue,CAHD,Central - Commissioned Services,Permanent Residential,Avon Valley Care Home,4000.00, 12-Jan-2021
204,Revenue,CAHD,North - Community based support,Permanent Residential,Avonmere Care Home,4680.00, 12-Jan-2021
205,Revenue,CAHD,Covid 19- Spend on behalf of NHS,Respite Planned - Residential,Avonmere Care Home,4400.00, 12-Jan-2021
206,Revenue,CAHD,North - Community based support,Permanent Residential,Avonmere Care Home,4386.80, 12-Jan-2021
207,Revenue,CAHD,North - Community based support,Permanent Residential,Avonmere Care Home,5420.00, 12-Jan-2021
208,Revenue,CAHD,North - Community based support,Permanent Residential,Avonmere Care Home,4892.00, 12-Jan-2021
209,Revenue,CAHD,Covid 19 -Adult Social Care,Respite Planned - Residential,Avonmere Care Home,4400.00, 12-Jan-2021
210,Revenue,CAHD,North - Community based support,Permanent Residential,Avonmere Care Home,4420.00, 12-Jan-2021
211,Revenue,CAHD,North - Community based support,Permanent Residential,Avonmere Care Home,4892.00, 12-Jan-2021
212,Revenue,CAHD,North - Community based support,Permanent Residential,Avonmere Care Home,4600.00, 12-Jan-2021
213,Revenue,CAHD,North - Community based support,Permanent Residential,Avonmere Care Home,4892.00, 12-Jan-2021
214,Revenue,CAHD,Covid 19- Spend on behalf of NHS,Respite Planned - Residential,Avonmere Care Home,4400.00, 12-Jan-2021
215,Revenue,CAHD,CSC - Special Guardianship Orders,Special Payments,Individual,5574.96, 29-Jan-2021
216,Revenue,CAHD,Covid 19- Spend on behalf of NHS,Respite Planned - Residential,Badminton Place,7200.00, 12-Jan-2021
217,Revenue,CAHD,Covid 19- Spend on behalf of NHS,Respite Planned - Nursing,Badminton Place,6857.14, 12-Jan-2021
218,Revenue,CAHD,Covid 19- Spend on behalf of NHS,Respite Planned - Nursing,Badminton Place,7200.00, 12-Jan-2021
219,Revenue,CAHD,Covid 19- Spend on behalf of NHS,Respite Planned - Nursing,Badminton Place,7200.00, 12-Jan-2021
220,Revenue,CAHD,Covid 19- Spend on behalf of NHS,Respite Planned - Nursing,Badminton Place,2400.00, 12-Jan-2021
221,Revenue,CAHD,Covid 19- Spend on behalf of NHS,Respite Planned - Nursing,Badminton Place,4285.71, 12-Jan-2021
222,Revenue,CAHD,Covid 19- Spend on behalf of NHS,Respite Planned - Residential,Badminton Place,7200.00, 12-Jan-2021
223,Revenue,CAHD,Covid 19- Spend on behalf of NHS,Respite Planned - Nursing,Badminton Place,1485.71, 12-Jan-2021
224,Revenue,CAHD,Covid 19- Spend on behalf of NHS,Respite Planned - Nursing,Badminton Place,6128.57, 12-Jan-2021
225,Revenue,CAHD,Covid 19- Spend on behalf of NHS,Respite Planned - Nursing,Badminton Place,7800.00, 12-Jan-2021
226,Revenue,CAHD,Covid 19- Spend on behalf of NHS,Respite Planned - Nursing,Badminton Place,7242.86, 12-Jan-2021
227,Revenue,CAHD,Covid 19- Spend on behalf of NHS,Respite Planned - Nursing,Badminton Place,557.14, 12-Jan-2021
228,Revenue,CAHD,Covid 19- Spend on behalf of NHS,Respite Planned - Nursing,Badminton Place,5200.00, 12-Jan-2021
229,Revenue,CAHD,Covid 19- Spend on behalf of NHS,Respite Planned - Nursing,Badminton Place,7057.14, 12-Jan-2021
230,Revenue,CAHD,Covid 19- Spend on behalf of NHS,Respite Planned - Nursing,Badminton Place,742.86, 12-Jan-2021
231,Revenue,CAHD,Covid 19- Spend on behalf of NHS,Respite Planned - Nursing,Badminton Place,6871.43, 12-Jan-2021
232,Revenue,CAHD,Covid 19- Spend on behalf of NHS,Respite Planned - Nursing,Badminton Place,2785.71, 12-Jan-2021
233,Revenue,CAHD,Covid 19- Spend on behalf of NHS,Respite Planned - Nursing,Badminton Place,7800.00, 12-Jan-2021
234,Revenue,CAHD,Covid 19- Spend on behalf of NHS,Respite Planned - Nursing,Badminton Place,1542.86, 12-Jan-2021
235,Revenue,CAHD,Covid 19- Spend on behalf of NHS,Respite Planned - Nursing,Badminton Place,7028.57, 12-Jan-2021
236,Revenue,CAHD,CSC - Family Group Conferencing,Grants to Voluntary Bodies,Barnardo Services Limited,5422.75, 21-Jan-2021
237,Revenue,CAHD,Children & Young People�s Health,Other Small Contracts,Barnardos,7650.00, 29-Jan-2021
238,Revenue,CAHD,Independent Special Placements - Post 16,Other Private Contractors,Bath Road Priory,81363.29, 14-Jan-2021
239,Revenue,CAHD,South Glos Users in South Glos Homes,Permanent Nursing,Beaufort Grange Care Home,735.68, 12-Jan-2021
240,Revenue,CAHD,South Glos Users in South Glos Homes,Permanent Nursing,Beaufort Grange Care Home,735.68, 12-Jan-2021
241,Revenue,CAHD,South Glos Users in South Glos Homes,Permanent Nursing,Beaufort Grange Care Home,735.68, 12-Jan-2021
242,Revenue,CAHD,South Glos Users in South Glos Homes,Permanent Nursing,Beaufort Grange Care Home,735.68, 12-Jan-2021
243,Revenue,CAHD,South Glos Users in South Glos Homes,Permanent Nursing,Beaufort Grange Care Home,735.68, 12-Jan-2021
244,Revenue,CAHD,South Glos Users in South Glos Homes,Permanent Nursing,Beaufort Grange Care Home,735.68, 12-Jan-2021
245,Revenue,CAHD,South Glos Users in South Glos Homes,Permanent Nursing,Beaufort Grange Care Home,735.68, 12-Jan-2021
246,Revenue,CAHD,South Glos Users in South Glos Homes,Permanent Nursing,Beaufort Grange Care Home,735.68, 12-Jan-2021
247,Revenue,CAHD,North - S117,Permanent Nursing,Beaufort Grange Care Home,4877.04, 12-Jan-2021
248,Revenue,CAHD,South Glos Users in South Glos Homes,Permanent Nursing,Beaufort Grange Care Home,735.68, 12-Jan-2021
249,Revenue,CAHD,South Glos Users in South Glos Homes,Permanent Nursing,Beaufort Grange Care Home,735.68, 12-Jan-2021
250,Revenue,CAHD,South Glos Users in South Glos Homes,Permanent Nursing,Beaufort Grange Care Home,735.68, 12-Jan-2021
251,Revenue,CAHD,Central - Commissioned Services,Permanent Nursing,Beaufort Grange Care Home,11784.00, 12-Jan-2021
252,Revenue,CAHD,South Glos Users in South Glos Homes,Permanent Nursing,Beaufort Grange Care Home,735.68, 12-Jan-2021
253,Revenue,CAHD,South Glos Users in South Glos Homes,Permanent Nursing,Beaufort Grange Care Home,735.68, 12-Jan-2021
254,Revenue,CAHD,South Glos Users in South Glos Homes,Permanent Nursing,Beaufort Grange Care Home,735.68, 12-Jan-2021
255,Revenue,CAHD,South Glos Users in South Glos Homes,Permanent Nursing,Beaufort Grange Care Home,735.68, 12-Jan-2021
256,Revenue,CAHD,South Glos Users in South Glos Homes,Permanent Nursing,Beaufort Grange Care Home,735.68, 12-Jan-2021
257,Revenue,CAHD,South Glos Users in South Glos Homes,Permanent Nursing,Beaufort Grange Care Home,735.68, 12-Jan-2021
258,Revenue,CAHD,South Glos Users in South Glos Homes,Permanent Nursing,Beaufort Grange Care Home,735.68, 12-Jan-2021
259,Revenue,CAHD,South Glos Users in South Glos Homes,Permanent Nursing,Beaufort Grange Care Home,735.68, 12-Jan-2021
260,Revenue,CAHD,South Glos Users in South Glos Homes,Permanent Nursing,Beaufort Grange Care Home,735.68, 12-Jan-2021
261,Revenue,CAHD,South Glos Users in South Glos Homes,Permanent Nursing,Beaufort Grange Care Home,735.68, 12-Jan-2021
262,Revenue,CAHD,South Glos Users in South Glos Homes,Permanent Nursing,Beaufort Grange Care Home,735.68, 12-Jan-2021
263,Revenue,CAHD,South Glos Users in South Glos Homes,Permanent Nursing,Beaufort Grange Care Home,735.68, 12-Jan-2021
264,Revenue,CAHD,South Glos Users in South Glos Homes,Permanent Nursing,Beaufort Grange Care Home,735.68, 12-Jan-2021
265,Revenue,CAHD,South Glos Users in South Glos Homes,Permanent Nursing,Beaufort Grange Care Home,735.68, 12-Jan-2021
266,Revenue,CAHD,South Glos Users in South Glos Homes,Permanent Nursing,Beaufort Grange Care Home,735.68, 12-Jan-2021
267,Revenue,CAHD,Central - Commissioned Services,Permanent Nursing,Beaufort Grange Care Home,5500.00, 12-Jan-2021
268,Revenue,CAHD,South Glos Users in South Glos Homes,Permanent Nursing,Beaufort Grange Care Home,735.68, 12-Jan-2021
269,Revenue,CAHD,South Glos Users in South Glos Homes,Permanent Nursing,Beaufort Grange Care Home,735.68, 12-Jan-2021
270,Revenue,CAHD,South Glos Users in South Glos Homes,Permanent Nursing,Beaufort Grange Care Home,735.68, 12-Jan-2021
271,Revenue,CAHD,South Glos Users in South Glos Homes,Permanent Nursing,Beaufort Grange Care Home,735.68, 12-Jan-2021
272,Revenue,CAHD,South Glos Users in South Glos Homes,Permanent Nursing,Beaufort Grange Care Home,735.68, 12-Jan-2021
273,Revenue,CAHD,South Glos Users in South Glos Homes,Permanent Nursing,Beaufort Grange Care Home,735.68, 12-Jan-2021
274,Revenue,CAHD,South Glos Users in South Glos Homes,Permanent Nursing,Beaufort Grange Care Home,735.68, 12-Jan-2021
275,Revenue,CAHD,South Glos Users in South Glos Homes,Permanent Nursing,Beaufort Grange Care Home,735.68, 12-Jan-2021
276,Revenue,CAHD,South Glos Users in South Glos Homes,Permanent Nursing,Beaufort Grange Care Home,735.68, 12-Jan-2021
277,Revenue,CAHD,South Glos Users in South Glos Homes,Permanent Nursing,Beaufort Grange Care Home,735.68, 12-Jan-2021
278,Revenue,CAHD,South Glos Users in South Glos Homes,Permanent Nursing,Beaufort Grange Care Home,735.68, 12-Jan-2021
279,Revenue,CAHD,South Glos Users in South Glos Homes,Permanent Nursing,Beaufort Grange Care Home,735.68, 12-Jan-2021
280,Revenue,CAHD,South Glos Users in South Glos Homes,Permanent Nursing,Beaufort Grange Care Home,735.68, 12-Jan-2021
281,Revenue,CAHD,South Glos Users in South Glos Homes,Permanent Nursing,Beaufort Grange Care Home,735.68, 12-Jan-2021
282,Revenue,CAHD,South Glos Users in South Glos Homes,Permanent Nursing,Beaufort Grange Care Home,735.68, 12-Jan-2021
283,Revenue,CAHD,South Glos Users in South Glos Homes,Permanent Nursing,Beaufort Grange Care Home,735.68, 12-Jan-2021
284,Revenue,CAHD,South Glos Users in South Glos Homes,Permanent Nursing,Beaufort Grange Care Home,735.68, 12-Jan-2021
285,Revenue,CAHD,Central - Commissioned Services,Permanent Residential,Beaufort House,2924.56, 12-Jan-2021
286,Revenue,CAHD,Central - Commissioned Services,Permanent Residential,Beaufort House,2831.12, 12-Jan-2021
287,Revenue,CAHD,North - Community based support,Permanent Residential,Beaufort House,2622.84, 12-Jan-2021
288,Revenue,CAHD,South - Commissioned Services,Permanent Residential,Beaufort House,2587.56, 12-Jan-2021
289,Revenue,CAHD,Central - Commissioned Services,Permanent Residential,Beaufort House,3800.00, 12-Jan-2021
290,Revenue,CAHD,Central - Commissioned Services,Permanent Residential,Beaufort House,3800.00, 12-Jan-2021
291,Revenue,CAHD,North - Community based support,Permanent Residential,Beaufort House,4000.00, 12-Jan-2021
292,Revenue,CAHD,North - Community based support,Permanent Residential,Beaufort House,2753.92, 12-Jan-2021
293,Revenue,CAHD,Central - Commissioned Services,Permanent Residential,Beaufort House,3600.00, 12-Jan-2021
294,Revenue,CAHD,Central - Commissioned Services,Permanent Residential,Beaufort House,3200.00, 12-Jan-2021
295,Revenue,CAHD,Central - Commissioned Services,Permanent Residential,Beaufort House,3600.00, 12-Jan-2021
296,Revenue,CAHD,Central - Commissioned Services,Permanent Residential,Beaufort House,3600.00, 12-Jan-2021
297,Revenue,CAHD,Central - Bed Purchasing and Direct Payments,Permanent Residential,Beaufort House,3400.00, 12-Jan-2021
298,Revenue,CAHD,Covid - ASC - Infection Control,Grants to Voluntary Bodies,Beaufort House,9756.03, 29-Jan-2021
299,Revenue,CAHD,South - Commissioned Services,Permanent Residential,Beech House,3018.84, 12-Jan-2021
300,Revenue,CAHD,South Glos Users in South Glos Homes,Permanent Nursing,Beech House,735.68, 12-Jan-2021
301,Revenue,CAHD,North - Community based support,Permanent Nursing,Beech House,4365.60, 12-Jan-2021
302,Revenue,CAHD,South Glos Users in South Glos Homes,Permanent Nursing,Beech House,735.68, 12-Jan-2021
303,Revenue,CAHD,Bed Purchasing - Southmead Hospital,Permanent Residential,Beech House,4280.00, 12-Jan-2021
304,Revenue,CAHD,South Glos Users in South Glos Homes,Permanent Nursing,Beech House,735.68, 12-Jan-2021
305,Revenue,CAHD,South Glos Users in South Glos Homes,Permanent Nursing,Beech House,735.68, 12-Jan-2021
306,Revenue,CAHD,South Glos Users in South Glos Homes,Permanent Nursing,Beech House,735.68, 12-Jan-2021
307,Revenue,CAHD,South Glos Users in South Glos Homes,Permanent Nursing,Beech House,735.68, 12-Jan-2021
308,Revenue,CAHD,South Glos Users in South Glos Homes,Permanent Nursing,Beech House,735.68, 12-Jan-2021
309,Revenue,CAHD,South Glos Users in South Glos Homes,Permanent Nursing,Beech House,735.68, 12-Jan-2021
310,Revenue,CAHD,North - Community based support,Permanent Nursing,Beech House,4280.00, 12-Jan-2021
311,Revenue,CAHD,South Glos Users in South Glos Homes,Permanent Nursing,Beech House,735.68, 12-Jan-2021
312,Revenue,CAHD,North - Community based support,Permanent Nursing,Beech House,12840.00, 12-Jan-2021
313,Revenue,CAHD,North - Community based support,Permanent Nursing,Beech House,4280.00, 12-Jan-2021
314,Revenue,CAHD,South Glos Users in South Glos Homes,Permanent Nursing,Beech House,735.68, 12-Jan-2021
315,Revenue,CAHD,South Glos Users in South Glos Homes,Permanent Nursing,Beech House,735.68, 12-Jan-2021
316,Revenue,CAHD,North - Community based support,Permanent Nursing,Beech House,4308.04, 12-Jan-2021
317,Revenue,CAHD,South Glos Users in South Glos Homes,Permanent Nursing,Beech House,735.68, 12-Jan-2021
318,Revenue,CAHD,South Glos Users in South Glos Homes,Permanent Nursing,Beech House,735.68, 12-Jan-2021
319,Revenue,CAHD,South Glos Users in South Glos Homes,Permanent Nursing,Beech House,735.68, 12-Jan-2021
320,Revenue,CAHD,Bed Purchasing - Southmead Hospital,Permanent Nursing,Beech House,4360.00, 12-Jan-2021
321,Revenue,CAHD,South Glos Users in South Glos Homes,Permanent Nursing,Beech House,735.68, 12-Jan-2021
322,Revenue,CAHD,South Glos Users in South Glos Homes,Permanent Nursing,Beech House,735.68, 12-Jan-2021
323,Revenue,CAHD,South Glos Users in South Glos Homes,Permanent Nursing,Beech House,735.68, 12-Jan-2021
324,Revenue,CAHD,Covid - ASC - Infection Control,Grants to Voluntary Bodies,Beech House,19163.63, 13-Jan-2021
325,Revenue,CAHD,South Glos Users in South Glos Homes,Permanent Nursing,Beechwood Care Home,1044.00, 12-Jan-2021
326,Revenue,CAHD,Independent Special Placements - Pre 16,Other Private Contractors,Belgrave School,4845.00, 14-Jan-2021
327,Revenue,CAHD,Independent Special Placements - Pre 16,Other Private Contractors,Belgrave School,6796.00, 14-Jan-2021
328,Revenue,CAHD,Independent Special Placements - Pre 16,Other Private Contractors,Belgrave School,7283.33, 14-Jan-2021
329,Revenue,CAHD,Independent Special Placements - Pre 16,Other Private Contractors,Belgrave School,5688.50, 14-Jan-2021
330,Revenue,CAHD,First Contact Team,Office Supplies & Equipment,Benmor Medical UK Ltd,650.00, 11-Jan-2021
331,Revenue,CAHD,First Contact Team,Office Supplies & Equipment,Benmor Medical UK Ltd,2850.00, 15-Jan-2021
332,Revenue,CAHD,First Contact Team,Office Supplies & Equipment,Benmor Medical UK Ltd,745.00, 20-Jan-2021
333,Revenue,CAHD,South - S117,Permanent Residential,Bidna House,3692.64, 12-Jan-2021
334,Revenue,CAHD,Placements OLA Special Schools and RB,Other L.A.s - General,Blaise High School,834.87, 25-Jan-2021
335,Revenue,CAHD,Statemented Support Payments to OLAs,Other L.A.s - General,Blaise High School,907.83, 25-Jan-2021
336,Revenue,CAHD,Central - Commissioned Services,Other Small Contracts,Blakehill Healthcare Ltd,3981.25, 15-Jan-2021
337,Revenue,CAHD,South - Commissioned Services,Other Small Contracts,Blakehill Healthcare Ltd,3944.93, 15-Jan-2021
338,Revenue,CAHD,North - Community based support,Other Small Contracts,Blakehill Healthcare Ltd,693.75, 15-Jan-2021
339,Revenue,CAHD,Covid 19 -Adult Social Care,Other Small Contracts,Blakehill Healthcare Ltd,18.75, 15-Jan-2021
340,Revenue,CAHD,Central - Commissioned Services,Other Small Contracts,Blakehill Healthcare Ltd,3918.75, 15-Jan-2021
341,Revenue,CAHD,South - Commissioned Services,Other Small Contracts,Blakehill Healthcare Ltd,4357.43, 15-Jan-2021
342,Revenue,CAHD,North - Community based support,Other Small Contracts,Blakehill Healthcare Ltd,675.00, 15-Jan-2021
343,Revenue,CAHD,Central - Commissioned Services,Other Small Contracts,Blakehill Healthcare Ltd,3800.00, 15-Jan-2021
344,Revenue,CAHD,South - Commissioned Services,Other Small Contracts,Blakehill Healthcare Ltd,4219.93, 15-Jan-2021
345,Revenue,CAHD,North - Community based support,Other Small Contracts,Blakehill Healthcare Ltd,687.50, 15-Jan-2021
346,Revenue,CAHD,Pathway 1 - Re-Ablement Home Care,Other Small Contracts,Blakehill Healthcare Ltd,1025.00, 26-Jan-2021
347,Revenue,CAHD,Covid - ASC - Infection Control,Grants to Voluntary Bodies,Blakehill Healthcare Ltd,4205.97, 29-Jan-2021
348,Revenue,CAHD,South Glos Users in South Glos Homes,Permanent Nursing,Blossom Fields Nursing Home,998.42, 12-Jan-2021
349,Revenue,CAHD,South Glos Users in South Glos Homes,Permanent Nursing,Blossom Fields Nursing Home,735.68, 12-Jan-2021
350,Revenue,CAHD,South Glos Users in South Glos Homes,Permanent Nursing,Blossom Fields Nursing Home,735.68, 12-Jan-2021
351,Revenue,CAHD,South Glos Users in South Glos Homes,Permanent Nursing,Blossom Fields Nursing Home,735.68, 12-Jan-2021
352,Revenue,CAHD,North - Community based support,Permanent Nursing,Blossom Fields Nursing Home,4770.40, 12-Jan-2021
353,Revenue,CAHD,South Glos Users in South Glos Homes,Permanent Nursing,Blossom Fields Nursing Home,735.68, 12-Jan-2021
354,Revenue,CAHD,North - Community based support,Permanent Nursing,Blossom Fields Nursing Home,4352.80, 12-Jan-2021
355,Revenue,CAHD,South Glos Users in South Glos Homes,Permanent Nursing,Blossom Fields Nursing Home,735.68, 12-Jan-2021
356,Revenue,CAHD,South Glos Users in South Glos Homes,Permanent Nursing,Blossom Fields Nursing Home,735.68, 12-Jan-2021
357,Revenue,CAHD,South - Commissioned Services,Permanent Nursing,Blossom Fields Nursing Home,4501.36, 12-Jan-2021
358,Revenue,CAHD,South Glos Users in South Glos Homes,Permanent Nursing,Blossom Fields Nursing Home,735.68, 12-Jan-2021
359,Revenue,CAHD,South Glos Users in South Glos Homes,Permanent Nursing,Blossom Fields Nursing Home,735.68, 12-Jan-2021
360,Revenue,CAHD,North - Community based support,Permanent Nursing,Blossom Fields Nursing Home,4799.88, 12-Jan-2021
361,Revenue,CAHD,South Glos Users in South Glos Homes,Permanent Nursing,Blossom Fields Nursing Home,735.68, 12-Jan-2021
362,Revenue,CAHD,South Glos Users in South Glos Homes,Permanent Nursing,Blossom Fields Nursing Home,735.68, 12-Jan-2021
363,Revenue,CAHD,South Glos Users in South Glos Homes,Permanent Nursing,Blossom Fields Nursing Home,735.68, 12-Jan-2021
364,Revenue,CAHD,North - Community based support,Permanent Nursing,Blossom Fields Nursing Home,4800.00, 12-Jan-2021
365,Revenue,CAHD,South Glos Users in South Glos Homes,Permanent Nursing,Blossom Fields Nursing Home,735.68, 12-Jan-2021
366,Revenue,CAHD,South Glos Users in South Glos Homes,Permanent Nursing,Blossom Fields Nursing Home,3652.13, 12-Jan-2021
367,Revenue,CAHD,South Glos Users in South Glos Homes,Permanent Nursing,Blossom Fields Nursing Home,735.68, 12-Jan-2021
368,Revenue,CAHD,South Glos Users in South Glos Homes,Permanent Nursing,Blossom Fields Nursing Home,735.68, 12-Jan-2021
369,Revenue,CAHD,South Glos Users in South Glos Homes,Permanent Nursing,Blossom Fields Nursing Home,735.68, 12-Jan-2021
370,Revenue,CAHD,South - Commissioned Services,Permanent Nursing,Blossom Fields Nursing Home,4039.20, 12-Jan-2021
371,Revenue,CAHD,South Glos Users in South Glos Homes,Permanent Nursing,Blossom Fields Nursing Home,735.68, 12-Jan-2021
372,Revenue,CAHD,South Glos Users in South Glos Homes,Permanent Nursing,Blossom Fields Nursing Home,735.68, 12-Jan-2021
373,Revenue,CAHD,South Glos Users in South Glos Homes,Permanent Nursing,Blossom Fields Nursing Home,735.68, 12-Jan-2021
374,Revenue,CAHD,Central - Commissioned Services,Permanent Nursing,Blossom Fields Nursing Home,4039.20, 12-Jan-2021
375,Revenue,CAHD,South Glos Users in South Glos Homes,Permanent Nursing,Blossom Fields Nursing Home,735.68, 12-Jan-2021
376,Revenue,CAHD,South Glos Users in South Glos Homes,Permanent Nursing,Blossom Fields Nursing Home,735.68, 12-Jan-2021
377,Revenue,CAHD,South Glos Users in South Glos Homes,Permanent Nursing,Blossom Fields Nursing Home,735.68, 12-Jan-2021
378,Revenue,CAHD,South Glos Users in South Glos Homes,Permanent Nursing,Blossom Fields Nursing Home,735.68, 12-Jan-2021
379,Revenue,CAHD,South Glos Users in South Glos Homes,Permanent Nursing,Blossom Fields Nursing Home,735.68, 12-Jan-2021
380,Revenue,CAHD,Central - Commissioned Services,Permanent Nursing,Blossom Fields Nursing Home,4400.00, 12-Jan-2021
381,Revenue,CAHD,South Glos Users in South Glos Homes,Permanent Nursing,Blossom Fields Nursing Home,735.68, 12-Jan-2021
382,Revenue,CAHD,North - Community based support,Permanent Nursing,Blossom Fields Nursing Home,4039.20, 12-Jan-2021
383,Revenue,CAHD,South Glos Users in South Glos Homes,Permanent Nursing,Blossom Fields Nursing Home,735.68, 12-Jan-2021
384,Revenue,CAHD,South Glos Users in South Glos Homes,Permanent Nursing,Blossom Fields Nursing Home,735.68, 12-Jan-2021
385,Revenue,CAHD,South Glos Users in South Glos Homes,Permanent Nursing,Blossom Fields Nursing Home,735.68, 12-Jan-2021
386,Revenue,CAHD,North - Community based support,Permanent Nursing,Blossom Fields Nursing Home,3707.64, 12-Jan-2021
387,Revenue,CAHD,South Glos Users in South Glos Homes,Permanent Nursing,Blossom Fields Nursing Home,735.68, 12-Jan-2021
388,Revenue,CAHD,Central - Commissioned Services,Permanent Residential,Blossom Fields Nursing Home,4039.20, 12-Jan-2021
389,Revenue,CAHD,South - bed purchasing and direct  payments,Permanent Nursing,Blossom Fields Nursing Home,4039.20, 12-Jan-2021
390,Revenue,CAHD,South Glos Users in South Glos Homes,Permanent Nursing,Blossom Fields Nursing Home,735.68, 12-Jan-2021
391,Revenue,CAHD,North - Community based support,Permanent Nursing,Blossom Fields Nursing Home,4800.00, 12-Jan-2021
392,Revenue,CAHD,South Glos Users in South Glos Homes,Permanent Nursing,Blossom Fields Nursing Home,735.68, 12-Jan-2021
393,Revenue,CAHD,South Glos Users in South Glos Homes,Permanent Nursing,Blossom Fields Nursing Home,735.68, 12-Jan-2021
394,Revenue,CAHD,South Glos Users in South Glos Homes,Permanent Nursing,Blossom Fields Nursing Home,735.68, 12-Jan-2021
395,Revenue,CAHD,Central - Commissioned Services,Permanent Nursing,Blossom Fields Nursing Home,4039.20, 12-Jan-2021
396,Revenue,CAHD,South Glos Users in South Glos Homes,Permanent Nursing,Blossom Fields Nursing Home,735.68, 12-Jan-2021
397,Revenue,CAHD,South Glos Users in South Glos Homes,Permanent Nursing,Blossom Fields Nursing Home,735.68, 12-Jan-2021
398,Revenue,CAHD,Central - Commissioned Services,Permanent Residential,Blossom Fields Nursing Home,4039.20, 12-Jan-2021
399,Revenue,CAHD,South - Commissioned Services,Permanent Nursing,Blossom Fields Nursing Home,4683.04, 12-Jan-2021
400,Revenue,CAHD,South Glos Users in South Glos Homes,Permanent Nursing,Blossom Fields Nursing Home,735.68, 12-Jan-2021
401,Revenue,CAHD,Central - Commissioned Services,Permanent Nursing,Blossom Fields Nursing Home,5008.60, 12-Jan-2021
402,Revenue,CAHD,South Glos Users in South Glos Homes,Permanent Nursing,Blossom Fields Nursing Home,735.68, 12-Jan-2021
403,Revenue,CAHD,Central - Commissioned Services,Permanent Nursing,Blossom Fields Nursing Home,4039.20, 12-Jan-2021
404,Revenue,CAHD,South - Commissioned Services,Permanent Nursing,Blossom Fields Nursing Home,3854.40, 12-Jan-2021
405,Revenue,CAHD,South Glos Users in South Glos Homes,Permanent Nursing,Blossom Fields Nursing Home,735.68, 12-Jan-2021
406,Revenue,CAHD,South - Commissioned Services,Permanent Nursing,Blossom Fields Nursing Home,4039.20, 12-Jan-2021
407,Revenue,CAHD,South Glos Users in South Glos Homes,Permanent Nursing,Blossom Fields Nursing Home,735.68, 12-Jan-2021
408,Revenue,CAHD,Central - Commissioned Services,Permanent Nursing,Blossom Fields Nursing Home,4039.20, 12-Jan-2021
409,Revenue,CAHD,South Glos Users in South Glos Homes,Permanent Nursing,Blossom Fields Nursing Home,735.68, 12-Jan-2021
410,Revenue,CAHD,North - Community based support,Permanent Nursing,Blossom Fields Nursing Home,4039.20, 12-Jan-2021
411,Revenue,CAHD,South Glos Users in South Glos Homes,Permanent Nursing,Blossom Fields Nursing Home,735.68, 12-Jan-2021
412,Revenue,CAHD,Central - Commissioned Services,Permanent Nursing,Blossom Fields Nursing Home,4039.20, 12-Jan-2021
413,Revenue,CAHD,South Glos Users in South Glos Homes,Permanent Nursing,Blossom Fields Nursing Home,735.68, 12-Jan-2021
414,Revenue,CAHD,South Glos Users in South Glos Homes,Permanent Nursing,Blossom Fields Nursing Home,735.68, 12-Jan-2021
415,Revenue,CAHD,Central - Commissioned Services,Permanent Nursing,Blossom Fields Nursing Home,4683.04, 12-Jan-2021
416,Revenue,CAHD,South Glos Users in South Glos Homes,Permanent Nursing,Blossom Fields Nursing Home,735.68, 12-Jan-2021
417,Revenue,CAHD,Central - Commissioned Services,Permanent Nursing,Blossom Fields Nursing Home,4800.00, 12-Jan-2021
418,Revenue,CAHD,South Glos Users in South Glos Homes,Permanent Nursing,Blossom Fields Nursing Home,735.68, 12-Jan-2021
419,Revenue,CAHD,North - Community based support,Permanent Nursing,Blossom Fields Nursing Home,4500.56, 12-Jan-2021
420,Revenue,CAHD,South Glos Users in South Glos Homes,Permanent Nursing,Blossom Fields Nursing Home,735.68, 12-Jan-2021
421,Revenue,CAHD,South - Commissioned Services,Permanent Residential,Blossom Fields Nursing Home,5000.00, 12-Jan-2021
422,Revenue,CAHD,South Glos Users in South Glos Homes,Permanent Nursing,Blossom Fields Nursing Home,1655.28, 12-Jan-2021
423,Revenue,CAHD,South Glos Users in South Glos Homes,Permanent Nursing,Blossom Fields Nursing Home,735.68, 12-Jan-2021
424,Revenue,CAHD,North - Community based support,Permanent Nursing,Blossom Fields Nursing Home,4920.00, 12-Jan-2021
425,Revenue,CAHD,South Glos Users in South Glos Homes,Permanent Nursing,Blossom Fields Nursing Home,735.68, 12-Jan-2021
426,Revenue,CAHD,South Glos Users in South Glos Homes,Permanent Nursing,Blossom Fields Nursing Home,735.68, 12-Jan-2021
427,Revenue,CAHD,Central - Commissioned Services,Permanent Nursing,Blossom Fields Nursing Home,4675.44, 12-Jan-2021
428,Revenue,CAHD,South Glos Users in South Glos Homes,Permanent Nursing,Blossom Fields Nursing Home,735.68, 12-Jan-2021
429,Revenue,CAHD,South Glos Users in South Glos Homes,Permanent Nursing,Blossom Fields Nursing Home,1445.09, 12-Jan-2021
430,Revenue,CAHD,South Glos Users in South Glos Homes,Permanent Nursing,Blossom Fields Nursing Home,735.68, 12-Jan-2021
431,Revenue,CAHD,North - Community based support,Permanent Nursing,Blossom Fields Nursing Home,5200.00, 12-Jan-2021
432,Revenue,CAHD,South Glos Users in South Glos Homes,Permanent Nursing,Blossom Fields Nursing Home,735.68, 12-Jan-2021
433,Revenue,CAHD,South Glos Users in South Glos Homes,Permanent Nursing,Blossom Fields Nursing Home,735.68, 12-Jan-2021
434,Revenue,CAHD,South Glos Users in South Glos Homes,Permanent Nursing,Blossom Fields Nursing Home,735.68, 12-Jan-2021
435,Revenue,CAHD,North - S117,Permanent Residential,Blossom Fields Nursing Home,4800.00, 12-Jan-2021
436,Revenue,CAHD,South Glos Users in South Glos Homes,Permanent Nursing,Blossom Fields Nursing Home,735.68, 12-Jan-2021
437,Revenue,CAHD,South Glos Users in South Glos Homes,Permanent Nursing,Blossom Fields Nursing Home,735.68, 12-Jan-2021
438,Revenue,CAHD,North - bed purchasing and direct  payments,Permanent Nursing,Blossom Fields Nursing Home,5000.00, 12-Jan-2021
439,Revenue,CAHD,South Glos Users in South Glos Homes,Permanent Nursing,Blossom Fields Nursing Home,735.68, 12-Jan-2021
440,Revenue,CAHD,South Glos Users in South Glos Homes,Permanent Nursing,Blossom Fields Nursing Home,735.68, 12-Jan-2021
441,Revenue,CAHD,North - Community based support,Permanent Nursing,Blossom Fields Nursing Home,4039.20, 12-Jan-2021
442,Revenue,CAHD,North - S117,Permanent Residential,Blossom Fields Nursing Home,5000.00, 12-Jan-2021
443,Revenue,CAHD,South Glos Users in South Glos Homes,Permanent Nursing,Blossom Fields Nursing Home,735.68, 12-Jan-2021
444,Revenue,CAHD,South Glos Users in South Glos Homes,Permanent Nursing,Blossom Fields Nursing Home,735.68, 12-Jan-2021
445,Revenue,CAHD,South Glos Users in South Glos Homes,Permanent Nursing,Blossom Fields Nursing Home,735.68, 12-Jan-2021
446,Revenue,CAHD,Central - Commissioned Services,Permanent Nursing,Blossom Fields Nursing Home,4710.40, 12-Jan-2021
447,Revenue,CAHD,South Glos Users in South Glos Homes,Permanent Nursing,Blossom Fields Nursing Home,735.68, 12-Jan-2021
448,Revenue,CAHD,South Glos Users in South Glos Homes,Permanent Nursing,Blossom Fields Nursing Home,735.68, 12-Jan-2021
449,Revenue,CAHD,Central - Bed Purchasing and Direct Payments,Permanent Residential,Blossom Fields Nursing Home,5000.00, 12-Jan-2021
450,Revenue,CAHD,South Glos Users in South Glos Homes,Permanent Nursing,Blossom Fields Nursing Home,735.68, 12-Jan-2021
451,Revenue,CAHD,South Glos Users in South Glos Homes,Permanent Nursing,Blossom Fields Nursing Home,735.68, 12-Jan-2021
452,Revenue,CAHD,South Glos Users in South Glos Homes,Permanent Nursing,Blossom Fields Nursing Home,735.68, 12-Jan-2021
453,Revenue,CAHD,South Glos Users in South Glos Homes,Permanent Nursing,Blossom Fields Nursing Home,735.68, 12-Jan-2021
454,Revenue,CAHD,South Glos Users in South Glos Homes,Permanent Nursing,Blossom Fields Nursing Home,735.68, 12-Jan-2021
455,Revenue,CAHD,South Glos Users in South Glos Homes,Permanent Nursing,Blossom Fields Nursing Home,735.68, 12-Jan-2021
456,Revenue,CAHD,South - Commissioned Services,Respite Planned - Nursing,Blossom Fields Nursing Home,12983.14, 12-Jan-2021
457,Revenue,CAHD,South Glos Users in South Glos Homes,Permanent Nursing,Blossom Fields Nursing Home,735.68, 12-Jan-2021
458,Revenue,CAHD,Covid 19- Spend on behalf of NHS,Respite Planned - Nursing,Blossom Fields Nursing Home,4039.20, 12-Jan-2021
459,Revenue,CAHD,Covid 19- Spend on behalf of NHS,Respite Planned - Nursing,Blossom Fields Nursing Home,2740.89, 12-Jan-2021
460,Revenue,CAHD,South Glos Users in South Glos Homes,Permanent Nursing,Blossom Fields Nursing Home,735.68, 12-Jan-2021
461,Revenue,CAHD,North - Community based support,Permanent Nursing,Blossom Fields Nursing Home,4039.20, 12-Jan-2021
462,Revenue,CAHD,Central - Commissioned Services,Permanent Nursing,Blossom Fields Nursing Home,4039.20, 12-Jan-2021
463,Revenue,CAHD,South Glos Users in South Glos Homes,Permanent Nursing,Blossom Fields Nursing Home,735.68, 12-Jan-2021
464,Revenue,CAHD,South - S117,Permanent Nursing,Blossom Fields Nursing Home,4386.80, 12-Jan-2021
465,Revenue,CAHD,South Glos Users in South Glos Homes,Permanent Nursing,Blossom Fields Nursing Home,735.68, 12-Jan-2021
466,Revenue,CAHD,South Glos Users in South Glos Homes,Permanent Nursing,Blossom Fields Nursing Home,735.68, 12-Jan-2021
467,Revenue,CAHD,Central - Commissioned Services,Permanent Nursing,Blossom Fields Nursing Home,5000.00, 12-Jan-2021
468,Revenue,CAHD,South Glos Users in South Glos Homes,Permanent Nursing,Blossom Fields Nursing Home,1734.10, 12-Jan-2021
469,Revenue,CAHD,South Glos Users in South Glos Homes,Permanent Nursing,Blossom Fields Nursing Home,735.68, 12-Jan-2021
470,Revenue,CAHD,South - Commissioned Services,Permanent Nursing,Blossom Fields Nursing Home,4022.92, 12-Jan-2021
471,Revenue,CAHD,South Glos Users in South Glos Homes,Permanent Nursing,Blossom Fields Nursing Home,735.68, 12-Jan-2021
472,Revenue,CAHD,Central - Commissioned Services,Permanent Nursing,Blossom Fields Nursing Home,4039.20, 12-Jan-2021
473,Revenue,CAHD,South Glos Users in South Glos Homes,Permanent Nursing,Blossom Fields Nursing Home,735.68, 12-Jan-2021
474,Revenue,CAHD,South Glos Users in South Glos Homes,Permanent Nursing,Blossom Fields Nursing Home,735.68, 12-Jan-2021
475,Revenue,CAHD,North - Community based support,Permanent Nursing,Blossom Fields Nursing Home,4683.00, 12-Jan-2021
476,Revenue,CAHD,South Glos Users in South Glos Homes,Permanent Nursing,Blossom Fields Nursing Home,735.68, 12-Jan-2021
477,Revenue,CAHD,Statemented Support Payments to OLAs,Other L.A.s - General,Blue Coat CE VA Primary School,837.09, 25-Jan-2021
478,Revenue,CAHD,Statemented Support Payments to OLAs,Other L.A.s - General,Blue Coat CE VA Primary School,1292.50, 25-Jan-2021
479,Revenue,CAHD,North - Community based support,Permanent Residential,Bluebells,11098.80, 12-Jan-2021
480,Revenue,CAHD,Pathway 1 - Re-Ablement Home Care,Other Small Contracts,Bluebird Care (South Gloucestershire),619.10, 20-Jan-2021
481,Revenue,CAHD,Pathway 1 - Re-Ablement Home Care,Other Small Contracts,Bluebird Care (South Gloucestershire),611.55, 11-Jan-2021
482,Revenue,CAHD,Central - Commissioned Services,Other Small Contracts,Bluebird Care (South Gloucestershire),14580.32, 27-Jan-2021
483,Revenue,CAHD,South - Commissioned Services,Other Small Contracts,Bluebird Care (South Gloucestershire),3514.29, 27-Jan-2021
484,Revenue,CAHD,North - Community based support,Other Small Contracts,Bluebird Care (South Gloucestershire),3660.59, 27-Jan-2021
485,Revenue,CAHD,Resilience Team,Other Small Contracts,Bluebird Care (South Gloucestershire),203.85, 27-Jan-2021
486,Revenue,CAHD,Central - Commissioned Services,Other Small Contracts,Bluebird Care (South Gloucestershire),14654.14, 06-Jan-2021
487,Revenue,CAHD,South - Commissioned Services,Other Small Contracts,Bluebird Care (South Gloucestershire),3446.34, 06-Jan-2021
488,Revenue,CAHD,North - Community based support,Other Small Contracts,Bluebird Care (South Gloucestershire),3887.24, 06-Jan-2021
489,Revenue,CAHD,Resilience Team,Other Small Contracts,Bluebird Care (South Gloucestershire),211.40, 06-Jan-2021
490,Revenue,CAHD,Central - Commissioned Services,Other Small Contracts,Bluebird Care (South Gloucestershire),13207.80, 08-Jan-2021
491,Revenue,CAHD,South - Commissioned Services,Other Small Contracts,Bluebird Care (South Gloucestershire),3204.74, 08-Jan-2021
492,Revenue,CAHD,North - Community based support,Other Small Contracts,Bluebird Care (South Gloucestershire),3388.34, 08-Jan-2021
493,Revenue,CAHD,Resilience Team,Other Small Contracts,Bluebird Care (South Gloucestershire),120.80, 08-Jan-2021
494,Revenue,CAHD,Central - Commissioned Services,Other Small Contracts,Bluebird Care (South Gloucestershire),13511.68, 13-Jan-2021
495,Revenue,CAHD,South - Commissioned Services,Other Small Contracts,Bluebird Care (South Gloucestershire),3054.94, 13-Jan-2021
496,Revenue,CAHD,North - Community based support,Other Small Contracts,Bluebird Care (South Gloucestershire),3372.49, 13-Jan-2021
497,Revenue,CAHD,Resilience Team,Other Small Contracts,Bluebird Care (South Gloucestershire),120.80, 13-Jan-2021
498,Revenue,CAHD,Central - Commissioned Services,Other Small Contracts,Bluebird Care (South Gloucestershire),14782.64, 18-Jan-2021
499,Revenue,CAHD,South - Commissioned Services,Other Small Contracts,Bluebird Care (South Gloucestershire),3258.64, 18-Jan-2021
500,Revenue,CAHD,North - Community based support,Other Small Contracts,Bluebird Care (South Gloucestershire),4573.81, 18-Jan-2021
501,Revenue,CAHD,Resilience Team,Other Small Contracts,Bluebird Care (South Gloucestershire),113.25, 18-Jan-2021
502,Revenue,CAHD,Central - Commissioned Services,Other Small Contracts,Bluebird Care (South Gloucestershire),14341.72, 25-Jan-2021
503,Revenue,CAHD,South - Commissioned Services,Other Small Contracts,Bluebird Care (South Gloucestershire),3083.94, 25-Jan-2021
504,Revenue,CAHD,North - Community based support,Other Small Contracts,Bluebird Care (South Gloucestershire),4872.18, 25-Jan-2021
505,Revenue,CAHD,Resilience Team,Other Small Contracts,Bluebird Care (South Gloucestershire),120.80, 25-Jan-2021
506,Revenue,CAHD,S28A cases,Permanent Residential,Bradbury House,6505.16, 12-Jan-2021
507,Revenue,CAHD,North - Community based support,Permanent Residential,Bradbury House,10016.24, 12-Jan-2021
508,Revenue,CAHD,Jointly Funded H&SC Packages,Permanent Residential,Bradbury House,8244.08, 12-Jan-2021
509,Revenue,CAHD,North - S117,Permanent Residential,Bradbury House,5969.84, 12-Jan-2021
510,Revenue,CAHD,South - Commissioned Services,Permanent Residential,Bradbury House,10168.08, 12-Jan-2021
511,Revenue,CAHD,Social Lettings Agency,Rent,Individual,699.32, 25-Jan-2021
512,Revenue,CAHD,Social Lettings Agency,Fees - General,Individual,20.57, 25-Jan-2021
513,Revenue,CAHD,North - Community based support,Permanent Residential,Bridge House Care Home,2848.00, 12-Jan-2021
514,Revenue,CAHD,North - Community based support,Permanent Residential,Bridge House Care Home,2678.04, 12-Jan-2021
515,Revenue,CAHD,South - Commissioned Services,Respite Planned - Residential,Bridge House Care Home,1668.57, 12-Jan-2021
516,Revenue,CAHD,Covid - ASC - Infection Control,Grants to Voluntary Bodies,Bridge House Care Home,5574.87, 13-Jan-2021
517,Revenue,CAHD,North - Community based support,Permanent Residential,Bridgwater Court Care Home,10773.64, 12-Jan-2021
518,Revenue,CAHD,Statemented Support Academies,Other Public Bodies,Bristol & South Gloucestershire UTC,1556.28, 25-Jan-2021
519,Revenue,CAHD,Statemented Support Academies,Other Public Bodies,Bristol & South Gloucestershire UTC,907.83, 25-Jan-2021
520,Revenue,CAHD,High Risk Group Funding,Other Public Bodies,Bristol & South Gloucestershire UTC,2565.00, 22-Jan-2021
521,Revenue,CAHD,Statemented Support Payments to OLAs,Other L.A.s - General,Bristol Cathedral Choir School,942.58, 25-Jan-2021
522,Revenue,CAHD,Statemented Support Payments to OLAs,Other L.A.s - General,Bristol Cathedral Choir School,880.08, 25-Jan-2021
523,Revenue,CAHD,Covid 19 -Adult Social Care,Contribns & Reimbs - Other LAs,Bristol City Council,191088.00, 14-Jan-2021
524,Revenue,CAHD,Placements OLA Special Schools and RB,Other L.A.s - General,Bristol City Council - Schools,1981.43, 25-Jan-2021
525,Revenue,CAHD,Placements OLA Special Schools and RB,Other L.A.s - General,Bristol City Council - Schools,1981.43, 25-Jan-2021
526,Revenue,CAHD,Placements OLA Special Schools and RB,Other L.A.s - General,Bristol City Council - Schools,646.00, 25-Jan-2021
527,Revenue,CAHD,Placements OLA Special Schools and RB,Other L.A.s - General,Bristol City Council - Schools,1268.03, 25-Jan-2021
528,Revenue,CAHD,Statemented Support Payments to OLAs,Other L.A.s - General,Bristol City Council - Schools,1625.17, 25-Jan-2021
529,Revenue,CAHD,Statemented Support Payments to OLAs,Other L.A.s - General,Bristol City Council - Schools,897.42, 25-Jan-2021
530,Revenue,CAHD,Placements OLA Special Schools and RB,Other L.A.s - General,Bristol City Council - Schools,792.40, 25-Jan-2021
531,Revenue,CAHD,Placements OLA Special Schools and RB,Other L.A.s - General,Bristol City Council - Schools,1268.03, 25-Jan-2021
532,Revenue,CAHD,Statemented Support Payments to OLAs,Other L.A.s - General,Bristol City Council - Schools,554.13, 25-Jan-2021
533,Revenue,CAHD,Placements OLA Special Schools and RB,Other L.A.s - General,Bristol City Council - Schools,2774.72, 25-Jan-2021
534,Revenue,CAHD,Placements OLA Special Schools and RB,Other L.A.s - General,Bristol City Council - Schools,646.00, 25-Jan-2021
535,Revenue,CAHD,Placements OLA Special Schools and RB,Other L.A.s - General,Bristol City Council - Schools,2774.72, 25-Jan-2021
536,Revenue,CAHD,Placements OLA Special Schools and RB,Other L.A.s - General,Bristol City Council - Schools,2774.72, 25-Jan-2021
537,Revenue,CAHD,Statemented Support Payments to OLAs,Other L.A.s - General,Bristol City Council - Schools,787.54, 25-Jan-2021
538,Revenue,CAHD,Statemented Support Payments to OLAs,Other L.A.s - General,Bristol City Council - Schools,635.33, 25-Jan-2021
539,Revenue,CAHD,Placements OLA Special Schools and RB,Other L.A.s - General,Bristol City Council - Schools,1981.43, 25-Jan-2021
540,Revenue,CAHD,Placements OLA Special Schools and RB,Other L.A.s - General,Bristol City Council - Schools,646.00, 25-Jan-2021
541,Revenue,CAHD,Placements OLA Special Schools and RB,Other L.A.s - General,Bristol City Council - Schools,1268.03, 25-Jan-2021
542,Revenue,CAHD,Placements OLA Special Schools and RB,Other L.A.s - General,Bristol City Council - Schools,1981.43, 25-Jan-2021
543,Revenue,CAHD,Placements OLA Special Schools and RB,Other L.A.s - General,Bristol City Council - Schools,1268.03, 25-Jan-2021
544,Revenue,CAHD,Placements OLA Special Schools and RB,Other L.A.s - General,Bristol City Council - Schools,1268.03, 25-Jan-2021
545,Revenue,CAHD,Placements OLA Special Schools and RB,Other L.A.s - General,Bristol City Council - Schools,1981.43, 25-Jan-2021
546,Revenue,CAHD,Placements OLA Special Schools and RB,Other L.A.s - General,Bristol City Council - Schools,1707.44, 25-Jan-2021
547,Revenue,CAHD,Placements OLA Special Schools and RB,Other L.A.s - General,Bristol City Council - Schools,1906.68, 25-Jan-2021
548,Revenue,CAHD,Placements OLA Special Schools and RB,Other L.A.s - General,Bristol City Council - Schools,792.40, 25-Jan-2021
549,Revenue,CAHD,Placements OLA Special Schools and RB,Other L.A.s - General,Bristol City Council - Schools,2774.72, 25-Jan-2021
550,Revenue,CAHD,Placements OLA Special Schools and RB,Other L.A.s - General,Bristol City Council - Schools,1981.43, 25-Jan-2021
551,Revenue,CAHD,Placements OLA Special Schools and RB,Other L.A.s - General,Bristol City Council - Schools,2774.72, 25-Jan-2021
552,Revenue,CAHD,Placements OLA Special Schools and RB,Other L.A.s - General,Bristol City Council - Schools,792.40, 25-Jan-2021
553,Revenue,CAHD,Placements OLA Special Schools and RB,Other L.A.s - General,Bristol City Council - Schools,792.40, 25-Jan-2021
554,Revenue,CAHD,Placements OLA Special Schools and RB,Other L.A.s - General,Bristol City Council - Schools,1981.43, 25-Jan-2021
555,Revenue,CAHD,Placements OLA Special Schools and RB,Other L.A.s - General,Bristol City Council - Schools,646.00, 25-Jan-2021
556,Revenue,CAHD,Placements OLA Special Schools and RB,Other L.A.s - General,Bristol City Council - Schools,792.58, 25-Jan-2021
557,Revenue,CAHD,Placements OLA Special Schools and RB,Other L.A.s - General,Bristol City Council - Schools,2774.72, 25-Jan-2021
558,Revenue,CAHD,Placements OLA Special Schools and RB,Other L.A.s - General,Bristol City Council - Schools,1981.43, 25-Jan-2021
559,Revenue,CAHD,Placements OLA Special Schools and RB,Other L.A.s - General,Bristol City Council - Schools,646.00, 25-Jan-2021
560,Revenue,CAHD,Placements OLA Special Schools and RB,Other L.A.s - General,Bristol City Council - Schools,792.40, 25-Jan-2021
561,Revenue,CAHD,Placements OLA Special Schools and RB,Other L.A.s - General,Bristol City Council - Schools,2774.72, 25-Jan-2021
562,Revenue,CAHD,Placements OLA Special Schools and RB,Other L.A.s - General,Bristol City Council - Schools,646.00, 25-Jan-2021
563,Revenue,CAHD,Placements OLA Special Schools and RB,Other L.A.s - General,Bristol City Council - Schools,1585.16, 25-Jan-2021
564,Revenue,CAHD,Placements OLA Special Schools and RB,Other L.A.s - General,Bristol City Council - Schools,516.77, 25-Jan-2021
565,Revenue,CAHD,Placements OLA Special Schools and RB,Other L.A.s - General,Bristol City Council - Schools,1268.03, 25-Jan-2021
566,Revenue,CAHD,Placements OLA Special Schools and RB,Other L.A.s - General,Bristol City Council - Schools,1268.03, 25-Jan-2021
567,Revenue,CAHD,Placements OLA Special Schools and RB,Other L.A.s - General,Bristol City Council - Schools,1981.43, 25-Jan-2021
568,Revenue,CAHD,Placements OLA Special Schools and RB,Other L.A.s - General,Bristol City Council - Schools,646.00, 25-Jan-2021
569,Revenue,CAHD,Placements OLA Special Schools and RB,Other L.A.s - General,Bristol City Council - Schools,2774.72, 25-Jan-2021
570,Revenue,CAHD,Placements OLA Special Schools and RB,Other L.A.s - General,Bristol City Council - Schools,1268.03, 25-Jan-2021
571,Revenue,CAHD,Placements OLA Special Schools and RB,Other L.A.s - General,Bristol City Council - Schools,1268.03, 25-Jan-2021
572,Revenue,CAHD,Statemented Support Payments to OLAs,Other L.A.s - General,Broadlands Academy,1332.27, 25-Jan-2021
573,Revenue,CAHD,Statemented Support Payments to OLAs,Other L.A.s - General,Broadlands Academy,835.17, 25-Jan-2021
574,Revenue,CAHD,North - Community based support,Permanent Residential,Brockhills Farm,3300.00, 12-Jan-2021
575,Revenue,CAHD,South Glos Users in South Glos Homes,Permanent Nursing,Brunelcare,814.50, 22-Jan-2021
576,Revenue,CAHD,South Glos Users in South Glos Homes,Permanent Nursing,Brunelcare,814.50, 22-Jan-2021
577,Revenue,CAHD,South Glos Users in South Glos Homes,Permanent Nursing,Brunelcare,814.50, 22-Jan-2021
578,Revenue,CAHD,South Glos Users in South Glos Homes,Permanent Nursing,Brunelcare,814.50, 22-Jan-2021
579,Revenue,CAHD,South Glos Users in South Glos Homes,Permanent Nursing,Brunelcare,814.50, 22-Jan-2021
580,Revenue,CAHD,South Glos Users in South Glos Homes,Permanent Nursing,Brunelcare,814.50, 22-Jan-2021
581,Revenue,CAHD,South Glos Users in South Glos Homes,Permanent Nursing,Brunelcare,814.50, 22-Jan-2021
582,Revenue,CAHD,South Glos Users in South Glos Homes,Permanent Nursing,Brunelcare,814.50, 22-Jan-2021
583,Revenue,CAHD,South Glos Users in South Glos Homes,Permanent Nursing,Brunelcare,814.50, 22-Jan-2021
584,Revenue,CAHD,South Glos Users in South Glos Homes,Permanent Nursing,Brunelcare,814.50, 22-Jan-2021
585,Revenue,CAHD,South Glos Users in South Glos Homes,Permanent Nursing,Brunelcare,761.95, 22-Jan-2021
586,Revenue,CAHD,South Glos Users in South Glos Homes,Permanent Nursing,Brunelcare,814.50, 22-Jan-2021
587,Revenue,CAHD,South Glos Users in South Glos Homes,Permanent Nursing,Brunelcare,814.50, 22-Jan-2021
588,Revenue,CAHD,North - S117,Permanent Nursing,Brunelcare,3742.45, 22-Jan-2021
589,Revenue,CAHD,North - S117,Permanent Nursing,Brunelcare,3742.45, 22-Jan-2021
590,Revenue,CAHD,South - Commissioned Services,Permanent Nursing,Brunelcare,3742.45, 22-Jan-2021
591,Revenue,CAHD,South - Commissioned Services,Permanent Nursing,Brunelcare,2717.59, 22-Jan-2021
592,Revenue,CAHD,South - Commissioned Services,Permanent Nursing,Brunelcare,2889.24, 22-Jan-2021
593,Revenue,CAHD,South - Commissioned Services,Permanent Nursing,Brunelcare,3010.76, 22-Jan-2021
594,Revenue,CAHD,South - Commissioned Services,Permanent Nursing,Brunelcare,2530.00, 22-Jan-2021
595,Revenue,CAHD,South - Commissioned Services,Permanent Nursing,Brunelcare,3117.45, 22-Jan-2021
596,Revenue,CAHD,South - Commissioned Services,Permanent Nursing,Brunelcare,2154.99, 22-Jan-2021
597,Revenue,CAHD,Central - Commissioned Services,Permanent Nursing,Brunelcare,3070.46, 22-Jan-2021
598,Revenue,CAHD,South - Commissioned Services,Respite Planned - Nursing,Brunelcare,1910.98, 22-Jan-2021
599,Revenue,CAHD,North - Community based support,Permanent Nursing,Brunelcare,3742.45, 22-Jan-2021
600,Revenue,CAHD,North - Community based support,Permanent Nursing,Brunelcare,2994.11, 22-Jan-2021
601,Revenue,CAHD,North - Community based support,Permanent Nursing,Brunelcare,2983.04, 22-Jan-2021
602,Revenue,CAHD,Central - Commissioned Services,Respite Planned - Nursing,Brunelcare,1468.56, 22-Jan-2021
603,Revenue,CAHD,Central - Commissioned Services,Respite Planned - Nursing,Brunelcare,965.79, 22-Jan-2021
604,Revenue,CAHD,Central - Commissioned Services,Other Small Contracts,Brunelcare,258.64, 13-Jan-2021
605,Revenue,CAHD,South - Commissioned Services,Other Small Contracts,Brunelcare,13522.48, 13-Jan-2021
606,Revenue,CAHD,North - Community based support,Other Small Contracts,Brunelcare,366.00, 13-Jan-2021
607,Revenue,CAHD,Central - Commissioned Services,Other Small Contracts,Brunelcare,278.16, 06-Jan-2021
608,Revenue,CAHD,South - Commissioned Services,Other Small Contracts,Brunelcare,16123.52, 06-Jan-2021
609,Revenue,CAHD,North - Community based support,Other Small Contracts,Brunelcare,351.36, 06-Jan-2021
610,Revenue,CAHD,Central - Commissioned Services,Other Small Contracts,Brunelcare,297.68, 11-Jan-2021
611,Revenue,CAHD,South - Commissioned Services,Other Small Contracts,Brunelcare,16284.56, 11-Jan-2021
612,Revenue,CAHD,North - Community based support,Other Small Contracts,Brunelcare,385.52, 11-Jan-2021
613,Revenue,CAHD,Central - Commissioned Services,Other Small Contracts,Brunelcare,268.40, 29-Jan-2021
614,Revenue,CAHD,South - Commissioned Services,Other Small Contracts,Brunelcare,15576.96, 29-Jan-2021
615,Revenue,CAHD,North - Community based support,Other Small Contracts,Brunelcare,361.12, 29-Jan-2021
616,Revenue,CAHD,Central - Commissioned Services,Other Small Contracts,Brunelcare,278.16, 29-Jan-2021
617,Revenue,CAHD,South - Commissioned Services,Other Small Contracts,Brunelcare,16172.32, 29-Jan-2021
618,Revenue,CAHD,North - Community based support,Other Small Contracts,Brunelcare,370.88, 29-Jan-2021
619,Revenue,CAHD,Covid - ASC - Infection Control,Grants to Voluntary Bodies,Brunelcare,14904.49, 21-Jan-2021
620,Revenue,CAHD,North - S117,Permanent Residential,Buckland Care,3600.00, 12-Jan-2021
621,Revenue,CAHD,Early Years Inclusion Fund,Other Public Bodies,Butterflies (Bristol) Limited,1400.00, 07-Jan-2021
622,Revenue,CAHD,Early Years Inclusion Fund,Other Public Bodies,Butterflies (Bristol) Limited,650.00, 18-Jan-2021
623,Revenue,CAHD,Training - Adult Services,Training Expenses,BW Training & Coaching Ltd,600.00, 21-Jan-2021
624,Revenue,CAHD,CSC - Vinney Green Secure Unit,R & M by Departments,BWS Standfast Fire & Security Systems,1922.00, 15-Jan-2021
625,Revenue,CAHD,CSC - Vinney Green Secure Unit,R & M by Departments,BWS Standfast Fire & Security Systems,900.00, 29-Jan-2021
626,Revenue,CAHD,CSC - Agency Fostering,Foster Parent Allowances,By the Bridge Ltd,4360.15, 29-Jan-2021
627,Revenue,CAHD,CSC - Agency Fostering,Foster Parent Allowances,By the Bridge Ltd,4242.66, 29-Jan-2021
628,Revenue,CAHD,Social Lettings Agency,Rent,Individual,710.96, 26-Jan-2021
629,Revenue,CAHD,Social Lettings Agency,Fees - General,Individual,16.16, 26-Jan-2021
630,Revenue,CAHD,Homeless - Private Sector Leasing,Prop.Serv. General Repairs,C R Windows Avon Limited,675.00, 20-Jan-2021
631,Revenue,CAHD,CSC - Special Guardianship Orders,Special Payments,Individual,726.29, 29-Jan-2021
632,Revenue,CAHD,CSC - Vinney Green Secure Unit,R & M by Departments,C W Jones Carpet & Flooring Limited,2433.00, 15-Jan-2021
633,Revenue,CAHD,North - Community based support,Permanent Nursing,Clevedon Court Nursing Home,3448.16, 12-Jan-2021
634,Revenue,CAHD,Statemented Support Payments to OLAs,Other L.A.s - General,Cabot Learning Federation,3088.98, 25-Jan-2021
635,Revenue,CAHD,Statemented Support Academies,Other Public Bodies,Cabot Learning Federation,918.71, 25-Jan-2021
636,Revenue,CAHD,Statemented Support Academies,Other Public Bodies,Cabot Learning Federation,1202.39, 25-Jan-2021
637,Revenue,CAHD,Statemented Support Academies,Other Public Bodies,Cabot Learning Federation,908.00, 25-Jan-2021
638,Revenue,CAHD,Statemented Support Academies,Other Public Bodies,Cabot Learning Federation,1666.67, 25-Jan-2021
639,Revenue,CAHD,Statemented Support Academies,Other Public Bodies,Cabot Learning Federation,1103.25, 25-Jan-2021
640,Revenue,CAHD,Statemented Support Academies,Other Public Bodies,Cabot Learning Federation,907.83, 25-Jan-2021
641,Revenue,CAHD,Statemented Support Academies,Other Public Bodies,Cabot Learning Federation,1899.58, 25-Jan-2021
642,Revenue,CAHD,Statemented Support Academies,Other Public Bodies,Cabot Learning Federation,788.22, 25-Jan-2021
643,Revenue,CAHD,Statemented Support Academies,Other Public Bodies,Cabot Learning Federation,957.92, 25-Jan-2021
644,Revenue,CAHD,Statemented Support Academies,Other Public Bodies,Cabot Learning Federation,1654.33, 25-Jan-2021
645,Revenue,CAHD,Statemented Support Academies,Other Public Bodies,Cabot Learning Federation,2206.25, 25-Jan-2021
646,Revenue,CAHD,Statemented Support Payments to OLAs,Other L.A.s - General,Cabot Learning Federation,1013.94, 25-Jan-2021
647,Revenue,CAHD,Statemented Support Academies,Other Public Bodies,Cabot Learning Federation,658.75, 25-Jan-2021
648,Revenue,CAHD,Statemented Support Academies,Other Public Bodies,Cabot Learning Federation,1854.42, 25-Jan-2021
649,Revenue,CAHD,Statemented Support Academies,Other Public Bodies,Cabot Learning Federation,632.67, 25-Jan-2021
650,Revenue,CAHD,Statemented Support Academies,Other Public Bodies,Cabot Learning Federation,695.61, 25-Jan-2021
651,Revenue,CAHD,Statemented Support Academies,Other Public Bodies,Cabot Learning Federation,530.55, 25-Jan-2021
652,Revenue,CAHD,Statemented Support Academies,Other Public Bodies,Cabot Learning Federation,918.75, 25-Jan-2021
653,Revenue,CAHD,Statemented Support Academies,Other Public Bodies,Cabot Learning Federation,975.58, 25-Jan-2021
654,Revenue,CAHD,Statemented Support Academies,Other Public Bodies,Cabot Learning Federation,1052.92, 25-Jan-2021
655,Revenue,CAHD,Academy Resource Base Funding,Other Public Bodies,Cabot Learning Federation,2602.76, 26-Jan-2021
656,Revenue,CAHD,Academy Resource Base Funding,Other Public Bodies,Cabot Learning Federation,1175.87, 26-Jan-2021
657,Revenue,CAHD,Academy Resource Base Funding,Other Public Bodies,Cabot Learning Federation,1702.96, 26-Jan-2021
658,Revenue,CAHD,Academy Resource Base Funding,Other Public Bodies,Cabot Learning Federation,1540.83, 26-Jan-2021
659,Revenue,CAHD,Academy Resource Base Funding,Other Public Bodies,Cabot Learning Federation,1175.87, 26-Jan-2021
660,Revenue,CAHD,Academy Resource Base Funding,Other Public Bodies,Cabot Learning Federation,1175.87, 26-Jan-2021
661,Revenue,CAHD,Academy Resource Base Funding,Other Public Bodies,Cabot Learning Federation,1540.83, 26-Jan-2021
662,Revenue,CAHD,Academy Resource Base Funding,Other Public Bodies,Cabot Learning Federation,1175.87, 26-Jan-2021
663,Revenue,CAHD,Academy Resource Base Funding,Other Public Bodies,Cabot Learning Federation,1175.87, 26-Jan-2021
664,Revenue,CAHD,Academy Resource Base Funding,Other Public Bodies,Cabot Learning Federation,1702.96, 26-Jan-2021
665,Revenue,CAHD,Academy Resource Base Funding,Other Public Bodies,Cabot Learning Federation,648.70, 26-Jan-2021
666,Revenue,CAHD,Academy Resource Base Funding,Other Public Bodies,Cabot Learning Federation,1013.74, 26-Jan-2021
667,Revenue,CAHD,Academy Resource Base Funding,Other Public Bodies,Cabot Learning Federation,648.70, 26-Jan-2021
668,Revenue,CAHD,Academy Resource Base Funding,Other Public Bodies,Cabot Learning Federation,1540.83, 26-Jan-2021
669,Revenue,CAHD,Academy Resource Base Funding,Other Public Bodies,Cabot Learning Federation,2189.53, 26-Jan-2021
670,Revenue,CAHD,Academy Resource Base Funding,Other Public Bodies,Cabot Learning Federation,2189.53, 26-Jan-2021
671,Revenue,CAHD,Academy Resource Base Funding,Other Public Bodies,Cabot Learning Federation,1175.87, 26-Jan-2021
672,Revenue,CAHD,Academy Resource Base Funding,Other Public Bodies,Cabot Learning Federation,1175.87, 26-Jan-2021
673,Revenue,CAHD,Academy Resource Base Funding,Other Public Bodies,Cabot Learning Federation,1175.87, 26-Jan-2021
674,Revenue,CAHD,Academy Resource Base Funding,Other Public Bodies,Cabot Learning Federation,1175.87, 26-Jan-2021
675,Revenue,CAHD,Academy Resource Base Funding,Other Public Bodies,Cabot Learning Federation,1702.96, 26-Jan-2021
676,Revenue,CAHD,Academy Resource Base Funding,Other Public Bodies,Cabot Learning Federation,1702.96, 26-Jan-2021
677,Revenue,CAHD,Statemented Support Payments to OLAs,Other L.A.s - General,Cabot Learning Federation,872.46, 25-Jan-2021
678,Revenue,CAHD,Statemented Support Academies,Other Public Bodies,Cabot Learning Federation,1626.67, 25-Jan-2021
679,Revenue,CAHD,Statemented Support Academies,Other Public Bodies,Cabot Learning Federation,710.58, 25-Jan-2021
680,Revenue,CAHD,Statemented Support Academies,Other Public Bodies,Cabot Learning Federation,804.08, 25-Jan-2021
681,Revenue,CAHD,Statemented Support Academies,Other Public Bodies,Cabot Learning Federation,554.13, 25-Jan-2021
682,Revenue,CAHD,Statemented Support Academies,Other Public Bodies,Cabot Learning Federation,742.77, 25-Jan-2021
683,Revenue,CAHD,Statemented Support Academies,Other Public Bodies,Cabot Learning Federation,778.14, 25-Jan-2021
684,Revenue,CAHD,Statemented Support Academies,Other Public Bodies,Cabot Learning Federation,813.51, 25-Jan-2021
685,Revenue,CAHD,Statemented Support Payments to OLAs,Other L.A.s - General,Cabot Learning Federation,601.29, 25-Jan-2021
686,Revenue,CAHD,Statemented Support Academies,Other Public Bodies,Cabot Learning Federation,1131.84, 25-Jan-2021
687,Revenue,CAHD,Statemented Support Academies,Other Public Bodies,Cabot Learning Federation,589.50, 25-Jan-2021
688,Revenue,CAHD,Statemented Support Academies,Other Public Bodies,Cabot Learning Federation,554.13, 25-Jan-2021
689,Revenue,CAHD,Statemented Support Academies,Other Public Bodies,Cabot Learning Federation,801.72, 25-Jan-2021
690,Revenue,CAHD,Statemented Support Academies,Other Public Bodies,Cabot Learning Federation,1096.47, 25-Jan-2021
691,Revenue,CAHD,Statemented Support Academies,Other Public Bodies,Cabot Learning Federation,730.98, 25-Jan-2021
692,Revenue,CAHD,Statemented Support Academies,Other Public Bodies,Cabot Learning Federation,907.83, 25-Jan-2021
693,Revenue,CAHD,Statemented Support Academies,Other Public Bodies,Cabot Learning Federation,801.92, 25-Jan-2021
694,Revenue,CAHD,Statemented Support Academies,Other Public Bodies,Cabot Learning Federation,530.55, 25-Jan-2021
695,Revenue,CAHD,Statemented Support Academies,Other Public Bodies,Cabot Learning Federation,931.41, 25-Jan-2021
696,Revenue,CAHD,Statemented Support Academies,Other Public Bodies,Cabot Learning Federation,577.50, 25-Jan-2021
697,Revenue,CAHD,Statemented Support Academies,Other Public Bodies,Cabot Learning Federation,1297.08, 25-Jan-2021
698,Revenue,CAHD,Statemented Support Academies,Other Public Bodies,Cabot Learning Federation,966.83, 25-Jan-2021
699,Revenue,CAHD,Statemented Support Academies,Other Public Bodies,Cabot Learning Federation,872.46, 25-Jan-2021
700,Revenue,CAHD,Statemented Support Payments to OLAs,Other L.A.s - General,Cabot Learning Federation,665.33, 25-Jan-2021
701,Revenue,CAHD,Early Years High Needs Support,Other Private Contractors,Caerleon Childcare,515.71, 25-Jan-2021
702,Revenue,CAHD,North - Community based support,Permanent Nursing,Caernarvon House,4710.40, 12-Jan-2021
703,Revenue,CAHD,North - S117,Permanent Nursing,Caernarvon House,3990.24, 12-Jan-2021
704,Revenue,CAHD,South - Commissioned Services,Permanent Nursing,Caernarvon House,4915.20, 12-Jan-2021
705,Revenue,CAHD,South - Commissioned Services,Permanent Nursing,Caernarvon House,4300.80, 12-Jan-2021
706,Revenue,CAHD,South - S117,Permanent Nursing,Caernarvon House,4915.20, 12-Jan-2021
707,Revenue,CAHD,South - Commissioned Services,Permanent Nursing,Caernarvon House,4800.00, 12-Jan-2021
708,Revenue,CAHD,North - Community based support,Day Care / Social Activities,Camphill Communities Thornbury Limited,700.35, 08-Jan-2021
709,Revenue,CAHD,North - Community based support,Other Small Contracts,Camphill Communities Thornbury Limited,1618.05, 08-Jan-2021
710,Revenue,CAHD,North - Community based support,Supported Living,Camphill Communities Thornbury Limited,898.38, 08-Jan-2021
711,Revenue,CAHD,North - Community based support,Day Care / Social Activities,Camphill Communities Thornbury Limited,690.69, 15-Jan-2021
712,Revenue,CAHD,North - Community based support,Other Small Contracts,Camphill Communities Thornbury Limited,1647.03, 15-Jan-2021
713,Revenue,CAHD,North - Community based support,Supported Living,Camphill Communities Thornbury Limited,912.87, 15-Jan-2021
714,Revenue,CAHD,North - Community based support,Day Care / Social Activities,Camphill Communities Thornbury Limited,429.87, 21-Jan-2021
715,Revenue,CAHD,North - Community based support,Other Small Contracts,Camphill Communities Thornbury Limited,1106.07, 21-Jan-2021
716,Revenue,CAHD,North - Community based support,Supported Living,Camphill Communities Thornbury Limited,883.89, 21-Jan-2021
717,Revenue,CAHD,North - S117,Permanent Residential,Canjayor,2250.15, 12-Jan-2021
718,Revenue,CAHD,Central - Commissioned Services,Other Small Contracts,Care 1st Homecare,3012.65, 29-Jan-2021
719,Revenue,CAHD,Central - Commissioned Services,Other Small Contracts,Care 1st Homecare,3030.45, 06-Jan-2021
720,Revenue,CAHD,Central - Commissioned Services,Other Small Contracts,Care 1st Homecare,3012.65, 08-Jan-2021
721,Revenue,CAHD,Central - Commissioned Services,Other Small Contracts,Care 1st Homecare,2990.40, 08-Jan-2021
722,Revenue,CAHD,Central - Commissioned Services,Other Small Contracts,Care 1st Homecare,3003.75, 20-Jan-2021
723,Revenue,CAHD,Central - Commissioned Services,Other Small Contracts,Care 1st Homecare,2999.30, 29-Jan-2021
724,Revenue,CAHD,North - Community based support,Supported Living,Care Horizons,5435.28, 12-Jan-2021
725,Revenue,CAHD,North - Community based support,Supported Living,Care Horizons,5435.28, 12-Jan-2021
726,Revenue,CAHD,Central - Commissioned Services,Other Small Contracts,Care Horizons Limited,1267.01, 06-Jan-2021
727,Revenue,CAHD,South - Commissioned Services,Other Small Contracts,Care Horizons Limited,473.28, 06-Jan-2021
728,Revenue,CAHD,North - Community based support,Day Care / Social Activities,Care Horizons Limited,276.08, 06-Jan-2021
729,Revenue,CAHD,North - Community based support,Other Small Contracts,Care Horizons Limited,838.10, 06-Jan-2021
730,Revenue,CAHD,Younger MH non-res purchasing,Other Small Contracts,Care Horizons Limited,236.64, 06-Jan-2021
731,Revenue,CAHD,Central - Commissioned Services,Other Small Contracts,Care Horizons Limited,1030.37, 08-Jan-2021
732,Revenue,CAHD,South - Commissioned Services,Other Small Contracts,Care Horizons Limited,512.72, 08-Jan-2021
733,Revenue,CAHD,North - Community based support,Day Care / Social Activities,Care Horizons Limited,414.12, 08-Jan-2021
734,Revenue,CAHD,North - Community based support,Other Small Contracts,Care Horizons Limited,404.26, 08-Jan-2021
735,Revenue,CAHD,Younger MH non-res purchasing,Other Small Contracts,Care Horizons Limited,202.13, 08-Jan-2021
736,Revenue,CAHD,Central - Commissioned Services,Other Small Contracts,Care Horizons Limited,803.59, 08-Jan-2021
737,Revenue,CAHD,South - Commissioned Services,Other Small Contracts,Care Horizons Limited,493.00, 08-Jan-2021
738,Revenue,CAHD,North - Community based support,Day Care / Social Activities,Care Horizons Limited,414.12, 08-Jan-2021
739,Revenue,CAHD,North - Community based support,Other Small Contracts,Care Horizons Limited,340.17, 08-Jan-2021
740,Revenue,CAHD,Younger MH non-res purchasing,Other Small Contracts,Care Horizons Limited,177.48, 08-Jan-2021
741,Revenue,CAHD,Central - Commissioned Services,Other Small Contracts,Care Horizons Limited,1202.92, 18-Jan-2021
742,Revenue,CAHD,South - Commissioned Services,Other Small Contracts,Care Horizons Limited,216.92, 18-Jan-2021
743,Revenue,CAHD,North - Community based support,Day Care / Social Activities,Care Horizons Limited,414.12, 18-Jan-2021
744,Revenue,CAHD,North - Community based support,Other Small Contracts,Care Horizons Limited,936.70, 18-Jan-2021
745,Revenue,CAHD,Younger MH non-res purchasing,Other Small Contracts,Care Horizons Limited,197.20, 18-Jan-2021
746,Revenue,CAHD,Central - Commissioned Services,Other Small Contracts,Care Horizons Limited,1316.31, 26-Jan-2021
747,Revenue,CAHD,South - Commissioned Services,Other Small Contracts,Care Horizons Limited,493.00, 26-Jan-2021
748,Revenue,CAHD,North - Community based support,Day Care / Social Activities,Care Horizons Limited,276.08, 26-Jan-2021
749,Revenue,CAHD,North - Community based support,Other Small Contracts,Care Horizons Limited,433.84, 26-Jan-2021
750,Revenue,CAHD,Younger MH non-res purchasing,Other Small Contracts,Care Horizons Limited,231.71, 26-Jan-2021
751,Revenue,CAHD,Covid - ASC - Infection Control,Grants to Voluntary Bodies,Care Horizons Limited,5221.20, 13-Jan-2021
752,Revenue,CAHD,Covid - ASC - Infection Control,Grants to Voluntary Bodies,Care Unite Ltd t/a Home Instead Senior Care,1595.37, 13-Jan-2021
753,Revenue,CAHD,Covid - ASC - Infection Control,Grants to Voluntary Bodies,Caremark (Bristol & South Gloucestershire),5677.90, 21-Jan-2021
754,Revenue,CAHD,Central - Commissioned Services,Other Small Contracts,Carepride Ltd,626.11, 11-Jan-2021
755,Revenue,CAHD,South - Commissioned Services,Other Small Contracts,Carepride Ltd,103.53, 11-Jan-2021
756,Revenue,CAHD,North - Community based support,Other Small Contracts,Carepride Ltd,226.78, 11-Jan-2021
757,Revenue,CAHD,Central - Commissioned Services,Other Small Contracts,Carepride Ltd,423.98, 11-Jan-2021
758,Revenue,CAHD,South - Commissioned Services,Other Small Contracts,Carepride Ltd,103.53, 11-Jan-2021
759,Revenue,CAHD,North - Community based support,Other Small Contracts,Carepride Ltd,226.78, 11-Jan-2021
760,Revenue,CAHD,Central - Commissioned Services,Other Small Contracts,Carepride Ltd,571.88, 11-Jan-2021
761,Revenue,CAHD,South - Commissioned Services,Other Small Contracts,Carepride Ltd,108.46, 11-Jan-2021
762,Revenue,CAHD,North - Community based support,Other Small Contracts,Carepride Ltd,202.13, 11-Jan-2021
763,Revenue,CAHD,Central - Commissioned Services,Other Small Contracts,Carepride Ltd,606.39, 20-Jan-2021
764,Revenue,CAHD,South - Commissioned Services,Other Small Contracts,Carepride Ltd,88.74, 20-Jan-2021
765,Revenue,CAHD,North - Community based support,Other Small Contracts,Carepride Ltd,221.85, 20-Jan-2021
766,Revenue,CAHD,Covid - ASC - Infection Control,Grants to Voluntary Bodies,Caring Comes 1st Limited,6381.47, 13-Jan-2021
767,Revenue,CAHD,CSC - Care Leavers Independent Living,Independent Living,Caring for Communities and People,1988.57, 11-Jan-2021
768,Revenue,CAHD,Social Lettings Agency,Rent,Individual,699.32, 21-Jan-2021
769,Revenue,CAHD,Social Lettings Agency,Fees - General,Individual,20.57, 21-Jan-2021
770,Revenue,CAHD,Statemented Support Academies,Other Public Bodies,Castle School Education Trust,530.55, 25-Jan-2021
771,Revenue,CAHD,Statemented Support Academies,Other Public Bodies,Castle School Education Trust,565.92, 25-Jan-2021
772,Revenue,CAHD,Statemented Support Academies,Other Public Bodies,Castle School Education Trust,778.14, 25-Jan-2021
773,Revenue,CAHD,Statemented Support Academies,Other Public Bodies,Castle School Education Trust,821.50, 25-Jan-2021
774,Revenue,CAHD,Statemented Support Academies,Other Public Bodies,Castle School Education Trust,672.03, 25-Jan-2021
775,Revenue,CAHD,Statemented Support Academies,Other Public Bodies,Castle School Education Trust,577.71, 25-Jan-2021
776,Revenue,CAHD,Statemented Support Academies,Other Public Bodies,Castle School Education Trust,505.08, 25-Jan-2021
777,Revenue,CAHD,Statemented Support Academies,Other Public Bodies,Castle School Education Trust,1461.96, 25-Jan-2021
778,Revenue,CAHD,Statemented Support Academies,Other Public Bodies,Castle School Education Trust,613.08, 25-Jan-2021
779,Revenue,CAHD,Statemented Support Academies,Other Public Bodies,Castle School Education Trust,672.03, 25-Jan-2021
780,Revenue,CAHD,Statemented Support Academies,Other Public Bodies,Castle School Education Trust,1120.05, 25-Jan-2021
781,Revenue,CAHD,Statemented Support Academies,Other Public Bodies,Castle School Education Trust,636.66, 25-Jan-2021
782,Revenue,CAHD,Statemented Support Academies,Other Public Bodies,Castle School Education Trust,589.08, 25-Jan-2021
783,Revenue,CAHD,Statemented Support Academies,Other Public Bodies,Castle School Education Trust,954.99, 25-Jan-2021
784,Revenue,CAHD,Statemented Support Academies,Other Public Bodies,Castle School Education Trust,577.71, 25-Jan-2021
785,Revenue,CAHD,Statemented Support Academies,Other Public Bodies,Castle School Education Trust,624.87, 25-Jan-2021
786,Revenue,CAHD,Statemented Support Academies,Other Public Bodies,Castle School Education Trust,825.30, 25-Jan-2021
787,Revenue,CAHD,Statemented Support Academies,Other Public Bodies,Castle School Education Trust,1190.79, 25-Jan-2021
788,Revenue,CAHD,Statemented Support Academies,Other Public Bodies,Castle School Education Trust,848.88, 25-Jan-2021
789,Revenue,CAHD,Statemented Support Academies,Other Public Bodies,Castle School Education Trust,841.00, 25-Jan-2021
790,Revenue,CAHD,Statemented Support Academies,Other Public Bodies,Castle School Education Trust,1237.95, 25-Jan-2021
791,Revenue,CAHD,Statemented Support Academies,Other Public Bodies,Castle School Education Trust,1061.10, 25-Jan-2021
792,Revenue,CAHD,Statemented Support Academies,Other Public Bodies,Castle School Education Trust,518.76, 25-Jan-2021
793,Revenue,CAHD,Statemented Support Academies,Other Public Bodies,Castle School Education Trust,577.71, 25-Jan-2021
794,Revenue,CAHD,Statemented Support Academies,Other Public Bodies,Castle School Education Trust,1143.63, 25-Jan-2021
795,Revenue,CAHD,Statemented Support Academies,Other Public Bodies,Castle School Education Trust,754.25, 25-Jan-2021
796,Revenue,CAHD,Statemented Support Academies,Other Public Bodies,Castle School Education Trust,1485.54, 25-Jan-2021
797,Revenue,CAHD,Statemented Support Academies,Other Public Bodies,Castle School Education Trust,1177.50, 25-Jan-2021
798,Revenue,CAHD,Statemented Support Academies,Other Public Bodies,Castle School Education Trust,888.75, 25-Jan-2021
799,Revenue,CAHD,Statemented Support Academies,Other Public Bodies,Castle School Education Trust,1261.75, 25-Jan-2021
800,Revenue,CAHD,Statemented Support Academies,Other Public Bodies,Castle School Education Trust,1322.75, 25-Jan-2021
801,Revenue,CAHD,Statemented Support Academies,Other Public Bodies,Castle School Education Trust,801.92, 25-Jan-2021
802,Revenue,CAHD,Statemented Support Academies,Other Public Bodies,Castle School Education Trust,943.17, 25-Jan-2021
803,Revenue,CAHD,Statemented Support Academies,Other Public Bodies,Castle School Education Trust,1267.50, 25-Jan-2021
804,Revenue,CAHD,Academy Resource Base Funding,Other Public Bodies,Castle School Education Trust,1702.96, 26-Jan-2021
805,Revenue,CAHD,Academy Resource Base Funding,Other Public Bodies,Castle School Education Trust,1702.96, 26-Jan-2021
806,Revenue,CAHD,Academy Resource Base Funding,Other Public Bodies,Castle School Education Trust,1702.96, 26-Jan-2021
807,Revenue,CAHD,Academy Resource Base Funding,Other Public Bodies,Castle School Education Trust,1702.96, 26-Jan-2021
808,Revenue,CAHD,Academy Resource Base Funding,Other Public Bodies,Castle School Education Trust,1702.96, 26-Jan-2021
809,Revenue,CAHD,Academy Resource Base Funding,Other Public Bodies,Castle School Education Trust,1702.96, 26-Jan-2021
810,Revenue,CAHD,Academy Resource Base Funding,Other Public Bodies,Castle School Education Trust,2189.53, 26-Jan-2021
811,Revenue,CAHD,Academy Resource Base Funding,Other Public Bodies,Castle School Education Trust,1702.96, 26-Jan-2021
812,Revenue,CAHD,Academy Resource Base Funding,Other Public Bodies,Castle School Education Trust,1702.96, 26-Jan-2021
813,Revenue,CAHD,Academy Resource Base Funding,Other Public Bodies,Castle School Education Trust,1702.96, 26-Jan-2021
814,Revenue,CAHD,Academy Resource Base Funding,Other Public Bodies,Castle School Education Trust,2513.88, 26-Jan-2021
815,Revenue,CAHD,Academy Resource Base Funding,Other Public Bodies,Castle School Education Trust,1702.96, 26-Jan-2021
816,Revenue,CAHD,Academy Resource Base Funding,Other Public Bodies,Castle School Education Trust,2270.60, 26-Jan-2021
817,Revenue,CAHD,Statemented Support Academies,Other Public Bodies,Castle School Education Trust,672.03, 25-Jan-2021
818,Revenue,CAHD,Statemented Support Academies,Other Public Bodies,Castle School Education Trust,822.50, 25-Jan-2021
819,Revenue,CAHD,Statemented Support Academies,Other Public Bodies,Castle School Education Trust,872.46, 25-Jan-2021
820,Revenue,CAHD,Statemented Support Academies,Other Public Bodies,Castle School Education Trust,848.88, 25-Jan-2021
821,Revenue,CAHD,Statemented Support Academies,Other Public Bodies,Castle School Education Trust,541.58, 25-Jan-2021
822,Revenue,CAHD,Statemented Support Academies,Other Public Bodies,Castle School Education Trust,1444.17, 25-Jan-2021
823,Revenue,CAHD,Statemented Support Academies,Other Public Bodies,Castle School Education Trust,956.00, 25-Jan-2021
824,Revenue,CAHD,Statemented Support Academies,Other Public Bodies,Castle School Education Trust,1025.73, 25-Jan-2021
825,Revenue,CAHD,Statemented Support Academies,Other Public Bodies,Castle School Education Trust,1628.42, 25-Jan-2021
826,Revenue,CAHD,Statemented Support Academies,Other Public Bodies,Castle School Education Trust,560.17, 25-Jan-2021
827,Revenue,CAHD,Statemented Support Academies,Other Public Bodies,Castle School Education Trust,630.58, 25-Jan-2021
828,Revenue,CAHD,Statemented Support Academies,Other Public Bodies,Castle School Education Trust,778.14, 25-Jan-2021
829,Revenue,CAHD,Statemented Support Academies,Other Public Bodies,Castle School Education Trust,941.58, 25-Jan-2021
830,Revenue,CAHD,Statemented Support Academies,Other Public Bodies,Castle School Education Trust,613.08, 25-Jan-2021
831,Revenue,CAHD,Statemented Support Academies,Other Public Bodies,Castle School Educational Turust,1129.92, 25-Jan-2021
832,Revenue,CAHD,Statemented Support Academies,Other Public Bodies,Castle School Educational Turust,854.00, 25-Jan-2021
833,Revenue,CAHD,Statemented Support Academies,Other Public Bodies,Castle School Educational Turust,790.58, 25-Jan-2021
834,Revenue,CAHD,Statemented Support Academies,Other Public Bodies,Castle School Educational Turust,508.67, 25-Jan-2021
835,Revenue,CAHD,Statemented Support Academies,Other Public Bodies,Castle School Educational Turust,1148.20, 25-Jan-2021
836,Revenue,CAHD,Statemented Support Academies,Other Public Bodies,Castle School Educational Turust,1097.25, 25-Jan-2021
837,Revenue,CAHD,Statemented Support Academies,Other Public Bodies,Castle School Educational Turust,580.67, 25-Jan-2021
838,Revenue,CAHD,Statemented Support Academies,Other Public Bodies,Castle School Educational Turust,4625.40, 25-Jan-2021
839,Revenue,CAHD,North - Community based support,Day Care / Social Activities,Causeway House,2176.64, 12-Jan-2021
840,Revenue,CAHD,South - Commissioned Services,Day Care / Social Activities,Causeway House,5358.20, 12-Jan-2021
841,Revenue,CAHD,Central - Commissioned Services,Day Care / Social Activities,Causeway House,1447.08, 12-Jan-2021
842,Revenue,CAHD,18-25 Year Olds,Day Care / Social Activities,Causeway House,4502.92, 12-Jan-2021
843,Revenue,CAHD,Central - Commissioned Services,Day Care / Social Activities,Causeway House,3671.36, 12-Jan-2021
844,Revenue,CAHD,Central - Commissioned Services,Day Care / Social Activities,Causeway House,3969.44, 12-Jan-2021
845,Revenue,CAHD,Central - Commissioned Services,Day Care / Social Activities,Causeway House,2119.20, 12-Jan-2021
846,Revenue,CAHD,North - Community based support,Day Care / Social Activities,Causeway House,3290.72, 12-Jan-2021
847,Revenue,CAHD,North - Community based support,Day Care / Social Activities,Causeway House,4902.56, 12-Jan-2021
848,Revenue,CAHD,Central - Commissioned Services,Day Care / Social Activities,Causeway House,3725.16, 12-Jan-2021
849,Revenue,CAHD,North - Community based support,Day Care / Social Activities,Causeway House,3212.08, 12-Jan-2021
850,Revenue,CAHD,North - Community based support,Day Care / Social Activities,Causeway House,579.68, 12-Jan-2021
851,Revenue,CAHD,Training - Adult Services,Training Expenses,Central Consultancy & Training,2015.00, 14-Jan-2021
852,Revenue,CAHD,South - Commissioned Services,Permanent Residential,Challenge House,2834.44, 12-Jan-2021
853,Revenue,CAHD,South - Commissioned Services,Permanent Residential,Challenge House,2836.00, 12-Jan-2021
854,Revenue,CAHD,North - S117,Permanent Residential,Challenge House,2571.40, 12-Jan-2021
855,Revenue,CAHD,North - Community based support,Permanent Residential,Challenge House,2233.00, 12-Jan-2021
856,Revenue,CAHD,Central - Commissioned Services,Permanent Residential,Challenge House,2365.64, 12-Jan-2021
857,Revenue,CAHD,Central - Commissioned Services,Permanent Residential,Challenge House,2720.00, 12-Jan-2021
858,Revenue,CAHD,North - Community based support,Permanent Residential,Challenge House,2834.40, 12-Jan-2021
859,Revenue,CAHD,North - Community based support,Permanent Nursing,Challenge House,3205.48, 12-Jan-2021
860,Revenue,CAHD,North - S117,Permanent Nursing,Challenge House,2453.28, 12-Jan-2021
861,Revenue,CAHD,North - Community based support,Permanent Nursing,Challenge House,2453.28, 12-Jan-2021
862,Revenue,CAHD,North - Community based support,Permanent Nursing,Challenge House,3205.48, 12-Jan-2021
863,Revenue,CAHD,Covid 19- Spend on behalf of NHS,Respite Planned - Residential,Challenge House,6349.14, 12-Jan-2021
864,Revenue,CAHD,South Glos Users in South Glos Homes,Permanent Nursing,Challenge House,735.68, 12-Jan-2021
865,Revenue,CAHD,North - Community based support,Permanent Nursing,Challenge House,3400.00, 12-Jan-2021
866,Revenue,CAHD,South Glos Users in South Glos Homes,Permanent Nursing,Challenge House,735.68, 12-Jan-2021
867,Revenue,CAHD,South Glos Users in South Glos Homes,Permanent Nursing,Challenge House,735.68, 12-Jan-2021
868,Revenue,CAHD,South - Commissioned Services,Permanent Nursing,Challenge House,2941.88, 12-Jan-2021
869,Revenue,CAHD,South Glos Users in South Glos Homes,Permanent Nursing,Challenge House,735.68, 12-Jan-2021
870,Revenue,CAHD,North - Community based support,Permanent Nursing,Challenge House,3272.64, 12-Jan-2021
871,Revenue,CAHD,South Glos Users in South Glos Homes,Permanent Nursing,Challenge House,735.68, 12-Jan-2021
872,Revenue,CAHD,South Glos Users in South Glos Homes,Permanent Nursing,Challenge House,735.68, 12-Jan-2021
873,Revenue,CAHD,South - Commissioned Services,Permanent Residential,Challenge House,3060.00, 12-Jan-2021
874,Revenue,CAHD,South Glos Users in South Glos Homes,Permanent Nursing,Challenge House,735.68, 12-Jan-2021
875,Revenue,CAHD,South Glos Users in South Glos Homes,Permanent Nursing,Challenge House,735.68, 12-Jan-2021
876,Revenue,CAHD,South Glos Users in South Glos Homes,Permanent Nursing,Challenge House,735.68, 12-Jan-2021
877,Revenue,CAHD,South Glos Users in South Glos Homes,Permanent Nursing,Challenge House,735.68, 12-Jan-2021
878,Revenue,CAHD,South Glos Users in South Glos Homes,Permanent Nursing,Challenge House,735.68, 12-Jan-2021
879,Revenue,CAHD,South Glos Users in South Glos Homes,Permanent Nursing,Challenge House,735.68, 12-Jan-2021
880,Revenue,CAHD,South Glos Users in South Glos Homes,Permanent Nursing,Challenge House,735.68, 12-Jan-2021
881,Revenue,CAHD,South Glos Users in South Glos Homes,Permanent Nursing,Challenge House,735.68, 12-Jan-2021
882,Revenue,CAHD,North - Community based support,Permanent Nursing,Challenge House,2884.08, 12-Jan-2021
883,Revenue,CAHD,South Glos Users in South Glos Homes,Permanent Nursing,Challenge House,735.68, 12-Jan-2021
884,Revenue,CAHD,North - Community based support,Permanent Nursing,Challenge House,3243.60, 12-Jan-2021
885,Revenue,CAHD,South Glos Users in South Glos Homes,Permanent Nursing,Challenge House,735.68, 12-Jan-2021
886,Revenue,CAHD,North - Community based support,Permanent Nursing,Challenge House,3405.60, 12-Jan-2021
887,Revenue,CAHD,South Glos Users in South Glos Homes,Permanent Nursing,Challenge House,735.68, 12-Jan-2021
888,Revenue,CAHD,North - Community based support,Permanent Residential,Challenge House,3121.20, 12-Jan-2021
889,Revenue,CAHD,South Glos Users in South Glos Homes,Permanent Nursing,Challenge House,735.68, 12-Jan-2021
890,Revenue,CAHD,North - Community based support,Permanent Nursing,Challenge House,2884.08, 12-Jan-2021
891,Revenue,CAHD,South Glos Users in South Glos Homes,Permanent Nursing,Challenge House,735.68, 12-Jan-2021
892,Revenue,CAHD,South Glos Users in South Glos Homes,Permanent Nursing,Challenge House,735.68, 12-Jan-2021
893,Revenue,CAHD,Covid - ASC - Infection Control,Grants to Voluntary Bodies,Challenge House,13937.18, 29-Jan-2021
894,Revenue,CAHD,Central - Commissioned Services,Permanent Nursing,Challenge House,9521.58, 12-Jan-2021
895,Revenue,CAHD,North - Community based support,Permanent Residential,Challenge House,8619.15, 12-Jan-2021
896,Revenue,CAHD,Early Years High Needs Support,Other Private Contractors,Charfield Pre-School,2245.82, 25-Jan-2021
897,Revenue,CAHD,Training - Adult Services,Training Expenses,Individual,600.00, 22-Jan-2021
898,Revenue,CAHD,Statemented Support Academies,Other Public Bodies,Charlton Wood Primary Academy,702.17, 25-Jan-2021
899,Revenue,CAHD,Central - Commissioned Services,Other Small Contracts,Cherish Able Care Limited,2221.80, 08-Jan-2021
900,Revenue,CAHD,South - Commissioned Services,Other Small Contracts,Cherish Able Care Limited,7814.68, 08-Jan-2021
901,Revenue,CAHD,North - Community based support,Other Small Contracts,Cherish Able Care Limited,637.56, 08-Jan-2021
902,Revenue,CAHD,Central - Commissioned Services,Other Small Contracts,Cherish Able Care Limited,1951.32, 13-Jan-2021
903,Revenue,CAHD,South - Commissioned Services,Other Small Contracts,Cherish Able Care Limited,7074.16, 13-Jan-2021
904,Revenue,CAHD,North - Community based support,Other Small Contracts,Cherish Able Care Limited,492.66, 13-Jan-2021
905,Revenue,CAHD,Central - Commissioned Services,Other Small Contracts,Cherish Able Care Limited,2371.53, 22-Jan-2021
906,Revenue,CAHD,South - Commissioned Services,Other Small Contracts,Cherish Able Care Limited,6337.99, 22-Jan-2021
907,Revenue,CAHD,North - Community based support,Other Small Contracts,Cherish Able Care Limited,531.30, 22-Jan-2021
908,Revenue,CAHD,Central - Commissioned Services,Other Small Contracts,Cherish Able Care Limited,2328.06, 29-Jan-2021
909,Revenue,CAHD,South - Commissioned Services,Other Small Contracts,Cherish Able Care Limited,4867.03, 29-Jan-2021
910,Revenue,CAHD,North - Community based support,Other Small Contracts,Cherish Able Care Limited,695.52, 29-Jan-2021
911,Revenue,CAHD,Covid - ASC - Infection Control,Grants to Voluntary Bodies,Cherish Able Care Limited,6961.60, 29-Jan-2021
912,Revenue,CAHD,South - Commissioned Services,Other Small Contracts,Cherry Orchards,6491.52, 14-Jan-2021
913,Revenue,CAHD,18-25 Year Olds,Supported Living,Cherry Orchards,2030.52, 12-Jan-2021
914,Revenue,CAHD,North - Community based support,Supported Living,Cherry Orchards,1042.96, 12-Jan-2021
915,Revenue,CAHD,S28A cases,Permanent Residential,Chescombe Trust Ltd,9959.72, 12-Jan-2021
916,Revenue,CAHD,Covid - ASC - Infection Control,Grants to Voluntary Bodies,Chescombe Trust Ltd,6620.16, 13-Jan-2021
917,Revenue,CAHD,CSC - Section 17 SOUTH,Preventative Assistance,Childrens Contact Services Ltd,4235.80, 22-Jan-2021
918,Revenue,CAHD,CSC - Section 17 SOUTH,Preventative Assistance,Childrens Contact Services Ltd,3888.70, 25-Jan-2021
919,Revenue,CAHD,CSC - Section 17 SOUTH,Preventative Assistance,Childrens Contact Services Ltd,4482.54, 25-Jan-2021
920,Revenue,CAHD,18-25 Year Olds,Other Small Contracts,Cintre,846.60, 06-Jan-2021
921,Revenue,CAHD,Central - Commissioned Services,Other Small Contracts,Cintre,239.04, 06-Jan-2021
922,Revenue,CAHD,South - Commissioned Services,Other Small Contracts,Cintre,1334.64, 06-Jan-2021
923,Revenue,CAHD,18-25 Year Olds,Other Small Contracts,Cintre,707.16, 08-Jan-2021
924,Revenue,CAHD,Central - Commissioned Services,Other Small Contracts,Cintre,199.20, 08-Jan-2021
925,Revenue,CAHD,South - Commissioned Services,Other Small Contracts,Cintre,1274.88, 08-Jan-2021
926,Revenue,CAHD,18-25 Year Olds,Other Small Contracts,Cintre,846.60, 18-Jan-2021
927,Revenue,CAHD,Central - Commissioned Services,Other Small Contracts,Cintre,79.68, 18-Jan-2021
928,Revenue,CAHD,South - Commissioned Services,Other Small Contracts,Cintre,1215.12, 18-Jan-2021
929,Revenue,CAHD,18-25 Year Olds,Other Small Contracts,Cintre,846.60, 22-Jan-2021
930,Revenue,CAHD,Central - Commissioned Services,Other Small Contracts,Cintre,199.20, 22-Jan-2021
931,Revenue,CAHD,South - Commissioned Services,Other Small Contracts,Cintre,1175.28, 22-Jan-2021
932,Revenue,CAHD,18-25 Year Olds,Other Small Contracts,Cintre,896.40, 29-Jan-2021
933,Revenue,CAHD,Central - Commissioned Services,Other Small Contracts,Cintre,199.20, 29-Jan-2021
934,Revenue,CAHD,South - Commissioned Services,Other Small Contracts,Cintre,1334.64, 29-Jan-2021
935,Revenue,CAHD,18-25 Year Olds,Other Small Contracts,Cintre,896.40, 29-Jan-2021
936,Revenue,CAHD,Central - Commissioned Services,Other Small Contracts,Cintre,318.72, 29-Jan-2021
937,Revenue,CAHD,South - Commissioned Services,Other Small Contracts,Cintre,1215.12, 29-Jan-2021
938,Revenue,CAHD,Learning Difficulties Development Fund,Other Supplies & Services,Circles South West Ltd,3285.00, 21-Jan-2021
939,Revenue,CAHD,Training - Adult Services,Training Expenses,City & Guilds,994.00, 18-Jan-2021
940,Revenue,CAHD,Research & Conferences,Consultants Fees,Claire Leandro Ltd,3025.00, 08-Jan-2021
941,Revenue,CAHD,Post 16 LDD Transport to college,Client Transport,Individual,669.60, 19-Jan-2021
942,Revenue,CAHD,Post 16 LDD Transport to college,Client Transport,Individual,583.20, 19-Jan-2021
943,Revenue,CAHD,CSC - LAC Placements,Personal Needs of Clients,Individual,544.85, 08-Jan-2021
944,Revenue,CAHD,South - Commissioned Services,Permanent Residential,Clearwater Care,5280.28, 12-Jan-2021
945,Revenue,CAHD,South - Commissioned Services,Permanent Residential,Cleeve Lodge,3760.12, 12-Jan-2021
946,Revenue,CAHD,South - Commissioned Services,Permanent Residential,Cleeve Lodge,3760.12, 12-Jan-2021
947,Revenue,CAHD,South - Commissioned Services,Permanent Residential,Cleeve Lodge,1334.60, 12-Jan-2021
948,Revenue,CAHD,South - Commissioned Services,Permanent Residential,Cleeve Lodge,4400.00, 12-Jan-2021
949,Revenue,CAHD,North - Community based support,Permanent Residential,Cleeve Lodge,4400.00, 12-Jan-2021
950,Revenue,CAHD,South - Commissioned Services,Permanent Residential,Cleeve Lodge,4000.00, 12-Jan-2021
951,Revenue,CAHD,South - Commissioned Services,Permanent Residential,Cleeve Lodge,2950.88, 12-Jan-2021
952,Revenue,CAHD,South - Commissioned Services,Respite Planned - Residential,Cleeve Lodge,1542.86, 12-Jan-2021
953,Revenue,CAHD,South - Commissioned Services,Respite Planned - Residential,Cleeve Lodge,1200.00, 12-Jan-2021
954,Revenue,CAHD,Covid - ASC - Infection Control,Grants to Voluntary Bodies,Cleeve Lodge,11498.18, 13-Jan-2021
955,Revenue,CAHD,Central - Commissioned Services,Other Small Contracts,Clover Health and Home Care Ltd,1040.76, 21-Jan-2021
956,Revenue,CAHD,Central - Commissioned Services,Other Small Contracts,Clover Health and Home Care Ltd,1072.62, 21-Jan-2021
957,Revenue,CAHD,Pathway 1 - Re-Ablement Home Care,Other Small Contracts,Clover Health and Home Care Ltd,817.74, 19-Jan-2021
958,Revenue,CAHD,Central - Commissioned Services,Other Small Contracts,Clover Health and Home Care Ltd,764.64, 08-Jan-2021
959,Revenue,CAHD,Covid - ASC - Infection Control,Grants to Voluntary Bodies,Clover Health and Home Care Ltd,2320.53, 13-Jan-2021
960,Revenue,CAHD,North - Community based support,Permanent Residential,Collingwood Care Home,3000.00, 12-Jan-2021
961,Revenue,CAHD,South - Commissioned Services,Permanent Residential,Community Theraputic Services,7893.40, 12-Jan-2021
962,Revenue,CAHD,Jointly Funded H&SC Packages,Permanent Residential,Community Theraputic Services,4875.84, 12-Jan-2021
963,Revenue,CAHD,North - Community based support,Permanent Residential,Community Theraputic Services,8119.76, 12-Jan-2021
964,Revenue,CAHD,Jointly Funded H&SC Packages,Permanent Residential,Community Theraputic Services,2027.52, 12-Jan-2021
965,Revenue,CAHD,Statemented Support Equipment,Educational Supplies & Equipment,Connevans Limited,1590.05, 12-Jan-2021
966,Revenue,CAHD,Bed and Breakfast,Bed & Breakfast,Connolly & Callaghan Limited,679.00, 14-Jan-2021
967,Revenue,CAHD,Covid 19 - Housing,Other Supplies & Services,Connolly & Callaghan Limited,420.00, 06-Jan-2021
968,Revenue,CAHD,Bed and Breakfast,Bed & Breakfast,Connolly & Callaghan Limited,679.00, 06-Jan-2021
969,Revenue,CAHD,Covid 19 - Housing,Other Supplies & Services,Connolly & Callaghan Limited,420.00, 08-Jan-2021
970,Revenue,CAHD,Bed and Breakfast,Bed & Breakfast,Connolly & Callaghan Limited,679.00, 11-Jan-2021
971,Revenue,CAHD,Bed and Breakfast,Bed & Breakfast,Connolly & Callaghan Limited,515.90, 13-Jan-2021
972,Revenue,CAHD,Covid 19 - Housing,Other Supplies & Services,Connolly & Callaghan Limited,420.00, 12-Jan-2021
973,Revenue,CAHD,Bed and Breakfast,Bed & Breakfast,Connolly & Callaghan Limited,679.00, 12-Jan-2021
974,Revenue,CAHD,Bed and Breakfast,Bed & Breakfast,Connolly & Callaghan Limited,515.90, 13-Jan-2021
975,Revenue,CAHD,Covid 19 - Housing,Other Supplies & Services,Connolly & Callaghan Limited,420.00, 19-Jan-2021
976,Revenue,CAHD,Bed and Breakfast,Bed & Breakfast,Connolly & Callaghan Limited,679.00, 19-Jan-2021
977,Revenue,CAHD,Bed and Breakfast,Bed & Breakfast,Connolly & Callaghan Limited,515.90, 19-Jan-2021
978,Revenue,CAHD,Covid 19 - Housing,Other Supplies & Services,Connolly & Callaghan Limited,420.00, 26-Jan-2021
979,Revenue,CAHD,Bed and Breakfast,Bed & Breakfast,Connolly & Callaghan Limited,438.00, 26-Jan-2021
980,Revenue,CAHD,Bed and Breakfast,Bed & Breakfast,Connolly & Callaghan Limited,679.00, 28-Jan-2021
981,Revenue,CAHD,Bed and Breakfast,Bed & Breakfast,Connolly & Callaghan Limited,515.90, 26-Jan-2021
982,Revenue,CAHD,CSC - Vinney Green Secure Unit,Operational Equipment,Corporate Amusement Services Limited,2000.00, 25-Jan-2021
983,Revenue,CAHD,North - Community based support,Permanent Residential,Court House Residential C.H.,3400.00, 12-Jan-2021
984,Revenue,CAHD,Childrens - Safeguarding Board,Training Expenses,Craft Training and Development,2650.00, 18-Jan-2021
985,Revenue,CAHD,Positive Activities Subsidy for Young Pe,Training Expenses,Creative Youth Network,2000.00, 06-Jan-2021
986,Revenue,CAHD,S28A cases,Permanent Residential,Creedy Court,10597.96, 12-Jan-2021
987,Revenue,CAHD,S28A cases,Permanent Residential,Creedy Court,8904.92, 12-Jan-2021
988,Revenue,CAHD,North - Community based support,Permanent Residential,Creedy Court,14054.00, 12-Jan-2021
989,Revenue,CAHD,Community Support - South,Preventative Assistance,Cucumber Recruitment Limited,1422.00, 13-Jan-2021
990,Revenue,CAHD,Central - Commissioned Services,Supported Living,Cygnet Healthcare Limited,3304.00, 12-Jan-2021
991,Revenue,CAHD,CSC - Professional Fees Foster Carers,Children - Family Support,Individual,521.71, 08-Jan-2021
992,Revenue,CAHD,South - Commissioned Services,Permanent Residential,Daneswood,12759.56, 12-Jan-2021
993,Revenue,CAHD,South - Commissioned Services,Day Care / Social Activities,Daneswood,1441.60, 12-Jan-2021
994,Revenue,CAHD,North - Community based support,Permanent Residential,Daneswood,13579.68, 12-Jan-2021
995,Revenue,CAHD,South - S117,Permanent Nursing,Danshell Healthcare Group,11437.64, 12-Jan-2021
996,Revenue,CAHD,Jointly Funded H&SC Packages,Permanent Nursing,Danshell Healthcare Group,1697.16, 12-Jan-2021
997,Revenue,CAHD,Learning Difficulties PSL,Rent,Individual,2400.00, 22-Jan-2021
998,Revenue,CAHD,South - Commissioned Services,Day Care / Social Activities,Deafblind Uk,939.72, 21-Jan-2021
999,Revenue,CAHD,North - Community based support,Day Care / Social Activities,Deafblind Uk,613.11, 21-Jan-2021
1000,Revenue,CAHD,Central - Commissioned Services,Permanent Residential,Debt Recovery,4173.72, 12-Jan-2021
1001,Revenue,CAHD,South - Commissioned Services,Permanent Residential,Debt Recovery,4266.36, 12-Jan-2021
1002,Revenue,CAHD,North - Community based support,Permanent Nursing,Debt Recovery,4478.12, 12-Jan-2021
1003,Revenue,CAHD,North - Community based support,Permanent Nursing,Debt Recovery,3687.20, 12-Jan-2021
1004,Revenue,CAHD,Central - Commissioned Services,Permanent Residential,Debt Recovery,4617.04, 12-Jan-2021
1005,Revenue,CAHD,North - Community based support,Permanent Nursing,Debt Recovery,5604.96, 12-Jan-2021
1006,Revenue,CAHD,North - Community based support,Permanent Nursing,Debt Recovery,3586.16, 12-Jan-2021
1007,Revenue,CAHD,Central - Commissioned Services,Permanent Nursing,Debt Recovery,5568.36, 12-Jan-2021
1008,Revenue,CAHD,North - Community based support,Permanent Residential,Debt Recovery,3643.92, 12-Jan-2021
1009,Revenue,CAHD,North - Community based support,Permanent Nursing,Debt Recovery,6274.96, 12-Jan-2021
1010,Revenue,CAHD,North - Community based support,Permanent Nursing,Debt Recovery,4121.24, 12-Jan-2021
1011,Revenue,CAHD,South - Commissioned Services,Permanent Nursing,Debt Recovery,6437.72, 12-Jan-2021
1012,Revenue,CAHD,South Glos Users in South Glos Homes,Permanent Nursing,Deerhurst Nursing Home,735.68, 12-Jan-2021
1013,Revenue,CAHD,South - Commissioned Services,Permanent Nursing,Deerhurst Nursing Home,3881.40, 12-Jan-2021
1014,Revenue,CAHD,South Glos Users in South Glos Homes,Permanent Nursing,Deerhurst Nursing Home,735.68, 12-Jan-2021
1015,Revenue,CAHD,South - Commissioned Services,Permanent Nursing,Deerhurst Nursing Home,4160.00, 12-Jan-2021
1016,Revenue,CAHD,South - Commissioned Services,Permanent Nursing,Deerhurst Nursing Home,4400.00, 12-Jan-2021
1017,Revenue,CAHD,South Glos Users in South Glos Homes,Permanent Nursing,Deerhurst Nursing Home,735.68, 12-Jan-2021
1018,Revenue,CAHD,South - Commissioned Services,Day Care / Social Activities,Deerhurst Nursing Home,568.16, 12-Jan-2021
1019,Revenue,CAHD,South Glos Users in South Glos Homes,Permanent Nursing,Deerhurst Nursing Home,735.68, 12-Jan-2021
1020,Revenue,CAHD,South - Commissioned Services,Permanent Nursing,Deerhurst Nursing Home,2488.39, 12-Jan-2021
1021,Revenue,CAHD,South Glos Users in South Glos Homes,Permanent Nursing,Deerhurst Nursing Home,735.68, 12-Jan-2021
1022,Revenue,CAHD,South - Commissioned Services,Permanent Nursing,Deerhurst Nursing Home,4006.00, 12-Jan-2021
1023,Revenue,CAHD,South Glos Users in South Glos Homes,Permanent Nursing,Deerhurst Nursing Home,735.68, 12-Jan-2021
1024,Revenue,CAHD,North - Community based support,Permanent Nursing,Deerhurst Nursing Home,3891.20, 12-Jan-2021
1025,Revenue,CAHD,South - Commissioned Services,Permanent Nursing,Deerhurst Nursing Home,3965.12, 12-Jan-2021
1026,Revenue,CAHD,South Glos Users in South Glos Homes,Permanent Nursing,Deerhurst Nursing Home,735.68, 12-Jan-2021
1027,Revenue,CAHD,North - Community based support,Permanent Nursing,Deerhurst Nursing Home,4140.00, 12-Jan-2021
1028,Revenue,CAHD,South - Commissioned Services,Permanent Nursing,Deerhurst Nursing Home,4129.40, 12-Jan-2021
1029,Revenue,CAHD,South - Commissioned Services,Permanent Nursing,Deerhurst Nursing Home,4088.08, 12-Jan-2021
1030,Revenue,CAHD,South Glos Users in South Glos Homes,Permanent Nursing,Deerhurst Nursing Home,735.68, 12-Jan-2021
1031,Revenue,CAHD,South - bed purchasing and direct  payments,Permanent Nursing,Deerhurst Nursing Home,4084.08, 12-Jan-2021
1032,Revenue,CAHD,South Glos Users in South Glos Homes,Permanent Nursing,Deerhurst Nursing Home,735.68, 12-Jan-2021
1033,Revenue,CAHD,South Glos Users in South Glos Homes,Permanent Nursing,Deerhurst Nursing Home,735.68, 12-Jan-2021
1034,Revenue,CAHD,South Glos Users in South Glos Homes,Permanent Nursing,Deerhurst Nursing Home,735.68, 12-Jan-2021
1035,Revenue,CAHD,North - Community based support,Permanent Nursing,Deerhurst Nursing Home,4088.08, 12-Jan-2021
1036,Revenue,CAHD,South Glos Users in South Glos Homes,Permanent Nursing,Deerhurst Nursing Home,735.68, 12-Jan-2021
1037,Revenue,CAHD,South - Commissioned Services,Permanent Nursing,Deerhurst Nursing Home,4086.08, 12-Jan-2021
1038,Revenue,CAHD,South Glos Users in South Glos Homes,Permanent Nursing,Deerhurst Nursing Home,735.68, 12-Jan-2021
1039,Revenue,CAHD,Central - Commissioned Services,Respite Planned - Nursing,Deerhurst Nursing Home,845.08, 12-Jan-2021
1040,Revenue,CAHD,South Glos Users in South Glos Homes,Permanent Nursing,Deerhurst Nursing Home,735.68, 12-Jan-2021
1041,Revenue,CAHD,South - Commissioned Services,Permanent Nursing,Deerhurst Nursing Home,3969.04, 12-Jan-2021
1042,Revenue,CAHD,South Glos Users in South Glos Homes,Permanent Nursing,Deerhurst Nursing Home,735.68, 12-Jan-2021
1043,Revenue,CAHD,South - Commissioned Services,Permanent Nursing,Deerhurst Nursing Home,5020.98, 12-Jan-2021
1044,Revenue,CAHD,South - Commissioned Services,Permanent Nursing,Deerhurst Nursing Home,4535.08, 12-Jan-2021
1045,Revenue,CAHD,South Glos Users in South Glos Homes,Permanent Nursing,Deerhurst Nursing Home,735.68, 12-Jan-2021
1046,Revenue,CAHD,South - Commissioned Services,Permanent Nursing,Deerhurst Nursing Home,4132.00, 12-Jan-2021
1047,Revenue,CAHD,South Glos Users in South Glos Homes,Permanent Nursing,Deerhurst Nursing Home,735.68, 12-Jan-2021
1048,Revenue,CAHD,South Glos Users in South Glos Homes,Permanent Nursing,Deerhurst Nursing Home,735.68, 12-Jan-2021
1049,Revenue,CAHD,South Glos Users in South Glos Homes,Permanent Nursing,Deerhurst Nursing Home,735.68, 12-Jan-2021
1050,Revenue,CAHD,South Glos Users in South Glos Homes,Permanent Nursing,Deerhurst Nursing Home,735.68, 12-Jan-2021
1051,Revenue,CAHD,North - Community based support,Permanent Nursing,Deerhurst Nursing Home,4006.00, 12-Jan-2021
1052,Revenue,CAHD,South Glos Users in South Glos Homes,Permanent Nursing,Deerhurst Nursing Home,735.68, 12-Jan-2021
1053,Revenue,CAHD,South - Commissioned Services,Permanent Nursing,Deerhurst Nursing Home,4085.36, 12-Jan-2021
1054,Revenue,CAHD,South Glos Users in South Glos Homes,Permanent Nursing,Deerhurst Nursing Home,735.68, 12-Jan-2021
1055,Revenue,CAHD,South Glos Users in South Glos Homes,Permanent Nursing,Deerhurst Nursing Home,735.68, 12-Jan-2021
1056,Revenue,CAHD,South Glos Users in South Glos Homes,Permanent Nursing,Deerhurst Nursing Home,735.68, 12-Jan-2021
1057,Revenue,CAHD,South - Commissioned Services,Permanent Nursing,Deerhurst Nursing Home,4006.00, 12-Jan-2021
1058,Revenue,CAHD,South - Commissioned Services,Permanent Residential,Deerhurst Nursing Home,4129.00, 12-Jan-2021
1059,Revenue,CAHD,South Glos Users in South Glos Homes,Permanent Nursing,Deerhurst Nursing Home,735.68, 12-Jan-2021
1060,Revenue,CAHD,South Glos Users in South Glos Homes,Permanent Nursing,Deerhurst Nursing Home,735.68, 12-Jan-2021
1061,Revenue,CAHD,South - Commissioned Services,Permanent Nursing,Deerhurst Nursing Home,4006.00, 12-Jan-2021
1062,Revenue,CAHD,South - Commissioned Services,Permanent Residential,Deerhurst Nursing Home,3891.20, 12-Jan-2021
1063,Revenue,CAHD,South Glos Users in South Glos Homes,Permanent Nursing,Deerhurst Nursing Home,735.68, 12-Jan-2021
1064,Revenue,CAHD,North - Community based support,Permanent Nursing,Deerhurst Nursing Home,3094.88, 12-Jan-2021
1065,Revenue,CAHD,South Glos Users in South Glos Homes,Permanent Nursing,Deerhurst Nursing Home,735.68, 12-Jan-2021
1066,Revenue,CAHD,South Glos Users in South Glos Homes,Permanent Nursing,Deerhurst Nursing Home,735.68, 12-Jan-2021
1067,Revenue,CAHD,South Glos Users in South Glos Homes,Permanent Nursing,Deerhurst Nursing Home,735.68, 12-Jan-2021
1068,Revenue,CAHD,South Glos Users in South Glos Homes,Permanent Nursing,Deerhurst Nursing Home,735.68, 12-Jan-2021
1069,Revenue,CAHD,South - Commissioned Services,Permanent Nursing,Deerhurst Nursing Home,3304.24, 12-Jan-2021
1070,Revenue,CAHD,South Glos Users in South Glos Homes,Permanent Nursing,Deerhurst Nursing Home,735.68, 12-Jan-2021
1071,Revenue,CAHD,Covid - ASC - Infection Control,Grants to Voluntary Bodies,Deerhurst Nursing Home,696.86, 29-Jan-2021
1072,Revenue,CAHD,South - Commissioned Services,Supported Living,Design House,2714.44, 12-Jan-2021
1073,Revenue,CAHD,South - Commissioned Services,Other Small Contracts,Design House,3124.28, 12-Jan-2021
1074,Revenue,CAHD,South - Commissioned Services,Supported Living,Design House,13123.96, 12-Jan-2021
1075,Revenue,CAHD,South - Commissioned Services,Supported Living,Design House,3195.40, 12-Jan-2021
1076,Revenue,CAHD,South - Commissioned Services,Supported Living,Design House,3053.16, 12-Jan-2021
1077,Revenue,CAHD,South - Commissioned Services,Day Care / Social Activities,Design House,526.72, 12-Jan-2021
1078,Revenue,CAHD,18-25 Year Olds,Supported Living,Design House,3013.92, 12-Jan-2021
1079,Revenue,CAHD,Central - Commissioned Services,Day Care / Social Activities,Design House,2991.44, 12-Jan-2021
1080,Revenue,CAHD,South - Commissioned Services,Day Care / Social Activities,Design House,1317.04, 12-Jan-2021
1081,Revenue,CAHD,South - Commissioned Services,Supported Living,Design House,2691.36, 12-Jan-2021
1082,Revenue,CAHD,South - Commissioned Services,Supported Living,Design House,2691.36, 12-Jan-2021
1083,Revenue,CAHD,South - Commissioned Services,Other Small Contracts,Design House,2192.32, 12-Jan-2021
1084,Revenue,CAHD,South - Commissioned Services,Supported Living,Design House,1934.44, 12-Jan-2021
1085,Revenue,CAHD,South - Commissioned Services,Day Care / Social Activities,Design House,526.72, 12-Jan-2021
1086,Revenue,CAHD,South - Commissioned Services,Other Small Contracts,Design House,2566.92, 12-Jan-2021
1087,Revenue,CAHD,South - Commissioned Services,Supported Living,Design House,4393.28, 12-Jan-2021
1088,Revenue,CAHD,North - Community based support,Supported Living,Design House,3115.32, 12-Jan-2021
1089,Revenue,CAHD,South - Commissioned Services,Day Care / Social Activities,Design House,1536.08, 12-Jan-2021
1090,Revenue,CAHD,South - Commissioned Services,Supported Living,Design House,2983.16, 12-Jan-2021
1091,Revenue,CAHD,South - Commissioned Services,Supported Living,Design House,2593.64, 12-Jan-2021
1092,Revenue,CAHD,South - Commissioned Services,Supported Living,Design House,2302.64, 12-Jan-2021
1093,Revenue,CAHD,South - Commissioned Services,Supported Living,Design House,2302.64, 12-Jan-2021
1094,Revenue,CAHD,Bed and Breakfast,Bed & Breakfast,Designz Ltd,518.00, 13-Jan-2021
1095,Revenue,CAHD,Bed and Breakfast,Bed & Breakfast,Designz Ltd,518.00, 13-Jan-2021
1096,Revenue,CAHD,Bed and Breakfast,Bed & Breakfast,Designz Ltd,518.00, 15-Jan-2021
1097,Revenue,CAHD,Bed and Breakfast,Bed & Breakfast,Designz Ltd,518.00, 21-Jan-2021
1098,Revenue,CAHD,Central - Commissioned Services,Other Small Contracts,Dhek Bhal,248.51, 08-Jan-2021
1099,Revenue,CAHD,South - Commissioned Services,Other Small Contracts,Dhek Bhal,252.96, 08-Jan-2021
1100,Revenue,CAHD,Central - Commissioned Services,Other Small Contracts,Dhek Bhal,248.51, 08-Jan-2021
1101,Revenue,CAHD,South - Commissioned Services,Other Small Contracts,Dhek Bhal,252.96, 08-Jan-2021
1102,Revenue,CAHD,Community Support - North,Preventative Assistance,Direct Healthcare Group,431.00, 15-Jan-2021
1103,Revenue,CAHD,CSC - Vinney Green Secure Unit,Office Supplies & Equipment,Don Ruffles Limited,501.38, 18-Jan-2021
1104,Revenue,CAHD,Planning and Partnerships Team,Legal Fees,Individual,1200.00, 20-Jan-2021
1105,Revenue,CAHD,Statemented Support Academies,Other Public Bodies,Downend School,978.57, 25-Jan-2021
1106,Revenue,CAHD,Statemented Support Academies,Other Public Bodies,Downend School,660.24, 25-Jan-2021
1107,Revenue,CAHD,Statemented Support Academies,Other Public Bodies,Downend School,1025.73, 25-Jan-2021
1108,Revenue,CAHD,Statemented Support Academies,Other Public Bodies,Downend School,1013.94, 25-Jan-2021
1109,Revenue,CAHD,Statemented Support Academies,Other Public Bodies,Downend School,801.72, 25-Jan-2021
1110,Revenue,CAHD,Statemented Support Academies,Other Public Bodies,Downend School,530.67, 25-Jan-2021
1111,Revenue,CAHD,Statemented Support Academies,Other Public Bodies,Downend School,1108.26, 25-Jan-2021
1112,Revenue,CAHD,Statemented Support Academies,Other Public Bodies,Downend School,554.13, 25-Jan-2021
1113,Revenue,CAHD,Statemented Support Academies,Other Public Bodies,Downend School,666.00, 25-Jan-2021
1114,Revenue,CAHD,Statemented Support Academies,Other Public Bodies,Downend School,1438.38, 25-Jan-2021
1115,Revenue,CAHD,Statemented Support Academies,Other Public Bodies,Downend School,1709.55, 25-Jan-2021
1116,Revenue,CAHD,Statemented Support Academies,Other Public Bodies,Downend School,1192.50, 25-Jan-2021
1117,Revenue,CAHD,Statemented Support Academies,Other Public Bodies,Downend School,1544.49, 25-Jan-2021
1118,Revenue,CAHD,Social Lettings Agency,Rent,Individual,743.75, 26-Jan-2021
1119,Revenue,CAHD,Social Lettings Agency,Fees - General,Individual,13.16, 26-Jan-2021
1120,Revenue,CAHD,Independent Special Placements - Pre 16,Other Private Contractors,Durham School,8491.45, 07-Jan-2021
1121,Revenue,CAHD,CSC - Therapeutic Foster Care Programm,Special Fostering Scheme,Individual,573.00, 08-Jan-2021
1122,Revenue,CAHD,CSC - Therapeutic Foster Care Programm,Special Fostering Scheme,Individual,573.00, 15-Jan-2021
1123,Revenue,CAHD,CSC - Therapeutic Foster Care Programm,Special Fostering Scheme,Individual,573.00, 22-Jan-2021
1124,Revenue,CAHD,CSC - Therapeutic Foster Care Programm,Special Fostering Scheme,Individual,573.00, 29-Jan-2021
1125,Revenue,CAHD,North - Community based support,Permanent Residential,East Court,2763.56, 12-Jan-2021
1126,Revenue,CAHD,Minor Adaptations Service,Operational Equipment,Eastman & Co (Timber) Limited,1542.71, 26-Jan-2021
1127,Revenue,CAHD,Central - Commissioned Services,Permanent Residential,Edendale Lodge,3000.00, 12-Jan-2021
1128,Revenue,CAHD,Care Managment Team - Central,Long Service Awards,Edenred (UK Group) Limited,500.00, 29-Jan-2021
1129,Revenue,CAHD,South - Commissioned Services,Respite Planned - Residential,Edgemont House Ltd,11200.00, 12-Jan-2021
1130,Revenue,CAHD,South - Commissioned Services,Permanent Residential,Edgemont House Ltd,3200.00, 12-Jan-2021
1131,Revenue,CAHD,South - Commissioned Services,Respite Planned - Residential,Edgemont House Ltd,4800.00, 12-Jan-2021
1132,Revenue,CAHD,South - bed purchasing and direct  payments,Permanent Residential,Edgemont House Ltd,3264.00, 12-Jan-2021
1133,Revenue,CAHD,Covid - ASC - Infection Control,Grants to Voluntary Bodies,Edgemont House Ltd,4878.01, 13-Jan-2021
1134,Revenue,CAHD,South Glos Users in South Glos Homes,Permanent Nursing,Edgemont View Ltd,735.68, 12-Jan-2021
1135,Revenue,CAHD,South Glos Users in South Glos Homes,Permanent Nursing,Edgemont View Ltd,1734.10, 12-Jan-2021
1136,Revenue,CAHD,South Glos Users in South Glos Homes,Permanent Nursing,Edgemont View Ltd,735.68, 12-Jan-2021
1137,Revenue,CAHD,South - Commissioned Services,Permanent Nursing,Edgemont View Ltd,3500.00, 12-Jan-2021
1138,Revenue,CAHD,South Glos Users in South Glos Homes,Permanent Nursing,Edgemont View Ltd,735.68, 12-Jan-2021
1139,Revenue,CAHD,South Glos Users in South Glos Homes,Permanent Nursing,Edgemont View Ltd,735.68, 12-Jan-2021
1140,Revenue,CAHD,South - Commissioned Services,Respite Emergency - Residential,Edgemont View Ltd,1452.30, 12-Jan-2021
1141,Revenue,CAHD,South Glos Users in South Glos Homes,Permanent Nursing,Edgemont View Ltd,761.95, 12-Jan-2021
1142,Revenue,CAHD,South Glos Users in South Glos Homes,Permanent Nursing,Edgemont View Ltd,735.68, 12-Jan-2021
1143,Revenue,CAHD,South Glos Users in South Glos Homes,Permanent Nursing,Edgemont View Ltd,735.68, 12-Jan-2021
1144,Revenue,CAHD,South Glos Users in South Glos Homes,Permanent Nursing,Edgemont View Ltd,735.68, 12-Jan-2021
1145,Revenue,CAHD,South - Commissioned Services,Permanent Nursing,Edgemont View Ltd,3600.00, 12-Jan-2021
1146,Revenue,CAHD,South Glos Users in South Glos Homes,Permanent Nursing,Edgemont View Ltd,735.68, 12-Jan-2021
1147,Revenue,CAHD,South - Commissioned Services,Permanent Nursing,Edgemont View Ltd,3500.00, 12-Jan-2021
1148,Revenue,CAHD,South Glos Users in South Glos Homes,Permanent Nursing,Edgemont View Ltd,735.68, 12-Jan-2021
1149,Revenue,CAHD,South Glos Users in South Glos Homes,Permanent Nursing,Edgemont View Ltd,735.68, 12-Jan-2021
1150,Revenue,CAHD,South Glos Users in South Glos Homes,Permanent Nursing,Edgemont View Ltd,735.68, 12-Jan-2021
1151,Revenue,CAHD,South Glos Users in South Glos Homes,Permanent Nursing,Edgemont View Ltd,735.68, 12-Jan-2021
1152,Revenue,CAHD,South Glos Users in South Glos Homes,Permanent Nursing,Edgemont View Ltd,735.68, 12-Jan-2021
1153,Revenue,CAHD,South - Commissioned Services,Permanent Nursing,Edgemont View Ltd,3655.68, 12-Jan-2021
1154,Revenue,CAHD,South Glos Users in South Glos Homes,Permanent Nursing,Edgemont View Ltd,735.68, 12-Jan-2021
1155,Revenue,CAHD,Covid - ASC - Infection Control,Grants to Voluntary Bodies,Edgemont View Ltd,7317.02, 29-Jan-2021
1156,Revenue,CAHD,Planning and Partnerships Procurement,Other Supplies & Services,Eldercare,2689.75, 29-Jan-2021
1157,Revenue,CAHD,Planning and Partnerships Procurement,Other Supplies & Services,Eldercare,2598.76, 29-Jan-2021
1158,Revenue,CAHD,Social Lettings Agency,Rent,Individual,1169.28, 06-Jan-2021
1159,Revenue,CAHD,Social Lettings Agency,Fees - General,Individual,15.12, 06-Jan-2021
1160,Revenue,CAHD,Hospital Tuition,Other Private Contractors,Elysium Healthcare Ltd,1760.00, 06-Jan-2021
1161,Revenue,CAHD,CSC - Legal Fees,Legal Fees,Emma Roberts,425.00, 29-Jan-2021
1162,Revenue,CAHD,Special ISB,Other Public Bodies,Enable Trust,7643.88, 26-Jan-2021
1163,Revenue,CAHD,Special ISB,Other Public Bodies,Enable Trust,1540.83, 26-Jan-2021
1164,Revenue,CAHD,Special ISB,Other Public Bodies,Enable Trust,1175.87, 26-Jan-2021
1165,Revenue,CAHD,Special ISB,Other Public Bodies,Enable Trust,1175.87, 26-Jan-2021
1166,Revenue,CAHD,Special ISB,Other Public Bodies,Enable Trust,892.05, 26-Jan-2021
1167,Revenue,CAHD,Special ISB,Other Public Bodies,Enable Trust,1540.83, 26-Jan-2021
1168,Revenue,CAHD,Special ISB,Other Public Bodies,Enable Trust,1540.83, 26-Jan-2021
1169,Revenue,CAHD,Special ISB,Other Public Bodies,Enable Trust,1175.87, 26-Jan-2021
1170,Revenue,CAHD,Special ISB,Other Public Bodies,Enable Trust,1175.87, 26-Jan-2021
1171,Revenue,CAHD,Special ISB,Other Public Bodies,Enable Trust,1175.87, 26-Jan-2021
1172,Revenue,CAHD,Special ISB,Other Public Bodies,Enable Trust,1540.83, 26-Jan-2021
1173,Revenue,CAHD,Special ISB,Other Public Bodies,Enable Trust,648.70, 26-Jan-2021
1174,Revenue,CAHD,Special ISB,Other Public Bodies,Enable Trust,892.05, 26-Jan-2021
1175,Revenue,CAHD,Special ISB,Other Public Bodies,Enable Trust,892.05, 26-Jan-2021
1176,Revenue,CAHD,Special ISB,Other Public Bodies,Enable Trust,1175.87, 26-Jan-2021
1177,Revenue,CAHD,Special ISB,Other Public Bodies,Enable Trust,1175.87, 26-Jan-2021
1178,Revenue,CAHD,Special ISB,Other Public Bodies,Enable Trust,1175.87, 26-Jan-2021
1179,Revenue,CAHD,Special ISB,Other Public Bodies,Enable Trust,1540.83, 26-Jan-2021
1180,Revenue,CAHD,Special ISB,Other Public Bodies,Enable Trust,648.70, 26-Jan-2021
1181,Revenue,CAHD,Special ISB,Other Public Bodies,Enable Trust,1702.96, 26-Jan-2021
1182,Revenue,CAHD,Special ISB,Other Public Bodies,Enable Trust,1540.83, 26-Jan-2021
1183,Revenue,CAHD,Special ISB,Other Public Bodies,Enable Trust,1175.87, 26-Jan-2021
1184,Revenue,CAHD,Special ISB,Other Public Bodies,Enable Trust,1175.87, 26-Jan-2021
1185,Revenue,CAHD,Special ISB,Other Public Bodies,Enable Trust,892.05, 26-Jan-2021
1186,Revenue,CAHD,Special ISB,Other Public Bodies,Enable Trust,1175.87, 26-Jan-2021
1187,Revenue,CAHD,Special ISB,Other Public Bodies,Enable Trust,892.05, 26-Jan-2021
1188,Revenue,CAHD,Special ISB,Other Public Bodies,Enable Trust,2189.53, 26-Jan-2021
1189,Revenue,CAHD,Special ISB,Other Public Bodies,Enable Trust,1175.87, 26-Jan-2021
1190,Revenue,CAHD,Special ISB,Other Public Bodies,Enable Trust,1175.87, 26-Jan-2021
1191,Revenue,CAHD,Special ISB,Other Public Bodies,Enable Trust,1175.87, 26-Jan-2021
1192,Revenue,CAHD,Special ISB,Other Public Bodies,Enable Trust,1175.87, 26-Jan-2021
1193,Revenue,CAHD,Special ISB,Other Public Bodies,Enable Trust,1175.87, 26-Jan-2021
1194,Revenue,CAHD,Special ISB,Other Public Bodies,Enable Trust,2189.53, 26-Jan-2021
1195,Revenue,CAHD,Special ISB,Other Public Bodies,Enable Trust,1540.83, 26-Jan-2021
1196,Revenue,CAHD,Special ISB,Other Public Bodies,Enable Trust,892.05, 26-Jan-2021
1197,Revenue,CAHD,Special ISB,Other Public Bodies,Enable Trust,1540.83, 26-Jan-2021
1198,Revenue,CAHD,Special ISB,Other Public Bodies,Enable Trust,1175.87, 26-Jan-2021
1199,Revenue,CAHD,Special ISB,Other Public Bodies,Enable Trust,1540.83, 26-Jan-2021
1200,Revenue,CAHD,Special ISB,Other Public Bodies,Enable Trust,1175.87, 26-Jan-2021
1201,Revenue,CAHD,Special ISB,Other Public Bodies,Enable Trust,1540.83, 26-Jan-2021
1202,Revenue,CAHD,Special ISB,Other Public Bodies,Enable Trust,1175.87, 26-Jan-2021
1203,Revenue,CAHD,Special ISB,Other Public Bodies,Enable Trust,1175.87, 26-Jan-2021
1204,Revenue,CAHD,Special ISB,Other Public Bodies,Enable Trust,1175.87, 26-Jan-2021
1205,Revenue,CAHD,Special ISB,Other Public Bodies,Enable Trust,1175.87, 26-Jan-2021
1206,Revenue,CAHD,Special ISB,Other Public Bodies,Enable Trust,2189.53, 26-Jan-2021
1207,Revenue,CAHD,Special ISB,Other Public Bodies,Enable Trust,1540.83, 26-Jan-2021
1208,Revenue,CAHD,Special ISB,Other Public Bodies,Enable Trust,892.05, 26-Jan-2021
1209,Revenue,CAHD,Special ISB,Other Public Bodies,Enable Trust,892.05, 26-Jan-2021
1210,Revenue,CAHD,Special ISB,Other Public Bodies,Enable Trust,1540.83, 26-Jan-2021
1211,Revenue,CAHD,Special ISB,Other Public Bodies,Enable Trust,1540.83, 26-Jan-2021
1212,Revenue,CAHD,Special ISB,Other Public Bodies,Enable Trust,1175.87, 26-Jan-2021
1213,Revenue,CAHD,Special ISB,Other Public Bodies,Enable Trust,1175.87, 26-Jan-2021
1214,Revenue,CAHD,Special ISB,Other Public Bodies,Enable Trust,1540.83, 26-Jan-2021
1215,Revenue,CAHD,Special ISB,Other Public Bodies,Enable Trust,1540.83, 26-Jan-2021
1216,Revenue,CAHD,Special ISB,Other Public Bodies,Enable Trust,1175.87, 26-Jan-2021
1217,Revenue,CAHD,Special ISB,Other Public Bodies,Enable Trust,1175.87, 26-Jan-2021
1218,Revenue,CAHD,Special ISB,Other Public Bodies,Enable Trust,1175.87, 26-Jan-2021
1219,Revenue,CAHD,Special ISB,Other Public Bodies,Enable Trust,1175.87, 26-Jan-2021
1220,Revenue,CAHD,Special ISB,Other Public Bodies,Enable Trust,1540.83, 26-Jan-2021
1221,Revenue,CAHD,Special ISB,Other Public Bodies,Enable Trust,2189.53, 26-Jan-2021
1222,Revenue,CAHD,Special ISB,Other Public Bodies,Enable Trust,2189.53, 26-Jan-2021
1223,Revenue,CAHD,Special ISB,Other Public Bodies,Enable Trust,1175.87, 26-Jan-2021
1224,Revenue,CAHD,Special ISB,Other Public Bodies,Enable Trust,648.70, 26-Jan-2021
1225,Revenue,CAHD,Special ISB,Other Public Bodies,Enable Trust,1175.87, 26-Jan-2021
1226,Revenue,CAHD,Special ISB,Other Public Bodies,Enable Trust,1175.87, 26-Jan-2021
1227,Revenue,CAHD,Special ISB,Other Public Bodies,Enable Trust,892.05, 26-Jan-2021
1228,Revenue,CAHD,Special ISB,Other Public Bodies,Enable Trust,1175.87, 26-Jan-2021
1229,Revenue,CAHD,Special ISB,Other Public Bodies,Enable Trust,892.05, 26-Jan-2021
1230,Revenue,CAHD,Special ISB,Other Public Bodies,Enable Trust,1540.83, 26-Jan-2021
1231,Revenue,CAHD,Special ISB,Other Public Bodies,Enable Trust,1175.87, 26-Jan-2021
1232,Revenue,CAHD,Special ISB,Other Public Bodies,Enable Trust,892.05, 26-Jan-2021
1233,Revenue,CAHD,Special ISB,Other Public Bodies,Enable Trust,1540.83, 26-Jan-2021
1234,Revenue,CAHD,Special ISB,Other Public Bodies,Enable Trust,1540.83, 26-Jan-2021
1235,Revenue,CAHD,Special ISB,Other Public Bodies,Enable Trust,1175.87, 26-Jan-2021
1236,Revenue,CAHD,Special ISB,Other Public Bodies,Enable Trust,2189.53, 26-Jan-2021
1237,Revenue,CAHD,Special ISB,Other Public Bodies,Enable Trust,2189.53, 26-Jan-2021
1238,Revenue,CAHD,Special ISB,Other Public Bodies,Enable Trust,2189.53, 26-Jan-2021
1239,Revenue,CAHD,Special ISB,Other Public Bodies,Enable Trust,4402.68, 26-Jan-2021
1240,Revenue,CAHD,Special ISB,Other Public Bodies,Enable Trust,1175.87, 26-Jan-2021
1241,Revenue,CAHD,Special ISB,Other Public Bodies,Enable Trust,1175.87, 26-Jan-2021
1242,Revenue,CAHD,Special ISB,Other Public Bodies,Enable Trust,2547.96, 26-Jan-2021
1243,Revenue,CAHD,Special ISB,Other Public Bodies,Enable Trust,1175.87, 26-Jan-2021
1244,Revenue,CAHD,Special ISB,Other Public Bodies,Enable Trust,1702.96, 26-Jan-2021
1245,Revenue,CAHD,Special ISB,Other Public Bodies,Enable Trust,892.05, 26-Jan-2021
1246,Revenue,CAHD,Special ISB,Other Public Bodies,Enable Trust,1702.96, 26-Jan-2021
1247,Revenue,CAHD,Special ISB,Other Public Bodies,Enable Trust,1175.87, 26-Jan-2021
1248,Revenue,CAHD,Special ISB,Other Public Bodies,Enable Trust,2189.53, 26-Jan-2021
1249,Revenue,CAHD,Special ISB,Other Public Bodies,Enable Trust,2189.53, 26-Jan-2021
1250,Revenue,CAHD,Special ISB,Other Public Bodies,Enable Trust,1508.33, 26-Jan-2021
1251,Revenue,CAHD,Special ISB,Other Public Bodies,Enable Trust,892.05, 26-Jan-2021
1252,Revenue,CAHD,Special ISB,Other Public Bodies,Enable Trust,892.05, 26-Jan-2021
1253,Revenue,CAHD,Special ISB,Other Public Bodies,Enable Trust,2513.88, 26-Jan-2021
1254,Revenue,CAHD,Special ISB,Other Public Bodies,Enable Trust,892.05, 26-Jan-2021
1255,Revenue,CAHD,Special ISB,Other Public Bodies,Enable Trust,892.05, 26-Jan-2021
1256,Revenue,CAHD,Special ISB,Other Public Bodies,Enable Trust,1702.96, 26-Jan-2021
1257,Revenue,CAHD,Special ISB,Other Public Bodies,Enable Trust,1702.96, 26-Jan-2021
1258,Revenue,CAHD,Special ISB,Other Public Bodies,Enable Trust,1702.96, 26-Jan-2021
1259,Revenue,CAHD,Special ISB,Other Public Bodies,Enable Trust,1702.96, 26-Jan-2021
1260,Revenue,CAHD,Special ISB,Other Public Bodies,Enable Trust,1175.87, 26-Jan-2021
1261,Revenue,CAHD,Special ISB,Other Public Bodies,Enable Trust,1175.87, 26-Jan-2021
1262,Revenue,CAHD,Special ISB,Other Public Bodies,Enable Trust,1702.96, 26-Jan-2021
1263,Revenue,CAHD,Special ISB,Other Public Bodies,Enable Trust,1175.87, 26-Jan-2021
1264,Revenue,CAHD,Special ISB,Other Public Bodies,Enable Trust,1175.87, 26-Jan-2021
1265,Revenue,CAHD,Special ISB,Other Public Bodies,Enable Trust,1175.87, 26-Jan-2021
1266,Revenue,CAHD,Special ISB,Other Public Bodies,Enable Trust,1702.96, 26-Jan-2021
1267,Revenue,CAHD,Special ISB,Other Public Bodies,Enable Trust,1175.87, 26-Jan-2021
1268,Revenue,CAHD,Special ISB,Other Public Bodies,Enable Trust,1702.96, 26-Jan-2021
1269,Revenue,CAHD,Special ISB,Other Public Bodies,Enable Trust,1175.87, 26-Jan-2021
1270,Revenue,CAHD,Special ISB,Other Public Bodies,Enable Trust,1175.87, 26-Jan-2021
1271,Revenue,CAHD,Special ISB,Other Public Bodies,Enable Trust,1175.87, 26-Jan-2021
1272,Revenue,CAHD,Special ISB,Other Public Bodies,Enable Trust,1013.74, 26-Jan-2021
1273,Revenue,CAHD,Special ISB,Other Public Bodies,Enable Trust,1175.87, 26-Jan-2021
1274,Revenue,CAHD,Special ISB,Other Public Bodies,Enable Trust,892.05, 26-Jan-2021
1275,Revenue,CAHD,Special ISB,Other Public Bodies,Enable Trust,1175.87, 26-Jan-2021
1276,Revenue,CAHD,Special ISB,Other Public Bodies,Enable Trust,1175.87, 26-Jan-2021
1277,Revenue,CAHD,Special ISB,Other Public Bodies,Enable Trust,2189.53, 26-Jan-2021
1278,Revenue,CAHD,Special ISB,Other Public Bodies,Enable Trust,1702.96, 26-Jan-2021
1279,Revenue,CAHD,Special ISB,Other Public Bodies,Enable Trust,1702.96, 26-Jan-2021
1280,Revenue,CAHD,Special ISB,Other Public Bodies,Enable Trust,892.05, 26-Jan-2021
1281,Revenue,CAHD,Special ISB,Other Public Bodies,Enable Trust,648.70, 26-Jan-2021
1282,Revenue,CAHD,Special ISB,Other Public Bodies,Enable Trust,1175.87, 26-Jan-2021
1283,Revenue,CAHD,Special ISB,Other Public Bodies,Enable Trust,892.05, 26-Jan-2021
1284,Revenue,CAHD,Special ISB,Other Public Bodies,Enable Trust,1175.87, 26-Jan-2021
1285,Revenue,CAHD,Special ISB,Other Public Bodies,Enable Trust,1702.96, 26-Jan-2021
1286,Revenue,CAHD,Special ISB,Other Public Bodies,Enable Trust,1540.83, 26-Jan-2021
1287,Revenue,CAHD,Special ISB,Other Public Bodies,Enable Trust,892.05, 26-Jan-2021
1288,Revenue,CAHD,Special ISB,Other Public Bodies,Enable Trust,1702.96, 26-Jan-2021
1289,Revenue,CAHD,Special ISB,Other Public Bodies,Enable Trust,1175.87, 26-Jan-2021
1290,Revenue,CAHD,Special ISB,Other Public Bodies,Enable Trust,1175.87, 26-Jan-2021
1291,Revenue,CAHD,Special ISB,Other Public Bodies,Enable Trust,1175.87, 26-Jan-2021
1292,Revenue,CAHD,Special ISB,Other Public Bodies,Enable Trust,892.05, 26-Jan-2021
1293,Revenue,CAHD,Special ISB,Other Public Bodies,Enable Trust,892.05, 26-Jan-2021
1294,Revenue,CAHD,Special ISB,Other Public Bodies,Enable Trust,892.05, 26-Jan-2021
1295,Revenue,CAHD,Special ISB,Other Public Bodies,Enable Trust,1175.87, 26-Jan-2021
1296,Revenue,CAHD,Special ISB,Other Public Bodies,Enable Trust,892.05, 26-Jan-2021
1297,Revenue,CAHD,Special ISB,Other Public Bodies,Enable Trust,892.05, 26-Jan-2021
1298,Revenue,CAHD,Special ISB,Other Public Bodies,Enable Trust,1175.87, 26-Jan-2021
1299,Revenue,CAHD,Special ISB,Other Public Bodies,Enable Trust,1175.87, 26-Jan-2021
1300,Revenue,CAHD,Special ISB,Other Public Bodies,Enable Trust,892.05, 26-Jan-2021
1301,Revenue,CAHD,Special ISB,Other Public Bodies,Enable Trust,892.05, 26-Jan-2021
1302,Revenue,CAHD,Special ISB,Other Public Bodies,Enable Trust,1175.87, 26-Jan-2021
1303,Revenue,CAHD,Special ISB,Other Public Bodies,Enable Trust,1175.87, 26-Jan-2021
1304,Revenue,CAHD,Special ISB,Other Public Bodies,Enable Trust,1175.87, 26-Jan-2021
1305,Revenue,CAHD,Special ISB,Other Public Bodies,Enable Trust,1702.96, 26-Jan-2021
1306,Revenue,CAHD,Special ISB,Other Public Bodies,Enable Trust,1175.87, 26-Jan-2021
1307,Revenue,CAHD,Special ISB,Other Public Bodies,Enable Trust,892.05, 26-Jan-2021
1308,Revenue,CAHD,Special ISB,Other Public Bodies,Enable Trust,892.05, 26-Jan-2021
1309,Revenue,CAHD,Special ISB,Other Public Bodies,Enable Trust,1702.96, 26-Jan-2021
1310,Revenue,CAHD,Special ISB,Other Public Bodies,Enable Trust,2189.53, 26-Jan-2021
1311,Revenue,CAHD,Special ISB,Other Public Bodies,Enable Trust,1175.87, 26-Jan-2021
1312,Revenue,CAHD,Special ISB,Other Public Bodies,Enable Trust,892.05, 26-Jan-2021
1313,Revenue,CAHD,Special ISB,Other Public Bodies,Enable Trust,2189.53, 26-Jan-2021
1314,Revenue,CAHD,Special ISB,Other Public Bodies,Enable Trust,1540.83, 26-Jan-2021
1315,Revenue,CAHD,Special ISB,Other Public Bodies,Enable Trust,648.70, 26-Jan-2021
1316,Revenue,CAHD,Special ISB,Other Public Bodies,Enable Trust,1175.87, 26-Jan-2021
1317,Revenue,CAHD,Special ISB,Other Public Bodies,Enable Trust,2189.53, 26-Jan-2021
1318,Revenue,CAHD,Special ISB,Other Public Bodies,Enable Trust,1175.87, 26-Jan-2021
1319,Revenue,CAHD,Special ISB,Other Public Bodies,Enable Trust,2189.53, 26-Jan-2021
1320,Revenue,CAHD,Special ISB,Other Public Bodies,Enable Trust,1021.76, 26-Jan-2021
1321,Revenue,CAHD,Special ISB,Other Public Bodies,Enable Trust,1702.96, 26-Jan-2021
1322,Revenue,CAHD,Special ISB,Other Public Bodies,Enable Trust,1702.96, 26-Jan-2021
1323,Revenue,CAHD,Special ISB,Other Public Bodies,Enable Trust,1702.96, 26-Jan-2021
1324,Revenue,CAHD,Special ISB,Other Public Bodies,Enable Trust,2513.88, 26-Jan-2021
1325,Revenue,CAHD,Special ISB,Other Public Bodies,Enable Trust,2189.53, 26-Jan-2021
1326,Revenue,CAHD,Special ISB,Other Public Bodies,Enable Trust,1702.96, 26-Jan-2021
1327,Revenue,CAHD,Special ISB,Other Public Bodies,Enable Trust,1702.96, 26-Jan-2021
1328,Revenue,CAHD,Special ISB,Other Public Bodies,Enable Trust,1175.87, 26-Jan-2021
1329,Revenue,CAHD,Special ISB,Other Public Bodies,Enable Trust,1702.96, 26-Jan-2021
1330,Revenue,CAHD,Special ISB,Other Public Bodies,Enable Trust,2513.88, 26-Jan-2021
1331,Revenue,CAHD,Special ISB,Other Public Bodies,Enable Trust,2513.88, 26-Jan-2021
1332,Revenue,CAHD,Special ISB,Other Public Bodies,Enable Trust,1313.74, 26-Jan-2021
1333,Revenue,CAHD,Special ISB,Other Public Bodies,Enable Trust,5803.51, 26-Jan-2021
1334,Revenue,CAHD,Special ISB,Other Public Bodies,Enable Trust,2189.53, 26-Jan-2021
1335,Revenue,CAHD,Special ISB,Other Public Bodies,Enable Trust,1175.87, 26-Jan-2021
1336,Revenue,CAHD,Central - Commissioned Services,Other Small Contracts,Epiphany In Care,1451.60, 15-Jan-2021
1337,Revenue,CAHD,Central - Commissioned Services,Other Small Contracts,Epiphany In Care,5076.00, 11-Jan-2021
1338,Revenue,CAHD,18-25 Year Olds,Other Small Contracts,Epiphany In Care,990.00, 07-Jan-2021
1339,Revenue,CAHD,Central - Commissioned Services,Other Small Contracts,Epiphany In Care,1108.80, 25-Jan-2021
1340,Revenue,CAHD,Central - Commissioned Services,Other Small Contracts,Epiphany In Care,5076.00, 11-Jan-2021
1341,Revenue,CAHD,18-25 Year Olds,Other Small Contracts,Epiphany In Care,1029.60, 07-Jan-2021
1342,Revenue,CAHD,Central - Commissioned Services,Other Small Contracts,Epiphany In Care,1188.00, 25-Jan-2021
1343,Revenue,CAHD,Central - Commissioned Services,Other Small Contracts,Epiphany In Care,5049.00, 25-Jan-2021
1344,Revenue,CAHD,Central - Commissioned Services,Other Small Contracts,Epiphany In Care,1019.70, 26-Jan-2021
1345,Revenue,CAHD,North - Community based support,Other Small Contracts,Epiphany In Care,10819.20, 27-Jan-2021
1346,Revenue,CAHD,Central - Commissioned Services,Other Small Contracts,Epiphany In Care,1029.60, 28-Jan-2021
1347,Revenue,CAHD,North - S117,Permanent Residential,Evolve House,3276.80, 12-Jan-2021
1348,Revenue,CAHD,Placements OLA Special Schools and RB,Other L.A.s - General,Excalibur Academies Trust T/A,2238.78, 25-Jan-2021
1349,Revenue,CAHD,Covid - ASC - Infection Control,Grants to Voluntary Bodies,Excel Living Limited,1740.40, 29-Jan-2021
1350,Revenue,CAHD,Social Lettings Agency,Prop.Serv. General Repairs,Express Property Services Limited,39.00, 08-Jan-2021
1351,Revenue,CAHD,Social Lettings Agency,Prop.Serv. General Repairs,Express Property Services Limited,200.00, 08-Jan-2021
1352,Revenue,CAHD,Social Lettings Agency,Prop.Serv. General Repairs,Express Property Services Limited,203.00, 08-Jan-2021
1353,Revenue,CAHD,Social Lettings Agency,Prop.Serv. General Repairs,Express Property Services Limited,310.00, 08-Jan-2021
1354,Revenue,CAHD,Social Lettings Agency,Prop.Serv. General Repairs,Express Property Services Limited,261.40, 08-Jan-2021
1355,Revenue,CAHD,Social Lettings Agency,Prop.Serv. General Repairs,Express Property Services Limited,60.00, 08-Jan-2021
1356,Revenue,CAHD,Social Lettings Agency,Prop.Serv. General Repairs,Express Property Services Limited,60.00, 08-Jan-2021
1357,Revenue,CAHD,Social Lettings Agency,Prop.Serv. General Repairs,Express Property Services Limited,165.00, 08-Jan-2021
1358,Revenue,CAHD,Social Lettings Agency,Prop.Serv. General Repairs,Express Property Services Limited,112.00, 08-Jan-2021
1359,Revenue,CAHD,Social Lettings Agency,Prop.Serv. General Repairs,Express Property Services Limited,122.00, 08-Jan-2021
1360,Revenue,CAHD,Social Lettings Agency,Prop.Serv. General Repairs,Express Property Services Limited,697.00, 08-Jan-2021
1361,Revenue,CAHD,Social Lettings Agency,Prop.Serv. General Repairs,Express Property Services Limited,112.00, 08-Jan-2021
1362,Revenue,CAHD,Learning Difficulties PSL,Prop.Serv. General Repairs,Express Property Services Limited,207.00, 08-Jan-2021
1363,Revenue,CAHD,Learning Difficulties PSL,Prop.Serv. General Repairs,Express Property Services Limited,205.00, 08-Jan-2021
1364,Revenue,CAHD,Homeless - Private Sector Leasing,Prop.Serv. General Repairs,Express Property Services Limited,701.00, 08-Jan-2021
1365,Revenue,CAHD,Homeless - Private Sector Leasing,Prop.Serv. General Repairs,Express Property Services Limited,93.00, 08-Jan-2021
1366,Revenue,CAHD,Homeless - Private Sector Leasing,Prop.Serv. General Repairs,Express Property Services Limited,111.00, 08-Jan-2021
1367,Revenue,CAHD,Homeless - Private Sector Leasing,Prop.Serv. General Repairs,Express Property Services Limited,135.00, 08-Jan-2021
1368,Revenue,CAHD,Extra Care Housing,Private & Voluntary Home Care,Extra Care Charitable Trust,27505.67, 12-Jan-2021
1369,Revenue,CAHD,Covid - ASC - Infection Control,Grants to Voluntary Bodies,Extra Care Charitable Trust,6816.57, 13-Jan-2021
1370,Revenue,CAHD,North - Community based support,Permanent Residential,Eyre Court,5000.00, 12-Jan-2021
1371,Revenue,CAHD,Covid - ASC - Infection Control,Grants to Voluntary Bodies,Eyre Court,35539.82, 21-Jan-2021
1372,Revenue,CAHD,Post 16 High Needs Placements,Other Private Contractors,Fairfield Farm Trust,21099.13, 25-Jan-2021
1373,Revenue,CAHD,South - Commissioned Services,Permanent Nursing,Fairview Court,3886.76, 12-Jan-2021
1374,Revenue,CAHD,South Glos Users in South Glos Homes,Permanent Nursing,Fairview Court,735.68, 12-Jan-2021
1375,Revenue,CAHD,South Glos Users in South Glos Homes,Permanent Nursing,Fairview Court,735.68, 12-Jan-2021
1376,Revenue,CAHD,South Glos Users in South Glos Homes,Permanent Nursing,Fairview Court,735.68, 12-Jan-2021
1377,Revenue,CAHD,South Glos Users in South Glos Homes,Permanent Nursing,Fairview Court,735.68, 12-Jan-2021
1378,Revenue,CAHD,South - Commissioned Services,Permanent Nursing,Fairview Court,4137.76, 12-Jan-2021
1379,Revenue,CAHD,South Glos Users in South Glos Homes,Permanent Nursing,Fairview Court,735.68, 12-Jan-2021
1380,Revenue,CAHD,South Glos Users in South Glos Homes,Permanent Nursing,Fairview Court,735.68, 12-Jan-2021
1381,Revenue,CAHD,South Glos Users in South Glos Homes,Permanent Nursing,Fairview Court,735.68, 12-Jan-2021
1382,Revenue,CAHD,South - Commissioned Services,Permanent Nursing,Fairview Court,4800.00, 12-Jan-2021
1383,Revenue,CAHD,South Glos Users in South Glos Homes,Permanent Nursing,Fairview Court,735.68, 12-Jan-2021
1384,Revenue,CAHD,South - Commissioned Services,Permanent Nursing,Fairview Court,3618.72, 12-Jan-2021
1385,Revenue,CAHD,South Glos Users in South Glos Homes,Permanent Nursing,Fairview Court,735.68, 12-Jan-2021
1386,Revenue,CAHD,South Glos Users in South Glos Homes,Permanent Nursing,Fairview Court,735.68, 12-Jan-2021
1387,Revenue,CAHD,South - Commissioned Services,Permanent Nursing,Fairview Court,4800.00, 12-Jan-2021
1388,Revenue,CAHD,South Glos Users in South Glos Homes,Permanent Nursing,Fairview Court,735.68, 12-Jan-2021
1389,Revenue,CAHD,South - S117,Permanent Nursing,Fairview Court,4257.32, 12-Jan-2021
1390,Revenue,CAHD,South Glos Users in South Glos Homes,Permanent Nursing,Fairview Court,735.68, 12-Jan-2021
1391,Revenue,CAHD,South Glos Users in South Glos Homes,Permanent Nursing,Fairview Court,735.68, 12-Jan-2021
1392,Revenue,CAHD,South - bed purchasing and direct  payments,Permanent Nursing,Fairview Court,4078.24, 12-Jan-2021
1393,Revenue,CAHD,South Glos Users in South Glos Homes,Permanent Nursing,Fairview Court,735.68, 12-Jan-2021
1394,Revenue,CAHD,South Glos Users in South Glos Homes,Permanent Nursing,Fairview Court,735.68, 12-Jan-2021
1395,Revenue,CAHD,South Glos Users in South Glos Homes,Permanent Nursing,Fairview Court,735.68, 12-Jan-2021
1396,Revenue,CAHD,South Glos Users in South Glos Homes,Permanent Nursing,Fairview Court,735.68, 12-Jan-2021
1397,Revenue,CAHD,South - Commissioned Services,Permanent Nursing,Fairview Court,4800.00, 12-Jan-2021
1398,Revenue,CAHD,South Glos Users in South Glos Homes,Permanent Nursing,Fairview Court,735.68, 12-Jan-2021
1399,Revenue,CAHD,South Glos Users in South Glos Homes,Permanent Nursing,Fairview Court,735.68, 12-Jan-2021
1400,Revenue,CAHD,South Glos Users in South Glos Homes,Permanent Nursing,Fairview Court,735.68, 12-Jan-2021
1401,Revenue,CAHD,South Glos Users in South Glos Homes,Permanent Nursing,Fairview Court,735.68, 12-Jan-2021
1402,Revenue,CAHD,South - Commissioned Services,Permanent Residential,Fairview Court,4048.64, 12-Jan-2021
1403,Revenue,CAHD,South Glos Users in South Glos Homes,Permanent Nursing,Fairview Court,735.68, 12-Jan-2021
1404,Revenue,CAHD,South Glos Users in South Glos Homes,Permanent Nursing,Fairview Court,735.68, 12-Jan-2021
1405,Revenue,CAHD,South - Commissioned Services,Permanent Nursing,Fairview Court,514.29, 12-Jan-2021
1406,Revenue,CAHD,South Glos Users in South Glos Homes,Permanent Nursing,Fairview Court,1234.89, 12-Jan-2021
1407,Revenue,CAHD,South Glos Users in South Glos Homes,Permanent Nursing,Fairview Court,735.68, 12-Jan-2021
1408,Revenue,CAHD,South Glos Users in South Glos Homes,Permanent Nursing,Fairview Court,735.68, 12-Jan-2021
1409,Revenue,CAHD,North - Community based support,Permanent Residential,Fairview Court,3321.44, 12-Jan-2021
1410,Revenue,CAHD,South - bed purchasing and direct  payments,Permanent Nursing,Fairview Court,4137.76, 12-Jan-2021
1411,Revenue,CAHD,South Glos Users in South Glos Homes,Permanent Nursing,Fairview Court,735.68, 12-Jan-2021
1412,Revenue,CAHD,South Glos Users in South Glos Homes,Permanent Nursing,Fairview Court,735.68, 12-Jan-2021
1413,Revenue,CAHD,South - Commissioned Services,Permanent Nursing,Fairview Court,6000.00, 12-Jan-2021
1414,Revenue,CAHD,South - Commissioned Services,Permanent Nursing,Fairview Court,4800.00, 12-Jan-2021
1415,Revenue,CAHD,South Glos Users in South Glos Homes,Permanent Nursing,Fairview Court,919.60, 12-Jan-2021
1416,Revenue,CAHD,South Glos Users in South Glos Homes,Permanent Nursing,Fairview Court,735.68, 12-Jan-2021
1417,Revenue,CAHD,South Glos Users in South Glos Homes,Permanent Nursing,Fairview Court,735.68, 12-Jan-2021
1418,Revenue,CAHD,South Glos Users in South Glos Homes,Permanent Nursing,Fairview Court,735.68, 12-Jan-2021
1419,Revenue,CAHD,South - Commissioned Services,Permanent Nursing,Fairview Court,3553.36, 12-Jan-2021
1420,Revenue,CAHD,South Glos Users in South Glos Homes,Permanent Nursing,Fairview Court,735.68, 12-Jan-2021
1421,Revenue,CAHD,North - Community based support,Permanent Nursing,Fairview Court,3886.76, 12-Jan-2021
1422,Revenue,CAHD,South Glos Users in South Glos Homes,Permanent Nursing,Fairview Court,735.68, 12-Jan-2021
1423,Revenue,CAHD,South - Commissioned Services,Permanent Nursing,Fairview Court,3192.96, 12-Jan-2021
1424,Revenue,CAHD,South Glos Users in South Glos Homes,Permanent Nursing,Fairview Court,735.68, 12-Jan-2021
1425,Revenue,CAHD,South - Commissioned Services,Permanent Nursing,Fairview Court,3618.72, 12-Jan-2021
1426,Revenue,CAHD,South Glos Users in South Glos Homes,Permanent Nursing,Fairview Court,735.68, 12-Jan-2021
1427,Revenue,CAHD,South - Commissioned Services,Permanent Nursing,Fairview Court,4028.00, 12-Jan-2021
1428,Revenue,CAHD,South Glos Users in South Glos Homes,Permanent Nursing,Fairview Court,735.68, 12-Jan-2021
1429,Revenue,CAHD,South - Commissioned Services,Permanent Nursing,Fairview Court,4137.76, 12-Jan-2021
1430,Revenue,CAHD,South Glos Users in South Glos Homes,Permanent Nursing,Fairview Court,735.68, 12-Jan-2021
1431,Revenue,CAHD,Covid - ASC - Infection Control,Grants to Voluntary Bodies,Fairview Court,17073.05, 29-Jan-2021
1432,Revenue,CAHD,South - Commissioned Services,Permanent Residential,Fairview House,2349.60, 12-Jan-2021
1433,Revenue,CAHD,South - Commissioned Services,Permanent Residential,Fairview House,3400.00, 12-Jan-2021
1434,Revenue,CAHD,South - Commissioned Services,Permanent Residential,Fairview House,3400.00, 12-Jan-2021
1435,Revenue,CAHD,South Glos Users in South Glos Homes,Permanent Nursing,Fairview House,735.68, 12-Jan-2021
1436,Revenue,CAHD,South - Commissioned Services,Permanent Residential,Fairview House,3600.00, 12-Jan-2021
1437,Revenue,CAHD,South - Commissioned Services,Permanent Residential,Fairview House,3468.00, 12-Jan-2021
1438,Revenue,CAHD,South - Commissioned Services,Permanent Residential,Fairview House,3800.00, 12-Jan-2021
1439,Revenue,CAHD,Covid - ASC - Infection Control,Grants to Voluntary Bodies,Fairview House,8362.31, 29-Jan-2021
1440,Revenue,CAHD,North - Community based support,Permanent Residential,Faith House,2861.88, 12-Jan-2021
1441,Revenue,CAHD,North - Community based support,Fees & Charges Income - General,Faith House,501.57, 12-Jan-2021
1442,Revenue,CAHD,North - Community based support,Fees & Charges Income - General,Faith House,623.22, 12-Jan-2021
1443,Revenue,CAHD,Central - Commissioned Services,Permanent Residential,Faith House,3128.00, 12-Jan-2021
1444,Revenue,CAHD,North - Community based support,Permanent Residential,Faith House,3039.60, 12-Jan-2021
1445,Revenue,CAHD,South - Commissioned Services,Permanent Residential,Faith House,2958.00, 12-Jan-2021
1446,Revenue,CAHD,Post 16 High Needs Placements,Other Private Contractors,Farleigh FEC-Frome Priory,7924.19, 13-Jan-2021
1447,Revenue,CAHD,Post 16 High Needs Placements,Other Private Contractors,Farleigh FEC-Frome Priory,7924.19, 13-Jan-2021
1448,Revenue,CAHD,North - Community based support,Permanent Nursing,Field House Care Home,3522.56, 12-Jan-2021
1449,Revenue,CAHD,North - Community based support,Permanent Nursing,Field House Care Home,3403.60, 12-Jan-2021
1450,Revenue,CAHD,North - Community based support,Permanent Nursing,Field House Care Home,3589.48, 12-Jan-2021
1451,Revenue,CAHD,North - Community based support,Fees & Charges Income - General,Field House Care Home,524.92, 12-Jan-2021
1452,Revenue,CAHD,Central - Commissioned Services,Permanent Nursing,Field House Care Home,3760.00, 12-Jan-2021
1453,Revenue,CAHD,Central - Commissioned Services,Permanent Nursing,Field House Care Home,3740.00, 12-Jan-2021
1454,Revenue,CAHD,North - Community based support,Permanent Nursing,Field House Care Home,2271.72, 12-Jan-2021
1455,Revenue,CAHD,Central - Commissioned Services,Permanent Nursing,Field House Care Home,3740.00, 12-Jan-2021
1456,Revenue,CAHD,North - Community based support,Permanent Nursing,Field House Care Home,2271.72, 12-Jan-2021
1457,Revenue,CAHD,North - Community based support,Permanent Nursing,Field House Care Home,3506.00, 12-Jan-2021
1458,Revenue,CAHD,Statemented Support Payments to OLAs,Other L.A.s - General,Filton Avenue Primary School,1131.84, 25-Jan-2021
1459,Revenue,CAHD,Statemented Support Payments to OLAs,Other L.A.s - General,Filton Avenue Primary School,1332.27, 25-Jan-2021
1460,Revenue,CAHD,Swift Dump Code,Permanent Nursing,First Floor  Lingfield House,50000.00, 12-Jan-2021
1461,Revenue,CAHD,South - Commissioned Services,Permanent Nursing,First Floor  Lingfield House,2554.36, 12-Jan-2021
1462,Revenue,CAHD,South Glos Users in South Glos Homes,Permanent Nursing,First Floor  Lingfield House,735.68, 12-Jan-2021
1463,Revenue,CAHD,Central - Commissioned Services,Respite Emergency - Residential,First Floor  Lingfield House,1737.14, 12-Jan-2021
1464,Revenue,CAHD,Covid 19- Spend on behalf of NHS,Respite Planned - Nursing,First Floor  Lingfield House,2578.57, 12-Jan-2021
1465,Revenue,CAHD,South - Commissioned Services,Permanent Residential,First Floor  Lingfield House,3160.00, 12-Jan-2021
1466,Revenue,CAHD,South - Commissioned Services,Permanent Residential,First Floor  Lingfield House,3360.00, 12-Jan-2021
1467,Revenue,CAHD,South - Commissioned Services,Respite Planned - Nursing,First Floor  Lingfield House,2670.00, 12-Jan-2021
1468,Revenue,CAHD,South - Commissioned Services,Fees & Charges Income - General,First Floor  Lingfield House,2430.20, 12-Jan-2021
1469,Revenue,CAHD,South - Commissioned Services,Fees & Charges Income - General,First Floor  Lingfield House,524.55, 12-Jan-2021
1470,Revenue,CAHD,Covid 19- Spend on behalf of NHS,Respite Planned - Nursing,First Floor  Lingfield House,3800.00, 12-Jan-2021
1471,Revenue,CAHD,Covid 19- Spend on behalf of NHS,Respite Planned - Nursing,First Floor  Lingfield House,2850.00, 12-Jan-2021
1472,Revenue,CAHD,Covid - ASC - Infection Control,Grants to Voluntary Bodies,First Floor  Lingfield House,8362.31, 13-Jan-2021
1473,Revenue,CAHD,CSC - Agency Fostering,Foster Parent Allowances,Five Rivers Child Care Limited,3510.00, 07-Jan-2021
1474,Revenue,CAHD,CSC - Agency Fostering,Foster Parent Allowances,Five Rivers Child Care Limited,522.27, 29-Jan-2021
1475,Revenue,CAHD,CSC - Agency Fostering,Foster Parent Allowances,Five Rivers Child Care Limited,2553.32, 29-Jan-2021
1476,Revenue,CAHD,CSC - Agency Fostering,Foster Parent Allowances,Five Rivers Child Care Limited,522.27, 29-Jan-2021
1477,Revenue,CAHD,CSC - Agency Fostering,Foster Parent Allowances,Five Rivers Child Care Limited,2553.32, 29-Jan-2021
1478,Revenue,CAHD,CSC - Agency Fostering,Foster Parent Allowances,Foster Care Associates Limited,3858.26, 19-Jan-2021
1479,Revenue,CAHD,CSC - Parent & Child Assessments,Foster Parent Allowances,Foster Care Associates Limited,6882.00, 08-Jan-2021
1480,Revenue,CAHD,CSC - Agency Fostering,Foster Parent Allowances,Foster Care Associates Limited,3769.91, 08-Jan-2021
1481,Revenue,CAHD,CSC - Agency Fostering,Foster Parent Allowances,Foster Care Associates Limited,6682.36, 08-Jan-2021
1482,Revenue,CAHD,CSC - Agency Fostering,Foster Parent Allowances,Foster Care Associates Limited,3937.00, 08-Jan-2021
1483,Revenue,CAHD,CSC - Agency Fostering,Foster Parent Allowances,Fostering Matters Ltd,3520.67, 14-Jan-2021
1484,Revenue,CAHD,CSC - Agency Fostering,Foster Parent Allowances,Fostering Matters Ltd,3520.67, 14-Jan-2021
1485,Revenue,CAHD,Training Budget - Children`s Social Serv,Training Expenses,Fostering Network,1020.00, 11-Jan-2021
1486,Revenue,CAHD,Covid 19 -Adult Social Care,Other Small Contracts,Fourways Care Limited,39.84, 06-Jan-2021
1487,Revenue,CAHD,Central - Commissioned Services,Other Small Contracts,Fourways Care Limited,180.00, 06-Jan-2021
1488,Revenue,CAHD,South - Commissioned Services,Other Small Contracts,Fourways Care Limited,818.10, 06-Jan-2021
1489,Revenue,CAHD,North - Community based support,Other Small Contracts,Fourways Care Limited,9282.39, 06-Jan-2021
1490,Revenue,CAHD,Covid 19 -Adult Social Care,Other Small Contracts,Fourways Care Limited,39.84, 08-Jan-2021
1491,Revenue,CAHD,South - Commissioned Services,Other Small Contracts,Fourways Care Limited,738.42, 08-Jan-2021
1492,Revenue,CAHD,North - Community based support,Other Small Contracts,Fourways Care Limited,8560.32, 08-Jan-2021
1493,Revenue,CAHD,Resilience Team,Other Small Contracts,Fourways Care Limited,19.92, 08-Jan-2021
1494,Revenue,CAHD,Covid 19 -Adult Social Care,Other Small Contracts,Fourways Care Limited,39.84, 13-Jan-2021
1495,Revenue,CAHD,South - Commissioned Services,Other Small Contracts,Fourways Care Limited,788.22, 13-Jan-2021
1496,Revenue,CAHD,North - Community based support,Other Small Contracts,Fourways Care Limited,9029.58, 13-Jan-2021
1497,Revenue,CAHD,Resilience Team,Other Small Contracts,Fourways Care Limited,59.76, 13-Jan-2021
1498,Revenue,CAHD,Covid 19 -Adult Social Care,Other Small Contracts,Fourways Care Limited,39.84, 20-Jan-2021
1499,Revenue,CAHD,Central - Commissioned Services,Other Small Contracts,Fourways Care Limited,174.00, 20-Jan-2021
1500,Revenue,CAHD,South - Commissioned Services,Other Small Contracts,Fourways Care Limited,843.00, 20-Jan-2021
1501,Revenue,CAHD,North - Community based support,Other Small Contracts,Fourways Care Limited,9444.84, 20-Jan-2021
1502,Revenue,CAHD,Resilience Team,Other Small Contracts,Fourways Care Limited,69.72, 20-Jan-2021
1503,Revenue,CAHD,Covid 19 -Adult Social Care,Other Small Contracts,Fourways Care Limited,39.84, 25-Jan-2021
1504,Revenue,CAHD,Central - Commissioned Services,Other Small Contracts,Fourways Care Limited,168.00, 25-Jan-2021
1505,Revenue,CAHD,South - Commissioned Services,Other Small Contracts,Fourways Care Limited,798.18, 25-Jan-2021
1506,Revenue,CAHD,North - Community based support,Other Small Contracts,Fourways Care Limited,9548.55, 25-Jan-2021
1507,Revenue,CAHD,Resilience Team,Other Small Contracts,Fourways Care Limited,74.70, 25-Jan-2021
1508,Revenue,CAHD,Covid - ASC - Infection Control,Grants to Voluntary Bodies,Fourways Care Limited,11022.53, 29-Jan-2021
1509,Revenue,CAHD,Central - Commissioned Services,Other Small Contracts,Freeways Trust Limited,785.60, 14-Jan-2021
1510,Revenue,CAHD,South - Commissioned Services,Day Care / Social Activities,Freeways Trust Limited,1139.12, 14-Jan-2021
1511,Revenue,CAHD,North - Community based support,Other Small Contracts,Freeways Trust Limited,864.16, 14-Jan-2021
1512,Revenue,CAHD,Central - Commissioned Services,Permanent Residential,Freeways Trust Ltd,3968.00, 12-Jan-2021
1513,Revenue,CAHD,Central - Commissioned Services,Permanent Residential,Freeways Trust Ltd,4006.56, 12-Jan-2021
1514,Revenue,CAHD,Central - Commissioned Services,Permanent Residential,Freeways Trust Ltd,4462.28, 12-Jan-2021
1515,Revenue,CAHD,Central - Commissioned Services,Permanent Residential,Freeways Trust Ltd,5152.32, 12-Jan-2021
1516,Revenue,CAHD,North - Community based support,Permanent Residential,Freeways Trust Ltd,4009.36, 12-Jan-2021
1517,Revenue,CAHD,Central - Commissioned Services,Permanent Residential,Freeways Trust Ltd,4197.36, 12-Jan-2021
1518,Revenue,CAHD,South - Commissioned Services,Permanent Residential,Freeways Trust Ltd,4431.96, 12-Jan-2021
1519,Revenue,CAHD,Central - Commissioned Services,Permanent Residential,Freeways Trust Ltd,4006.56, 12-Jan-2021
1520,Revenue,CAHD,Central - Commissioned Services,Permanent Residential,Freeways Trust Ltd,4006.56, 12-Jan-2021
1521,Revenue,CAHD,North - Community based support,Permanent Residential,Freeways Trust Ltd,4009.36, 12-Jan-2021
1522,Revenue,CAHD,Central - Commissioned Services,Permanent Residential,Freeways Trust Ltd,5991.92, 12-Jan-2021
1523,Revenue,CAHD,Covid - ASC - Infection Control,Grants to Voluntary Bodies,Freeways Trust Ltd,5574.87, 13-Jan-2021
1524,Revenue,CAHD,North - Community based support,Supported Living,Freeways Trust Ltd,862.44, 12-Jan-2021
1525,Revenue,CAHD,S28A cases,Permanent Residential,Freeways Trust Ltd,23729.34, 12-Jan-2021
1526,Revenue,CAHD,S28A cases,Permanent Residential,Freeways Trust Ltd,5071.92, 12-Jan-2021
1527,Revenue,CAHD,North - Community based support,Permanent Residential,Freeways Trust Ltd,3853.72, 12-Jan-2021
1528,Revenue,CAHD,North - Community based support,Permanent Residential,Freeways Trust Ltd,3380.28, 12-Jan-2021
1529,Revenue,CAHD,North - Community based support,Permanent Residential,Freeways Trust Ltd,3792.12, 12-Jan-2021
1530,Revenue,CAHD,North - Community based support,Permanent Residential,Freeways Trust Ltd,3768.80, 12-Jan-2021
1531,Revenue,CAHD,Section 117 Placements MH Younger,Permanent Residential,Freeways Trust Ltd,3419.16, 12-Jan-2021
1532,Revenue,CAHD,Central - Commissioned Services,Day Care / Social Activities,Frenchay Beckspool Building,1933.52, 12-Jan-2021
1533,Revenue,CAHD,South - Commissioned Services,Day Care / Social Activities,Frenchay Beckspool Building,920.44, 12-Jan-2021
1534,Revenue,CAHD,South - Commissioned Services,Day Care / Social Activities,Frenchay Beckspool Building,652.88, 12-Jan-2021
1535,Revenue,CAHD,North - Community based support,Permanent Nursing,Frenchay Park Nursing Home,3400.00, 12-Jan-2021
1536,Revenue,CAHD,Early Years High Needs Support,Other Private Contractors,Frenchay Pre School Playgroup,637.05, 25-Jan-2021
1537,Revenue,CAHD,CSC - Social Work Team - CENTRAL,Agency Staff (Admin/Support Staff) Pay,Frontline Staffing Ltd,1403.70, 07-Jan-2021
1538,Revenue,CAHD,CSC - Social Work Team - CENTRAL,Agency Staff (Admin/Support Staff) Pay,Frontline Staffing Ltd,701.85, 19-Jan-2021
1539,Revenue,CAHD,CSC - Social Work Team - CENTRAL,Agency Staff (Admin/Support Staff) Pay,Frontline Staffing Ltd,701.85, 19-Jan-2021
1540,Revenue,CAHD,CSC - Social Work Team - CENTRAL,Agency Staff (Admin/Support Staff) Pay,Frontline Staffing Ltd,1736.63, 20-Jan-2021
1541,Revenue,CAHD,CSC - Through & Leaving Care Team,Agency Staff (Admin/Support Staff) Pay,Frontline Staffing Ltd,1181.45, 22-Jan-2021
1542,Revenue,CAHD,CSC - Through & Leaving Care Team,Agency Staff (Admin/Support Staff) Pay,Frontline Staffing Ltd,643.36, 22-Jan-2021
1543,Revenue,CAHD,CSC - Through & Leaving Care Team,Agency Staff (Admin/Support Staff) Pay,Frontline Staffing Ltd,1871.60, 28-Jan-2021
1544,Revenue,CAHD,CSC - Social Work Team - CENTRAL,Agency Staff (Admin/Support Staff) Pay,Frontline Staffing Ltd,1731.23, 28-Jan-2021
1545,Revenue,CAHD,CSC - Agency Fostering,Foster Parent Allowances,Fusion Fostering Ltd,3613.71, 19-Jan-2021
1546,Revenue,CAHD,CSC - Asylum Seekers - Unaccompanied,Foster Parent Allowances,Fusion Fostering Ltd,3764.29, 19-Jan-2021
1547,Revenue,CAHD,CSC - Agency Fostering,Foster Parent Allowances,Fusion Fostering Ltd,4209.05, 19-Jan-2021
1548,Revenue,CAHD,CSC - Asylum Seekers - Unaccompanied,Foster Parent Allowances,Fusion Fostering Ltd,3405.57, 19-Jan-2021
1549,Revenue,CAHD,Covid - ASC - Infection Control,Grants to Voluntary Bodies,Galiant Health Care Limited,3480.80, 29-Jan-2021
1550,Revenue,CAHD,North - Community based support,Supported Living,Gladstone House,3237.64, 12-Jan-2021
1551,Revenue,CAHD,18-25 Year Olds,Supported Living,Gladstone House,3237.64, 12-Jan-2021
1552,Revenue,CAHD,South - Commissioned Services,Permanent Residential,Gladstone House,5999.84, 12-Jan-2021
1553,Revenue,CAHD,MH Purchasing - Younger,Permanent Residential,Gladstone House,3135.90, 12-Jan-2021
1554,Revenue,CAHD,Jointly Funded H&SC Packages,Permanent Residential,Gladstone House,783.98, 12-Jan-2021
1555,Revenue,CAHD,North - Community based support,Permanent Residential,Glan Y Felin,6803.40, 12-Jan-2021
1556,Revenue,CAHD,South - Commissioned Services,Permanent Residential,Glasallt Fawr,5550.16, 12-Jan-2021
1557,Revenue,CAHD,North - Community based support,Permanent Nursing,Glebe House Nursing Home,3737.44, 12-Jan-2021
1558,Revenue,CAHD,South Glos Users in South Glos Homes,Permanent Nursing,Glebe House Nursing Home,735.68, 12-Jan-2021
1559,Revenue,CAHD,North - Community based support,Permanent Nursing,Glebe House Nursing Home,4052.60, 12-Jan-2021
1560,Revenue,CAHD,South Glos Users in South Glos Homes,Permanent Nursing,Glebe House Nursing Home,735.68, 12-Jan-2021
1561,Revenue,CAHD,South Glos Users in South Glos Homes,Permanent Nursing,Glebe House Nursing Home,735.68, 12-Jan-2021
1562,Revenue,CAHD,South Glos Users in South Glos Homes,Permanent Nursing,Glebe House Nursing Home,735.68, 12-Jan-2021
1563,Revenue,CAHD,North - Community based support,Permanent Nursing,Glebe House Nursing Home,3998.40, 12-Jan-2021
1564,Revenue,CAHD,South Glos Users in South Glos Homes,Permanent Nursing,Glebe House Nursing Home,735.68, 12-Jan-2021
1565,Revenue,CAHD,North - Community based support,Permanent Residential,Glebe House Nursing Home,3910.52, 12-Jan-2021
1566,Revenue,CAHD,South Glos Users in South Glos Homes,Permanent Nursing,Glebe House Nursing Home,735.68, 12-Jan-2021
1567,Revenue,CAHD,South Glos Users in South Glos Homes,Permanent Nursing,Glebe House Nursing Home,735.68, 12-Jan-2021
1568,Revenue,CAHD,North - Community based support,Permanent Nursing,Glebe House Nursing Home,4048.60, 12-Jan-2021
1569,Revenue,CAHD,South Glos Users in South Glos Homes,Permanent Nursing,Glebe House Nursing Home,735.68, 12-Jan-2021
1570,Revenue,CAHD,Central - Commissioned Services,Permanent Residential,Glebe House Nursing Home,3980.00, 12-Jan-2021
1571,Revenue,CAHD,South Glos Users in South Glos Homes,Permanent Nursing,Glebe House Nursing Home,735.68, 12-Jan-2021
1572,Revenue,CAHD,Central - Commissioned Services,Permanent Nursing,Glebe House Nursing Home,4120.00, 12-Jan-2021
1573,Revenue,CAHD,North - Community based support,Permanent Nursing,Glebe House Nursing Home,4080.00, 12-Jan-2021
1574,Revenue,CAHD,South Glos Users in South Glos Homes,Permanent Nursing,Glebe House Nursing Home,735.68, 12-Jan-2021
1575,Revenue,CAHD,South Glos Users in South Glos Homes,Permanent Nursing,Glebe House Nursing Home,735.68, 12-Jan-2021
1576,Revenue,CAHD,North - Community based support,Permanent Nursing,Glebe House Nursing Home,4039.36, 12-Jan-2021
1577,Revenue,CAHD,South Glos Users in South Glos Homes,Permanent Nursing,Glebe House Nursing Home,735.68, 12-Jan-2021
1578,Revenue,CAHD,North - Community based support,Permanent Nursing,Glebe House Nursing Home,4080.00, 12-Jan-2021
1579,Revenue,CAHD,South Glos Users in South Glos Homes,Permanent Nursing,Glebe House Nursing Home,735.68, 12-Jan-2021
1580,Revenue,CAHD,North - Community based support,Permanent Residential,Glebe House Nursing Home,5051.24, 12-Jan-2021
1581,Revenue,CAHD,South Glos Users in South Glos Homes,Permanent Nursing,Glebe House Nursing Home,735.68, 12-Jan-2021
1582,Revenue,CAHD,South Glos Users in South Glos Homes,Permanent Nursing,Glebe House Nursing Home,735.68, 12-Jan-2021
1583,Revenue,CAHD,South Glos Users in South Glos Homes,Permanent Nursing,Glebe House Nursing Home,735.68, 12-Jan-2021
1584,Revenue,CAHD,North - Community based support,Permanent Residential,Glebe House Nursing Home,4360.00, 12-Jan-2021
1585,Revenue,CAHD,South Glos Users in South Glos Homes,Permanent Nursing,Glebe House Nursing Home,735.68, 12-Jan-2021
1586,Revenue,CAHD,South Glos Users in South Glos Homes,Permanent Nursing,Glebe House Nursing Home,735.68, 12-Jan-2021
1587,Revenue,CAHD,Covid - ASC - Infection Control,Grants to Voluntary Bodies,Glebe House Nursing Home,18466.77, 29-Jan-2021
1588,Revenue,CAHD,Central - Commissioned Services,Permanent Nursing,Glenview Care Home,3224.00, 12-Jan-2021
1589,Revenue,CAHD,South - Commissioned Services,Permanent Nursing,Glenview Care Home,3220.00, 12-Jan-2021
1590,Revenue,CAHD,North - Community based support,Permanent Nursing,Glenview Care Home,3600.00, 12-Jan-2021
1591,Revenue,CAHD,Bed Purchasing - Southmead Hospital,Permanent Nursing,Glenview Care Home,3224.00, 12-Jan-2021
1592,Revenue,CAHD,South Glos Users in South Glos Homes,Permanent Nursing,Glenview Care Home,3941.14, 12-Jan-2021
1593,Revenue,CAHD,South Glos Users in South Glos Homes,Permanent Nursing,Glenview Care Home,735.68, 12-Jan-2021
1594,Revenue,CAHD,South - bed purchasing and direct  payments,Respite Emergency - Residential,Glenview Care Home,571.43, 12-Jan-2021
1595,Revenue,CAHD,South - Commissioned Services,Permanent Residential,Gordena Care Home,4018.92, 12-Jan-2021
1596,Revenue,CAHD,South - Commissioned Services,Permanent Residential,Gordena Care Home,2790.84, 12-Jan-2021
1597,Revenue,CAHD,South - Commissioned Services,Permanent Residential,Gordena Care Home,3973.32, 12-Jan-2021
1598,Revenue,CAHD,South - Commissioned Services,Permanent Residential,Gordena Care Home,3985.44, 12-Jan-2021
1599,Revenue,CAHD,Covid - ASC - Infection Control,Grants to Voluntary Bodies,Gordena Care Home,3135.87, 29-Jan-2021
1600,Revenue,CAHD,18-25 Year Olds,Supported Living,Granville House,1940.60, 12-Jan-2021
1601,Revenue,CAHD,South - Commissioned Services,Supported Living,Granville House,1941.20, 12-Jan-2021
1602,Revenue,CAHD,South - Commissioned Services,Supported Living,Granville House,1940.32, 12-Jan-2021
1603,Revenue,CAHD,North - S117,Permanent Nursing,Grasmere Rest Home,3800.00, 12-Jan-2021
1604,Revenue,CAHD,CSC - Residential Placements,Permanent Residential,Greenfields Adolecent Development Limited,20507.15, 28-Jan-2021
1605,Revenue,CAHD,CSC - Residential Placements,Permanent Residential,Greenfields Adolecent Development Limited,21214.29, 28-Jan-2021
1606,Revenue,CAHD,CSC - Residential Placements,Permanent Residential,Greenfields Adolecent Development Limited,21921.43, 29-Jan-2021
1607,Revenue,CAHD,CSC - Residential Placements,Permanent Residential,Greenfields Adolecent Development Limited,26527.14, 29-Jan-2021
1608,Revenue,CAHD,Statemented Support Academies,Other Public Bodies,Greenshaw Learning Trust T/A Woodlands Primary,554.13, 25-Jan-2021
1609,Revenue,CAHD,Statemented Support Academies,Other Public Bodies,Greenshaw Learning Trust T/A Woodlands Primary,1072.89, 25-Jan-2021
1610,Revenue,CAHD,Statemented Support Academies,Other Public Bodies,Greenshaw Learning Trust T/A Woodlands Primary,577.71, 25-Jan-2021
1611,Revenue,CAHD,Statemented Support Academies,Other Public Bodies,Greenshaw Learning Trust T/A Woodlands Primary,932.17, 25-Jan-2021
1612,Revenue,CAHD,Statemented Support Academies,Other Public Bodies,Greenshaw Learning Trust T/A Woodlands Primary,837.09, 25-Jan-2021
1613,Revenue,CAHD,Statemented Support Academies,Other Public Bodies,Greenshaw Learning Trust T/A Woodlands Primary,742.77, 25-Jan-2021
1614,Revenue,CAHD,Statemented Support Academies,Other Public Bodies,Greenshaw Learning Trust T/A Woodlands Primary,778.14, 25-Jan-2021
1615,Revenue,CAHD,Statemented Support Academies,Other Public Bodies,Greenshaw Learning Trust T/A Woodlands Primary,860.67, 25-Jan-2021
1616,Revenue,CAHD,Academy Resource Base Funding,Other Public Bodies,Greenshaw Learning Trust T/A Woodlands Primary,648.70, 26-Jan-2021
1617,Revenue,CAHD,Academy Resource Base Funding,Other Public Bodies,Greenshaw Learning Trust T/A Woodlands Primary,1175.87, 26-Jan-2021
1618,Revenue,CAHD,Statemented Support Academies,Other Public Bodies,Greenshaw Learning Trust T/A Yate Academy,589.50, 25-Jan-2021
1619,Revenue,CAHD,Statemented Support Academies,Other Public Bodies,Greenshaw Learning Trust T/A Yate Academy,707.40, 25-Jan-2021
1620,Revenue,CAHD,Statemented Support Academies,Other Public Bodies,Greenshaw Learning Trust T/A Yate Academy,1320.48, 25-Jan-2021
1621,Revenue,CAHD,Statemented Support Academies,Other Public Bodies,Greenshaw Learning Trust T/A Yate Academy,1320.48, 25-Jan-2021
1622,Revenue,CAHD,Statemented Support Academies,Other Public Bodies,Greenshaw Learning Trust T/A Yate Academy,1209.92, 25-Jan-2021
1623,Revenue,CAHD,Statemented Support Academies,Other Public Bodies,Greenshaw Learning Trust T/A Yate Academy,1072.89, 25-Jan-2021
1624,Revenue,CAHD,Statemented Support Academies,Other Public Bodies,Greenshaw Learning Trust T/A Yate Academy,801.72, 25-Jan-2021
1625,Revenue,CAHD,Statemented Support Academies,Other Public Bodies,Greenshaw Learning Trust T/A Yate Academy,541.58, 25-Jan-2021
1626,Revenue,CAHD,Statemented Support Academies,Other Public Bodies,Greenshaw Learning Trust T/A Yate Academy,601.29, 25-Jan-2021
1627,Revenue,CAHD,Statemented Support Academies,Other Public Bodies,Greenshaw Learning Trust T/A Yate Academy,624.87, 25-Jan-2021
1628,Revenue,CAHD,Statemented Support Academies,Other Public Bodies,Greenshaw Learning Trust T/A Yate Academy,624.87, 25-Jan-2021
1629,Revenue,CAHD,Academy Resource Base Funding,Other Public Bodies,Greenshaw Learning Trust T/A Yate Academy,849.32, 26-Jan-2021
1630,Revenue,CAHD,Academy Resource Base Funding,Other Public Bodies,Greenshaw Learning Trust T/A Yate Academy,1540.83, 26-Jan-2021
1631,Revenue,CAHD,Academy Resource Base Funding,Other Public Bodies,Greenshaw Learning Trust T/A Yate Academy,1013.74, 26-Jan-2021
1632,Revenue,CAHD,Academy Resource Base Funding,Other Public Bodies,Greenshaw Learning Trust T/A Yate Academy,1540.83, 26-Jan-2021
1633,Revenue,CAHD,South - Commissioned Services,Permanent Residential,Gwendoline House,7146.43, 12-Jan-2021
1634,Revenue,CAHD,South - Commissioned Services,Permanent Residential,Gwendoline House,2900.00, 12-Jan-2021
1635,Revenue,CAHD,South - Commissioned Services,Permanent Residential,Gwendoline House,2522.88, 12-Jan-2021
1636,Revenue,CAHD,South - Commissioned Services,Permanent Residential,Gwendoline House,2652.00, 12-Jan-2021
1637,Revenue,CAHD,North - Community based support,Other Small Contracts,H F T,793.04, 15-Jan-2021
1638,Revenue,CAHD,Social Lettings Agency,Rent,Individual,577.72, 27-Jan-2021
1639,Revenue,CAHD,Social Lettings Agency,Fees - General,Individual,13.13, 27-Jan-2021
1640,Revenue,CAHD,Home Care Monitoring (CM2000),Other Supplies & Services,HAS Technology Limited T/A CM2000,14589.08, 14-Jan-2021
1641,Revenue,CAHD,Home Care Monitoring (CM2000),Other Supplies & Services,HAS Technology Limited T/A CM2000,14590.70, 14-Jan-2021
1642,Revenue,CAHD,North - Community based support,Permanent Nursing,St Monica Trust,3415.56, 12-Jan-2021
1643,Revenue,CAHD,North - Community based support,Permanent Nursing,St Monica Trust,1138.52, 12-Jan-2021
1644,Revenue,CAHD,CSC - Residential Placements,Permanent Residential,Headway Adolescent Resources Limited,15200.00, 06-Jan-2021
1645,Revenue,CAHD,CSC - Residential Placements,Permanent Residential,Headway Adolescent Resources Limited,15200.00, 06-Jan-2021
1646,Revenue,CAHD,Central - Commissioned Services,Day Care / Social Activities,Headway Bristol,225.60, 11-Jan-2021
1647,Revenue,CAHD,Central - Commissioned Services,Other Small Contracts,Headway Bristol,451.20, 11-Jan-2021
1648,Revenue,CAHD,South - Commissioned Services,Day Care / Social Activities,Headway Bristol,135.36, 11-Jan-2021
1649,Revenue,CAHD,South - Commissioned Services,Other Small Contracts,Headway Bristol,248.16, 11-Jan-2021
1650,Revenue,CAHD,North - Community based support,Day Care / Social Activities,Headway Bristol,67.68, 11-Jan-2021
1651,Revenue,CAHD,Younger MH non-res purchasing,Day Care / Social Activities,Headway Bristol,45.12, 11-Jan-2021
1652,Revenue,CAHD,Central - Commissioned Services,Day Care / Social Activities,Headway Bristol,338.40, 18-Jan-2021
1653,Revenue,CAHD,Central - Commissioned Services,Other Small Contracts,Headway Bristol,586.56, 18-Jan-2021
1654,Revenue,CAHD,South - Commissioned Services,Day Care / Social Activities,Headway Bristol,135.36, 18-Jan-2021
1655,Revenue,CAHD,South - Commissioned Services,Other Small Contracts,Headway Bristol,248.16, 18-Jan-2021
1656,Revenue,CAHD,North - Community based support,Day Care / Social Activities,Headway Bristol,67.68, 18-Jan-2021
1657,Revenue,CAHD,Younger MH non-res purchasing,Day Care / Social Activities,Headway Bristol,45.12, 18-Jan-2021
1658,Revenue,CAHD,Central - Commissioned Services,Permanent Nursing,Healthcare Home Spring Limited,2445.96, 12-Jan-2021
1659,Revenue,CAHD,South Glos Users in South Glos Homes,Permanent Nursing,Healthcare Home Spring Limited,735.68, 12-Jan-2021
1660,Revenue,CAHD,Central - Commissioned Services,Permanent Nursing,Healthcare Home Spring Limited,2445.96, 12-Jan-2021
1661,Revenue,CAHD,South Glos Users in South Glos Homes,Permanent Nursing,Healthcare Home Spring Limited,735.68, 12-Jan-2021
1662,Revenue,CAHD,South Glos Users in South Glos Homes,Permanent Nursing,Healthcare Home Spring Limited,735.68, 12-Jan-2021
1663,Revenue,CAHD,Central - Commissioned Services,Permanent Residential,Healthcare Home Spring Limited,2274.92, 12-Jan-2021
1664,Revenue,CAHD,Central - Commissioned Services,Permanent Residential,Healthcare Home Spring Limited,2708.34, 12-Jan-2021
1665,Revenue,CAHD,Central - Commissioned Services,Permanent Residential,Healthcare Home Spring Limited,2230.40, 12-Jan-2021
1666,Revenue,CAHD,South Glos Users in South Glos Homes,Permanent Nursing,Healthcare Home Spring Limited,735.68, 12-Jan-2021
1667,Revenue,CAHD,South Glos Users in South Glos Homes,Permanent Nursing,Healthcare Home Spring Limited,735.68, 12-Jan-2021
1668,Revenue,CAHD,Central - Commissioned Services,Permanent Residential,Healthcare Home Spring Limited,2150.74, 12-Jan-2021
1669,Revenue,CAHD,Central - Commissioned Services,Permanent Residential,Healthcare Home Spring Limited,2150.74, 12-Jan-2021
1670,Revenue,CAHD,Central - Commissioned Services,Permanent Nursing,Healthcare Home Spring Limited,2471.60, 12-Jan-2021
1671,Revenue,CAHD,South Glos Users in South Glos Homes,Permanent Nursing,Healthcare Home Spring Limited,735.68, 12-Jan-2021
1672,Revenue,CAHD,South Glos Users in South Glos Homes,Permanent Nursing,Healthcare Home Spring Limited,735.68, 12-Jan-2021
1673,Revenue,CAHD,North - Community based support,Permanent Nursing,Healthcare Home Spring Limited,2445.96, 12-Jan-2021
1674,Revenue,CAHD,South Glos Users in South Glos Homes,Permanent Nursing,Healthcare Home Spring Limited,735.68, 12-Jan-2021
1675,Revenue,CAHD,Central - Commissioned Services,Fees & Charges Income - General,Healthcare Home Spring Limited,639.62, 12-Jan-2021
1676,Revenue,CAHD,Central - Commissioned Services,Permanent Residential,Healthcare Home Spring Limited,2823.36, 12-Jan-2021
1677,Revenue,CAHD,North - Community based support,Permanent Nursing,Healthcare Home Spring Limited,2445.96, 12-Jan-2021
1678,Revenue,CAHD,South Glos Users in South Glos Homes,Permanent Nursing,Healthcare Home Spring Limited,735.68, 12-Jan-2021
1679,Revenue,CAHD,South Glos Users in South Glos Homes,Permanent Nursing,Healthcare Home Spring Limited,735.68, 12-Jan-2021
1680,Revenue,CAHD,Central - Commissioned Services,Permanent Nursing,Healthcare Home Spring Limited,2521.04, 12-Jan-2021
1681,Revenue,CAHD,South Glos Users in South Glos Homes,Permanent Nursing,Healthcare Home Spring Limited,735.68, 12-Jan-2021
1682,Revenue,CAHD,South Glos Users in South Glos Homes,Permanent Nursing,Healthcare Home Spring Limited,735.68, 12-Jan-2021
1683,Revenue,CAHD,South Glos Users in South Glos Homes,Permanent Nursing,Healthcare Home Spring Limited,735.68, 12-Jan-2021
1684,Revenue,CAHD,Central - Bed Purchasing and Direct Payments,Permanent Nursing,Healthcare Home Spring Limited,2445.96, 12-Jan-2021
1685,Revenue,CAHD,Central - Commissioned Services,Permanent Residential,Healthcare Home Spring Limited,2823.36, 12-Jan-2021
1686,Revenue,CAHD,South Glos Users in South Glos Homes,Permanent Nursing,Healthcare Home Spring Limited,735.68, 12-Jan-2021
1687,Revenue,CAHD,Central - Commissioned Services,Permanent Nursing,Healthcare Home Spring Limited,2445.96, 12-Jan-2021
1688,Revenue,CAHD,South Glos Users in South Glos Homes,Permanent Nursing,Healthcare Home Spring Limited,735.68, 12-Jan-2021
1689,Revenue,CAHD,South Glos Users in South Glos Homes,Permanent Nursing,Healthcare Home Spring Limited,735.68, 12-Jan-2021
1690,Revenue,CAHD,South Glos Users in South Glos Homes,Permanent Nursing,Healthcare Home Spring Limited,735.68, 12-Jan-2021
1691,Revenue,CAHD,Central - Commissioned Services,Permanent Nursing,Healthcare Home Spring Limited,2471.60, 12-Jan-2021
1692,Revenue,CAHD,South Glos Users in South Glos Homes,Permanent Nursing,Healthcare Home Spring Limited,735.68, 12-Jan-2021
1693,Revenue,CAHD,Central - Commissioned Services,Permanent Residential,Healthcare Home Spring Limited,2768.00, 12-Jan-2021
1694,Revenue,CAHD,South Glos Users in South Glos Homes,Permanent Nursing,Healthcare Home Spring Limited,735.68, 12-Jan-2021
1695,Revenue,CAHD,South Glos Users in South Glos Homes,Permanent Nursing,Healthcare Home Spring Limited,735.68, 12-Jan-2021
1696,Revenue,CAHD,South Glos Users in South Glos Homes,Permanent Nursing,Healthcare Home Spring Limited,735.68, 12-Jan-2021
1697,Revenue,CAHD,Covid 19- Spend on behalf of NHS,Permanent Nursing,Healthcare Home Spring Limited,1588.89, 12-Jan-2021
1698,Revenue,CAHD,Central - Commissioned Services,Permanent Nursing,Healthcare Home Spring Limited,2445.96, 12-Jan-2021
1699,Revenue,CAHD,South Glos Users in South Glos Homes,Permanent Nursing,Healthcare Home Spring Limited,735.68, 12-Jan-2021
1700,Revenue,CAHD,South Glos Users in South Glos Homes,Permanent Nursing,Healthcare Home Spring Limited,735.68, 12-Jan-2021
1701,Revenue,CAHD,North - Community based support,Permanent Nursing,Healthcare Home Spring Limited,2485.88, 12-Jan-2021
1702,Revenue,CAHD,South Glos Users in South Glos Homes,Permanent Nursing,Healthcare Home Spring Limited,735.68, 12-Jan-2021
1703,Revenue,CAHD,Central - Commissioned Services,Permanent Nursing,Healthcare Home Spring Limited,2445.96, 12-Jan-2021
1704,Revenue,CAHD,South Glos Users in South Glos Homes,Permanent Nursing,Healthcare Home Spring Limited,735.68, 12-Jan-2021
1705,Revenue,CAHD,Central - Commissioned Services,Permanent Residential,Healthcare Home Spring Limited,2891.12, 12-Jan-2021
1706,Revenue,CAHD,North - Community based support,Permanent Nursing,Healthcare Home Spring Limited,2445.96, 12-Jan-2021
1707,Revenue,CAHD,South Glos Users in South Glos Homes,Permanent Nursing,Healthcare Home Spring Limited,735.68, 12-Jan-2021
1708,Revenue,CAHD,South Glos Users in South Glos Homes,Permanent Nursing,Healthcare Home Spring Limited,3783.50, 12-Jan-2021
1709,Revenue,CAHD,South Glos Users in South Glos Homes,Permanent Nursing,Healthcare Home Spring Limited,735.68, 12-Jan-2021
1710,Revenue,CAHD,Central - Commissioned Services,Permanent Nursing,Healthcare Home Spring Limited,2445.96, 12-Jan-2021
1711,Revenue,CAHD,South Glos Users in South Glos Homes,Permanent Nursing,Healthcare Home Spring Limited,735.68, 12-Jan-2021
1712,Revenue,CAHD,North - Community based support,Permanent Nursing,Healthcare Home Spring Limited,2445.96, 12-Jan-2021
1713,Revenue,CAHD,South Glos Users in South Glos Homes,Permanent Nursing,Healthcare Home Spring Limited,735.68, 12-Jan-2021
1714,Revenue,CAHD,Central - Commissioned Services,Permanent Residential,Healthcare Home Spring Limited,2768.00, 12-Jan-2021
1715,Revenue,CAHD,North - Community based support,Permanent Nursing,Healthcare Home Spring Limited,2403.72, 12-Jan-2021
1716,Revenue,CAHD,South Glos Users in South Glos Homes,Permanent Nursing,Healthcare Home Spring Limited,735.68, 12-Jan-2021
1717,Revenue,CAHD,Central - Commissioned Services,Other Small Contracts,Helping Hands Homecare,786.60, 11-Jan-2021
1718,Revenue,CAHD,South - Commissioned Services,Other Small Contracts,Helping Hands Homecare,371.91, 11-Jan-2021
1719,Revenue,CAHD,North - Community based support,Other Small Contracts,Helping Hands Homecare,2402.22, 11-Jan-2021
1720,Revenue,CAHD,Central - Commissioned Services,Other Small Contracts,Helping Hands Homecare,533.34, 13-Jan-2021
1721,Revenue,CAHD,South - Commissioned Services,Other Small Contracts,Helping Hands Homecare,352.59, 13-Jan-2021
1722,Revenue,CAHD,North - Community based support,Other Small Contracts,Helping Hands Homecare,2364.48, 13-Jan-2021
1723,Revenue,CAHD,Central - Commissioned Services,Other Small Contracts,Helping Hands Homecare,267.72, 13-Jan-2021
1724,Revenue,CAHD,South - Commissioned Services,Other Small Contracts,Helping Hands Homecare,333.27, 13-Jan-2021
1725,Revenue,CAHD,North - Community based support,Other Small Contracts,Helping Hands Homecare,2402.22, 13-Jan-2021
1726,Revenue,CAHD,Statemented Support Payments to OLAs,Other L.A.s - General,Henbury Court Primary Academy,775.79, 25-Jan-2021
1727,Revenue,CAHD,S117 Placements PCT,Permanent Residential,Hesley Hall,20235.60, 12-Jan-2021
1728,Revenue,CAHD,Central - Commissioned Services,Permanent Residential,High Border Lodge,2142.20, 12-Jan-2021
1729,Revenue,CAHD,North - Community based support,Permanent Residential,High Border Lodge,2088.68, 12-Jan-2021
1730,Revenue,CAHD,South - Commissioned Services,Supported Living,Hillcairnie House,4702.76, 12-Jan-2021
1731,Revenue,CAHD,South - Commissioned Services,Supported Living,Hillcairnie House,2629.48, 12-Jan-2021
1732,Revenue,CAHD,North - Community based support,Supported Living,Hillcairnie House,2629.48, 12-Jan-2021
1733,Revenue,CAHD,South - Commissioned Services,Supported Living,Hillcairnie House,4381.72, 12-Jan-2021
1734,Revenue,CAHD,South - Commissioned Services,Supported Living,Hillcairnie House,2629.48, 12-Jan-2021
1735,Revenue,CAHD,South - Commissioned Services,Permanent Residential,Hillcrest,5207.64, 12-Jan-2021
1736,Revenue,CAHD,S28A cases,Permanent Residential,Hillcrest,5064.68, 12-Jan-2021
1737,Revenue,CAHD,North - Community based support,Permanent Residential,Hillcrest,5278.56, 12-Jan-2021
1738,Revenue,CAHD,North - Community based support,Permanent Residential,Hilltop Residential Home,8810.20, 12-Jan-2021
1739,Revenue,CAHD,Jointly Funded H&SC Packages,Permanent Residential,Hilltop Residential Home,5594.24, 12-Jan-2021
1740,Revenue,CAHD,Central - Commissioned Services,Permanent Residential,Hobbits Holt Craegmo,8872.48, 12-Jan-2021
1741,Revenue,CAHD,North - Community based support,Permanent Residential,Holly Tree Cottage,8531.24, 12-Jan-2021
1742,Revenue,CAHD,Jointly Funded H&SC Packages,Permanent Residential,Holly Tree Cottage,2577.68, 12-Jan-2021
1743,Revenue,CAHD,Central - Commissioned Services,Permanent Nursing,Holly Villa,2153.16, 12-Jan-2021
1744,Revenue,CAHD,Central - Commissioned Services,Other Small Contracts,Holmleigh Care Home Ltd,15435.84, 11-Jan-2021
1745,Revenue,CAHD,South - Commissioned Services,Supported Living,Holmleigh Care Home Ltd,12442.08, 20-Jan-2021
1746,Revenue,CAHD,Central - Commissioned Services,Other Small Contracts,Holmleigh Care Home Ltd,20873.44, 20-Jan-2021
1747,Revenue,CAHD,Central - Commissioned Services,Other Small Contracts,Holmleigh Care Home Ltd,3245.76, 14-Jan-2021
1748,Revenue,CAHD,Central - Commissioned Services,Other Small Contracts,Holmleigh Care Home Ltd,15435.84, 20-Jan-2021
1749,Revenue,CAHD,18-25 Year Olds,Other Small Contracts,Holmleigh Care Home Ltd,15146.88, 26-Jan-2021
1750,Revenue,CAHD,18-25 Year Olds,Supported Living,Holmleigh Care Homes Ltd,923.32, 12-Jan-2021
1751,Revenue,CAHD,South - Commissioned Services,Supported Living,Holmleigh Care Homes Ltd,1367.84, 12-Jan-2021
1752,Revenue,CAHD,Central - Commissioned Services,Supported Living,Holmleigh Care Homes Ltd,2526.20, 12-Jan-2021
1753,Revenue,CAHD,Central - Commissioned Services,Supported Living,Holmleigh Care Homes Ltd,2082.72, 12-Jan-2021
1754,Revenue,CAHD,Central - Commissioned Services,Supported Living,Home Farm Trust Ltd  5-6 Brook Office Pa,2205.20, 12-Jan-2021
1755,Revenue,CAHD,Central - Commissioned Services,Permanent Residential,Home From Home Care Ltd,11925.77, 12-Jan-2021
1756,Revenue,CAHD,Central - Commissioned Services,Other Small Contracts,Homecare 4U,38.64, 11-Jan-2021
1757,Revenue,CAHD,South - Commissioned Services,Other Small Contracts,Homecare 4U,4125.45, 11-Jan-2021
1758,Revenue,CAHD,Younger MH non-res purchasing,Other Small Contracts,Homecare 4U,367.08, 11-Jan-2021
1759,Revenue,CAHD,Central - Commissioned Services,Other Small Contracts,Homecare 4U,38.64, 15-Jan-2021
1760,Revenue,CAHD,South - Commissioned Services,Other Small Contracts,Homecare 4U,3932.25, 15-Jan-2021
1761,Revenue,CAHD,Younger MH non-res purchasing,Other Small Contracts,Homecare 4U,367.08, 15-Jan-2021
1762,Revenue,CAHD,Central - Commissioned Services,Other Small Contracts,Homecare 4U,38.64, 13-Jan-2021
1763,Revenue,CAHD,South - Commissioned Services,Other Small Contracts,Homecare 4U,4048.17, 13-Jan-2021
1764,Revenue,CAHD,Younger MH non-res purchasing,Other Small Contracts,Homecare 4U,367.08, 13-Jan-2021
1765,Revenue,CAHD,Central - Commissioned Services,Other Small Contracts,Homecare 4U,38.64, 20-Jan-2021
1766,Revenue,CAHD,South - Commissioned Services,Other Small Contracts,Homecare 4U,4038.51, 20-Jan-2021
1767,Revenue,CAHD,Younger MH non-res purchasing,Other Small Contracts,Homecare 4U,367.08, 20-Jan-2021
1768,Revenue,CAHD,South - Commissioned Services,Other Small Contracts,Homecare 4U,4038.51, 26-Jan-2021
1769,Revenue,CAHD,Younger MH non-res purchasing,Other Small Contracts,Homecare 4U,367.08, 26-Jan-2021
1770,Revenue,CAHD,Bed and Breakfast,Bed & Breakfast,Homes 4 All Ltd,700.00, 14-Jan-2021
1771,Revenue,CAHD,Bed and Breakfast,Bed & Breakfast,Homes 4 All Ltd,700.00, 13-Jan-2021
1772,Revenue,CAHD,Bed and Breakfast,Bed & Breakfast,Homes 4 All Ltd,700.00, 15-Jan-2021
1773,Revenue,CAHD,Bed and Breakfast,Bed & Breakfast,Homes 4 All Ltd,700.00, 21-Jan-2021
1774,Revenue,CAHD,South - Commissioned Services,Supported Living,Horizon,519.20, 12-Jan-2021
1775,Revenue,CAHD,Extra Care Housing,Private & Voluntary Home Care,Housing 21,44620.58, 15-Jan-2021
1776,Revenue,CAHD,Extra Care Housing,Private & Voluntary Home Care,Housing 21,41176.00, 06-Jan-2021
1777,Revenue,CAHD,Covid - ASC - Infection Control,Grants to Voluntary Bodies,Housing 21,17839.10, 13-Jan-2021
1778,Revenue,CAHD,Covid - ASC - Infection Control,Grants to Voluntary Bodies,Housing 21,17839.10, 29-Jan-2021
1779,Revenue,CAHD,Social Lettings Agency,Rent,HRTC Properties,623.26, 06-Jan-2021
1780,Revenue,CAHD,Social Lettings Agency,Fees - General,HRTC Properties,11.64, 06-Jan-2021
1781,Revenue,CAHD,Central - Commissioned Services,Other Small Contracts,HSBC Invoice Finance (UK) Limited,14088.44, 20-Jan-2021
1782,Revenue,CAHD,South - Commissioned Services,Day Care / Social Activities,HSBC Invoice Finance (UK) Limited,285.58, 20-Jan-2021
1783,Revenue,CAHD,South - Commissioned Services,Other Small Contracts,HSBC Invoice Finance (UK) Limited,5726.76, 20-Jan-2021
1784,Revenue,CAHD,North - Community based support,Other Small Contracts,HSBC Invoice Finance (UK) Limited,3221.88, 20-Jan-2021
1785,Revenue,CAHD,Central - Commissioned Services,Other Small Contracts,HSBC Invoice Finance (UK) Limited,13077.62, 18-Jan-2021
1786,Revenue,CAHD,South - Commissioned Services,Day Care / Social Activities,HSBC Invoice Finance (UK) Limited,289.60, 18-Jan-2021
1787,Revenue,CAHD,South - Commissioned Services,Other Small Contracts,HSBC Invoice Finance (UK) Limited,5433.51, 18-Jan-2021
1788,Revenue,CAHD,North - Community based support,Other Small Contracts,HSBC Invoice Finance (UK) Limited,2969.88, 18-Jan-2021
1789,Revenue,CAHD,Central - Commissioned Services,Other Small Contracts,HSBC Invoice Finance (UK) Limited,14016.82, 18-Jan-2021
1790,Revenue,CAHD,South - Commissioned Services,Day Care / Social Activities,HSBC Invoice Finance (UK) Limited,263.26, 18-Jan-2021
1791,Revenue,CAHD,South - Commissioned Services,Other Small Contracts,HSBC Invoice Finance (UK) Limited,5620.63, 18-Jan-2021
